date,department/service,beneficiary,amount,summary of purpose,category,transaction number,SAP vendor number
01.07.2019,CHILDREN & HEALTH PROTECTION,KENT COMMUNITY HEALTH NHS TRUST,407.24,SEXUAL HEALTH - STI,EXTERNAL AGENCIES AND BODIES,5902365894,1000073298
01.07.2019,CHILDREN'S SERVICES,WIFI SPARK LTD,"3,173.56",THOMAS CALTON CENTRE,COMPUTER MAINTENANCE,5902365777,1000069461
01.07.2019,ENVIRONMENT DIRECTORATE,GO PRO CHEMICALS LTD,"2,435.37",MANAGEMENT TEAM,MATERIALS,5902365417,1000079528
01.07.2019,ENVIRONMENT DIRECTORATE,NPOWER,439.74,SANDGATE STREET,ELECTRICITY,5902365807,1000032342
01.07.2019,ENVIRONMENT DIRECTORATE,NPOWER LTD,289.78,STREET TRADING A/C,ELECTRICITY,5902365848,1000078994
01.07.2019,ENVIRONMENT DIRECTORATE,NPOWER LTD,316.03,STREET TRADING A/C,ELECTRICITY,5902365845,1000078994
01.07.2019,ENVIRONMENT DIRECTORATE,NPOWER LTD,330.83,STREET TRADING A/C,ELECTRICITY,5902365851,1000078994
01.07.2019,LEISURE DIRECTORATE,WIFI SPARK LTD,"26,192.55",IT DEVELOPMENT,COMMS & COMPUTING CONTRACT CHARGES,5902365777,1000069461
01.07.2019,MODERNISATION HGF,KENT COUNTY COUNCIL - LASER,360.89,47B EAST DULWICH ROAD,GAS,5902365456,1000012926
01.07.2019,MODERNISATION HGF,NPOWER LTD,"1,073.74",CURLEW HOUSE,ELECTRICITY,5902365502,1000078994
01.07.2019,RESIDENT SERVICES,NPOWER,327.17,SUPPORTED HOSTELS,ELECTRICITY,5902365622,1000032342
01.07.2019,RESIDENT SERVICES,NPOWER,"2,813.51",TA HOSTELS,ELECTRICITY,5902365480,1000064203
02.07.2019,ADULT SOCIAL CARE,HM COURTS & TRIBUNALS SERVICE,255,DIR OF ASC,LEGAL FEES & COURT COSTS,2102974467,1000075260
02.07.2019,ADULT SOCIAL CARE,HM COURTS & TRIBUNALS SERVICE,308,DIR OF ASC,LEGAL FEES & COURT COSTS,2102974499,1000075260
02.07.2019,ADULT SOCIAL CARE,HM COURTS & TRIBUNALS SERVICE,385,DIR OF ASC,LEGAL FEES & COURT COSTS,2102974496,1000075260
02.07.2019,ADULT SOCIAL CARE,HEALTH PERSONNEL LTD,"3,676.00",LD LTS 18-64,RESIDENTIAL CARE,2102973280,1000076377
02.07.2019,ADULT SOCIAL CARE,THREE CS,270.15,LD LTS 18-64,SUPPORTED LIVING,2102973257,1000033865
02.07.2019,ADULT SOCIAL CARE,THREE CS,270.16,LD LTS 18-64,SUPPORTED LIVING,2102973249,1000033865
02.07.2019,ADULT SOCIAL CARE,THREE CS,360.2,LD LTS 18-64,SUPPORTED LIVING,2102973241,1000033865
02.07.2019,ADULT SOCIAL CARE,THREE CS,360.2,LD LTS 18-64,SUPPORTED LIVING,2102973248,1000033865
02.07.2019,ADULT SOCIAL CARE,THREE CS,360.2,LD LTS 18-64,SUPPORTED LIVING,2102973253,1000033865
02.07.2019,ADULT SOCIAL CARE,CONTACT PROFESSIONALS,465,LD LTS 18-64,SUPPORTED LIVING,2102973274,1000057263
02.07.2019,ADULT SOCIAL CARE,THREE CS,540.3,LD LTS 18-64,SUPPORTED LIVING,2102973254,1000033865
02.07.2019,ADULT SOCIAL CARE,THREE CS,540.3,LD LTS 18-64,SUPPORTED LIVING,2102973256,1000033865
02.07.2019,ADULT SOCIAL CARE,THREE CS,630.35,LD LTS 18-64,SUPPORTED LIVING,2102973251,1000033865
02.07.2019,ADULT SOCIAL CARE,THREE CS,864.48,LD LTS 18-64,SUPPORTED LIVING,2102973247,1000033865
02.07.2019,ADULT SOCIAL CARE,CONTACT PROFESSIONALS,"1,489.00",LD LTS 18-64,SUPPORTED LIVING,2102973278,1000057263
02.07.2019,ADULT SOCIAL CARE,THREE CS,437.5,LD LTS 65+,SUPPORTED LIVING,2102973233,1000033865
02.07.2019,ADULT SOCIAL CARE,SWK DISABLEMENT ASSN,"20,000.00",LOCAL COMMUNITY OFFER,EXTERNAL AGENCIES AND BODIES,5902366016,1000011698
02.07.2019,ADULT SOCIAL CARE,MEDACS HOMECARE,639.41,PHY LTS 65+,HOMECARE - C&V,2102973258,11287415
02.07.2019,ADULT SOCIAL CARE,MEDACS HOMECARE,747.79,PHY LTS 65+,HOMECARE - SPOT,2102973237,11287415
02.07.2019,ADULT SOCIAL CARE,MEDACS HOMECARE,"1,206.58",PHY LTS 65+,HOMECARE - SPOT,2102973255,11287415
02.07.2019,ADULT SOCIAL CARE,ANCHOR TRUST,-321.8,PHY LTS 65+,"MAND STATUTORY CHARGES, RESIDENTIAL",2102967814,11257534
02.07.2019,ADULT SOCIAL CARE,ANCHOR TRUST,"129,079.14",PHY LTS 65+,NURSING PLACEMENTS FEES,5902362426,11257534
02.07.2019,ADULT SOCIAL CARE,HOMELANDS CARE,"2,600.00",PHY LTS 65+,PLACEMENTS - RESPITE,2102973279,1000063634
02.07.2019,ADULT SOCIAL CARE,KENWARD TRUST,"2,853.57",SUB LTS 18-64,PLACEMENTS - REHAB,2102973261,1811153
02.07.2019,ADULT SOCIAL CARE,SOMEWHERE HOUSE,"15,598.80",SUB LTS 18-64,PLACEMENTS - REHAB,2102973260,1000052779
02.07.2019,ADULT SOCIAL CARE,FREEDOM RECOVERY CENTRE,"1,225.00",SUB LTS 18-64,RESIDENTIAL CARE,2102973265,1000046185
02.07.2019,ADULT SOCIAL CARE,FREEDOM RECOVERY CENTRE,"1,640.00",SUB LTS 18-64,RESIDENTIAL CARE,2102973263,1000046185
02.07.2019,ADULT SOCIAL CARE,FREEDOM RECOVERY CENTRE,"2,780.00",SUB LTS 18-64,RESIDENTIAL CARE,2102973267,1000046185
02.07.2019,ADULT SOCIAL CARE,FREEDOM RECOVERY CENTRE,"3,475.00",SUB LTS 18-64,RESIDENTIAL CARE,2102973269,1000046185
02.07.2019,ASSET MANAGEMENT,HM COURTS & TRIBUNALS SERVICE,255,DISREPAIR,LEGAL FEES & COURT COSTS,2102974472,1000075260
02.07.2019,ASSET MANAGEMENT,CHESHIRE ESTATE AND LEGAL LTD,500,DISREPAIR,LEGAL FEES & COURT COSTS,2102973282,1000081908
02.07.2019,CENTRAL FUNCTIONS,HM COURTS & TRIBUNALS SERVICE,255,COMMERCIAL PROPERTIES,LEGAL FEES & COURT COSTS,2102974455,1000075260
02.07.2019,CENTRAL FUNCTIONS,HM COURTS & TRIBUNALS SERVICE,308,COMMERCIAL PROPERTIES,LEGAL FEES & COURT COSTS,2102974452,1000075260
02.07.2019,CENTRAL FUNCTIONS,SHERBOND LIMITED,343.21,COMMERCIAL PROPERTIES,LEGAL FEES & COURT COSTS,2102973209,1000040424
02.07.2019,CENTRAL FUNCTIONS,HM COURTS & TRIBUNALS SERVICE,355,COMMERCIAL PROPERTIES,LEGAL FEES & COURT COSTS,2102974490,1000075260
02.07.2019,CENTRAL FUNCTIONS,SHERBOND LIMITED,598,COMMERCIAL PROPERTIES,LEGAL FEES & COURT COSTS,2102973210,1000040424
02.07.2019,CENTRAL FUNCTIONS,LEDBURY T&RA,"2,040.00",LEDBURY ESTATE,MISCELLANEOUS EXPENSES,5902365939,1000013903
02.07.2019,CHILDREN & HEALTH PROTECTION,LONDON NORTH WEST UNIVERSITY HEALTHCARE NHS TRUST,771,SEXUAL HEALTH - STI,EXTERNAL AGENCIES AND BODIES,5902365942,1000075293
02.07.2019,CHILDREN AND ADULT,KIER SUPPORT SERVICES LIMITED,"63,663.63",CAPITAL PS (SOC SERV),CONSTRUCTION MAIN CONTRACT,2102973229,3000001246
02.07.2019,CHILDREN'S SERVICES,REDACTED PERSONAL DATA,480,ADOPTION PLACEMENTS & INTER AGENCY,PAYMENTS TO CARERS,REDACTED,REDACTED
02.07.2019,CHILDREN'S SERVICES,NPOWER LTD,"1,705.88",AYLESBURY EARLY YEARS CENTRE,ELECTRICITY,5902366091,1000078994
02.07.2019,CHILDREN'S SERVICES,KENT COUNTY COUNCIL - LASER,"1,311.32",BUILDING SUMNER,GAS,5902365949,1000012926
02.07.2019,CHILDREN'S SERVICES,1ST PLACE CHILDREN & PARENTS CENTRE,"105,115.75",CHILDREN'S CENTRE COMMISSIONING,EXTERNAL AGENCIES AND BODIES,5902365999,1000049952
02.07.2019,CHILDREN'S SERVICES,DULWICH WOOD CHILDRENS CENTRE,"148,740.50",CHILDREN'S CENTRE COMMISSIONING,EXTERNAL AGENCIES AND BODIES,5902366002,5001000099
02.07.2019,CHILDREN'S SERVICES,PILGRIM'S WAY PRIMARY SCHOOL,"133,308.75",CHILDREN'S CENTRE COMMISSIONING,EXTERNAL AGENCIES AND BODIES,5902366001,5001000054
02.07.2019,CHILDREN'S SERVICES,IVYDALE PRIMARY SCHOOL,"163,121.75",CHILDREN'S CENTRE COMMISSIONING,EXTERNAL AGENCIES AND BODIES,5902366000,5001000038
02.07.2019,CHILDREN'S SERVICES,KNOWLEDGE EXCHANGE GROUP LTD,325,EDUCATIONAL PSYCHOLOGY - SEND,TRAINING,5902366048,1000081232
02.07.2019,CHILDREN'S SERVICES,HM COURTS & TRIBUNALS SERVICE,"2,055.00",LEGAL,LEGAL FEES & COURT COSTS,2102974462,1000075260
02.07.2019,CHILDREN'S SERVICES,HM COURTS & TRIBUNALS SERVICE,"2,055.00",LEGAL,LEGAL FEES & COURT COSTS,2102974471,1000075260
02.07.2019,CHILDREN'S SERVICES,HM COURTS & TRIBUNALS SERVICE,"2,055.00",LEGAL,LEGAL FEES & COURT COSTS,2102974473,1000075260
02.07.2019,CHILDREN'S SERVICES,HM COURTS & TRIBUNALS SERVICE,"2,055.00",LEGAL,LEGAL FEES & COURT COSTS,2102974475,1000075260
02.07.2019,CHILDREN'S SERVICES,HM COURTS & TRIBUNALS SERVICE,"2,055.00",LEGAL,LEGAL FEES & COURT COSTS,2102974485,1000075260
02.07.2019,CHILDREN'S SERVICES,HM COURTS & TRIBUNALS SERVICE,"2,055.00",LEGAL,LEGAL FEES & COURT COSTS,2102974486,1000075260
02.07.2019,CHILDREN'S SERVICES,HM COURTS & TRIBUNALS SERVICE,"2,055.00",LEGAL,LEGAL FEES & COURT COSTS,2102974487,1000075260
02.07.2019,CHILDREN'S SERVICES,NORDIA DIAS,"2,687.10",NURSERY ED GRANT 3 AND 4 YR OLDS,GRANTS,2102973015,1000009487
02.07.2019,CHILDREN'S SERVICES,THE NORWOOD SCHOOL,450,PUPIL PREMIUM CURRENT YEAR,SCHOOLS CAPITATION,5902365898,1000082886
02.07.2019,CHILDREN'S SERVICES,REDACTED PERSONAL DATA,482,S24 CLA,OTHER PAYMENTS FOR CLIENTS,REDACTED,REDACTED
02.07.2019,CHILDREN'S SERVICES,CARE O LINE,275,SCH TRANS - CONTRACT COST,AGENCY STAFF,5902366073,11241743
02.07.2019,CHILDREN'S SERVICES,CARE O LINE,275,SCH TRANS - CONTRACT COST,AGENCY STAFF,5902366075,11241743
02.07.2019,CHILDREN'S SERVICES,HEALTHCARE & TRANSPORT SERVICES,"26,561.14",SCH TRANS - CONTRACT COST,CAB FARES,5902366043,1000042743
02.07.2019,CHILDREN'S SERVICES,HEALTHCARE & TRANSPORT SERVICES,"53,975.48",SCH TRANS - CONTRACT COST,EXTERNAL AGENCIES AND BODIES,5902366045,1000042743
02.07.2019,CHILDREN'S SERVICES,REDACTED PERSONAL DATA,572,SCH TRANS - CONTRACT COST,OTHER PAYMENTS FOR CLIENTS,REDACTED,REDACTED
02.07.2019,CHILDREN'S SERVICES,REDACTED PERSONAL DATA,597.9,SCH TRANS - CONTRACT COST,OTHER PAYMENTS FOR CLIENTS,REDACTED,REDACTED
02.07.2019,CHILDREN'S SERVICES,REDACTED PERSONAL DATA,793,SCH TRANS - CONTRACT COST,OTHER PAYMENTS FOR CLIENTS,REDACTED,REDACTED
02.07.2019,CHILDREN'S SERVICES,HAYMERLE SCHOOL,"4,043.00",UIFSM,SCHOOLS CAPITATION,2102973370,5001000045
02.07.2019,CHILDREN'S SERVICES,CHERRY GARDEN SCHOOL,"6,955.00",UIFSM,SCHOOLS CAPITATION,2102973371,5001000020
02.07.2019,CHILDREN'S SERVICES,ST JUDES CHURCH OF ENGLAND PRIMARY,"6,974.00",UIFSM,SCHOOLS CAPITATION,2102973360,5001000019
02.07.2019,CHILDREN'S SERVICES,ST JOHNS WALWORTH CE SCHOOL,"6,999.00",UIFSM,SCHOOLS CAPITATION,2102973356,5001000072
02.07.2019,CHILDREN'S SERVICES,TOWNSEND PRIMARY SCHOOL,"8,438.00",UIFSM,SCHOOLS CAPITATION,2102973340,5001000096
02.07.2019,CHILDREN'S SERVICES,PETER HILLS CE SCHOOL,"10,579.00",UIFSM,SCHOOLS CAPITATION,2102973362,5001000053
02.07.2019,CHILDREN'S SERVICES,CRAMPTON PRIMARY SCHOOL,"11,055.00",UIFSM,SCHOOLS CAPITATION,2102973320,5001000023
02.07.2019,CHILDREN'S SERVICES,CHARLOTTE  SHARMAN PRIMARY SCHOOL,"11,879.00",UIFSM,SCHOOLS CAPITATION,2102973342,5001000016
02.07.2019,CHILDREN'S SERVICES,ST GEORGES CE SCHOOL,"12,072.00",UIFSM,SCHOOLS CAPITATION,2102973352,5001000069
02.07.2019,CHILDREN'S SERVICES,ST MARY MAGDALENE CE SCHOOL,"13,526.00",UIFSM,SCHOOLS CAPITATION,2102973361,5001000080
02.07.2019,CHILDREN'S SERVICES,VICTORY SCHOOL,"14,311.00",UIFSM,SCHOOLS CAPITATION,2102973341,5001000098
02.07.2019,CHILDREN'S SERVICES,FRIARS PRIMARY SCHOOL,"16,716.00",UIFSM,SCHOOLS CAPITATION,2102973369,5001000033
02.07.2019,CHILDREN'S SERVICES,ST GEORGES RC SCHOOL,"18,828.00",UIFSM,SCHOOLS CAPITATION,2102973353,5001000068
02.07.2019,CHILDREN'S SERVICES,PILGRIM'S WAY PRIMARY SCHOOL,"20,630.00",UIFSM,SCHOOLS CAPITATION,2102973344,5001000054
02.07.2019,CHILDREN'S SERVICES,TOWER BRIDGE PRIMARY SCHOOL,"21,942.00",UIFSM,SCHOOLS CAPITATION,2102973339,5001000095
02.07.2019,CHILDREN'S SERVICES,SNOWSFIELDS PRIMARY SCHOOL,"22,651.00",UIFSM,SCHOOLS CAPITATION,2102973337,5001000061
02.07.2019,CHILDREN'S SERVICES,ST JAMES THE GREAT RC SCHOOL,"24,654.00",UIFSM,SCHOOLS CAPITATION,2102973350,5001000071
02.07.2019,CHILDREN'S SERVICES,ST PETERS CE SCHOOL,"25,201.00",UIFSM,SCHOOLS CAPITATION,2102973363,5001000083
02.07.2019,CHILDREN'S SERVICES,ST JOHNS RC PRIMARY SCHOOL,"25,401.00",UIFSM,SCHOOLS CAPITATION,2102973365,5001000075
02.07.2019,CHILDREN'S SERVICES,ROBERT BROWNING PRIMARY SCHOOL,"25,474.00",UIFSM,SCHOOLS CAPITATION,2102973335,5001000057
02.07.2019,CHILDREN'S SERVICES,ST JOSEPHS CATHOLIC SCHOOL,"25,620.00",UIFSM,SCHOOLS CAPITATION,2102973359,5001000076
02.07.2019,CHILDREN'S SERVICES,BELLENDEN PRIMARY SCHOOL,"27,895.00",UIFSM,SCHOOLS CAPITATION,2102973315,5001000007
02.07.2019,CHILDREN'S SERVICES,HOLLYDALE PRIMARY SCHOOL,"28,642.00",UIFSM,SCHOOLS CAPITATION,2102973326,5001000036
02.07.2019,CHILDREN'S SERVICES,BOUCHER C OF E PRIMARY SCHOOL,"30,044.00",UIFSM,SCHOOLS CAPITATION,2102973347,5001000011
02.07.2019,CHILDREN'S SERVICES,ST JOSEPHS CATHOLIC PRIMARY SCHOOL,"30,827.00",UIFSM,SCHOOLS CAPITATION,2102973358,5001000078
02.07.2019,CHILDREN'S SERVICES,CATHEDRAL SCHOOL OF ST SAVIOUR & MARY,"32,594.00",UIFSM,SCHOOLS CAPITATION,2102973364,5001000088
02.07.2019,CHILDREN'S SERVICES,COMBER GROVE PRIMARY SCHOOL,"33,304.00",UIFSM,SCHOOLS CAPITATION,2102973319,5001000022
02.07.2019,CHILDREN'S SERVICES,ILDERTON PRIMARY SCHOOL,"33,339.00",UIFSM,SCHOOLS CAPITATION,2102973327,5001000037
02.07.2019,CHILDREN'S SERVICES,BRUNSWICK PARK PRIMARY SCHOOL,"33,522.00",UIFSM,SCHOOLS CAPITATION,2102973373,5001000013
02.07.2019,CHILDREN'S SERVICES,RYE OAK PRIMARY SCHOOL,"35,178.00",UIFSM,SCHOOLS CAPITATION,2102973374,5001000059
02.07.2019,CHILDREN'S SERVICES,OLIVER GOLDSMITH PRIMARY SCHOOL,"36,253.00",UIFSM,SCHOOLS CAPITATION,2102973346,5001000051
02.07.2019,CHILDREN'S SERVICES,ST JAMES CE SCHOOL,"36,726.00",UIFSM,SCHOOLS CAPITATION,2102973354,5001000070
02.07.2019,CHILDREN'S SERVICES,RIVERSIDE PRIMARY SCHOOL,"36,781.00",UIFSM,SCHOOLS CAPITATION,2102973334,5001000056
02.07.2019,CHILDREN'S SERVICES,COBOURG PRIMARY SCHOOL,"37,982.00",UIFSM,SCHOOLS CAPITATION,2102973318,5001000021
02.07.2019,CHILDREN'S SERVICES,ST FRANCESCA CABRINI PRIMARY SCHOOL,"38,566.00",UIFSM,SCHOOLS CAPITATION,2102973366,5001000065
02.07.2019,CHILDREN'S SERVICES,CAMELOT PRIMARY SCHOOL,"39,931.00",UIFSM,SCHOOLS CAPITATION,2102973316,5001000014
02.07.2019,CHILDREN'S SERVICES,KEYWORTH PRIMARY SCHOOL,"41,770.00",UIFSM,SCHOOLS CAPITATION,2102973330,5001000041
02.07.2019,CHILDREN'S SERVICES,JOHN RUSKIN PRIMARY SCHOOL,"42,007.00",UIFSM,SCHOOLS CAPITATION,2102973329,5001000040
02.07.2019,CHILDREN'S SERVICES,GRANGE PRIMARY SCHOOL,"42,390.00",UIFSM,SCHOOLS CAPITATION,2102973324,5001000029
02.07.2019,CHILDREN'S SERVICES,MICHAEL FARADAY PRIMARY SCHOOL,"42,826.00",UIFSM,SCHOOLS CAPITATION,2102973333,5001000048
02.07.2019,CHILDREN'S SERVICES,ENGLISH MARTYRS RC PRIMARY SCHOOL,"44,010.00",UIFSM,SCHOOLS CAPITATION,2102973349,5001000030
02.07.2019,CHILDREN'S SERVICES,ALFRED SALTER PRIMARY SCHOOL,"44,156.00",UIFSM,SCHOOLS CAPITATION,2102973345,5001000005
02.07.2019,CHILDREN'S SERVICES,SOUTHWARK PARK PRIMARY SCHOOL,"46,268.00",UIFSM,SCHOOLS CAPITATION,2102973338,5001000062
02.07.2019,CHILDREN'S SERVICES,ST JOSEPHS RC PRIMARY SCHOOL,"46,431.00",UIFSM,SCHOOLS CAPITATION,2102973357,5001000077
02.07.2019,CHILDREN'S SERVICES,ST FRANCIS'S RC PRIMARY SCHOOL,"51,074.00",UIFSM,SCHOOLS CAPITATION,2102973351,5001000067
02.07.2019,CHILDREN'S SERVICES,ALBION PRIMARY SCHOOL,"52,149.00",UIFSM,SCHOOLS CAPITATION,2102973314,5001000000
02.07.2019,CHILDREN'S SERVICES,ROTHERHITHE PRIMARY SCHOOL,"52,204.00",UIFSM,SCHOOLS CAPITATION,2102973336,5001000058
02.07.2019,CHILDREN'S SERVICES,HEBER PRIMARY SCHOOL,"54,279.00",UIFSM,SCHOOLS CAPITATION,2102973325,5001000035
02.07.2019,CHILDREN'S SERVICES,DOG KENNEL HILL PRIMARY SCHOOL,"54,370.00",UIFSM,SCHOOLS CAPITATION,2102973322,5001000025
02.07.2019,CHILDREN'S SERVICES,CHARLES DICKENS PRIMARY SCHOOL,"54,462.00",UIFSM,SCHOOLS CAPITATION,2102973317,5001000015
02.07.2019,CHILDREN'S SERVICES,DULWICH WOOD PRIMARY SCHOOL,"56,227.00",UIFSM,SCHOOLS CAPITATION,2102973331,5001000042
02.07.2019,CHILDREN'S SERVICES,ST JOHNS & ST CLEMENTS CE SCHOOL,"61,307.00",UIFSM,SCHOOLS CAPITATION,2102973355,5001000073
02.07.2019,CHILDREN'S SERVICES,ST JOSEPHS CATHOLIC INFANTS SCHOOL,"61,781.00",UIFSM,SCHOOLS CAPITATION,2102973368,5001000018
02.07.2019,CHILDREN'S SERVICES,LYNDHURST PRIMARY SCHOOL,"64,512.00",UIFSM,SCHOOLS CAPITATION,2102973332,5001000043
02.07.2019,CHILDREN'S SERVICES,ST ANTHONYS RC SCHOOL,"67,789.00",UIFSM,SCHOOLS CAPITATION,2102973367,5001000064
02.07.2019,CHILDREN'S SERVICES,CRAWFORD PRIMARY SCHOOL,"77,494.00",UIFSM,SCHOOLS CAPITATION,2102973321,5001000024
02.07.2019,CHILDREN'S SERVICES,GOODRICH PRIMARY SCHOOL,"82,138.00",UIFSM,SCHOOLS CAPITATION,2102973323,5001000028
02.07.2019,CHILDREN'S SERVICES,PHOENIX PRIMARY SCHOOL,"83,249.00",UIFSM,SCHOOLS CAPITATION,2102973343,5001000032
02.07.2019,CHILDREN'S SERVICES,IVYDALE PRIMARY SCHOOL,"89,651.00",UIFSM,SCHOOLS CAPITATION,2102973328,5001000038
02.07.2019,CHILDREN'S SERVICES,BESSEMER GRANGE PRIMARY SCHOOL,"96,613.00",UIFSM,SCHOOLS CAPITATION,2102973372,5001000009
02.07.2019,CHILDREN'S SERVICES,DULWICH VILLAGE CE INFANTS SCHOOL,"105,700.00",UIFSM,SCHOOLS CAPITATION,2102973348,5001000027
02.07.2019,COMMUNITIES,SOUTHSIDE PARTNERSHIP LTD,"1,281.11",NO RECOURSE TO PUBLIC FUNDS,ACCOMMODATION CHARGES,5902365770,1716624
02.07.2019,COMMUNITIES,SOUTHSIDE PARTNERSHIP LTD,"1,281.11",NO RECOURSE TO PUBLIC FUNDS,ACCOMMODATION CHARGES,5902365886,1716624
02.07.2019,CUSTOMER EXPERIENCE,INTERSERVE (FACILITIES MANAGEMENT),453.89,WALWORTH MSSP,OTHER R&M,2102973226,3000000166
02.07.2019,CUSTOMER EXPERIENCE HGF,CROWN HOUSING LTD,"17,805.50",NIGHTLY TA (NSC),EXTERNAL AGENCIES AND BODIES,5902366061,1000075070
02.07.2019,DULWICH COMMUNITY COUNCIL,PAXTON GREEN TIME BANK ,"1,000.00",SHARING STORIES ,GRANT,CHEQUE PAYMENT,CHEQUE PAYMENT
02.07.2019,ENVIRONMENT AND LEISURE,BERMONDSEY COMMUNITY KITCHEN,"6,913.29",CAPITAL PS (LEISURE),CAPITAL GRANTS,5902366057,1000075477
02.07.2019,ENVIRONMENT AND LEISURE,STREET TREE CARE LTD,"1,908.00",CAPITAL PS (LEISURE),CONSTRUCTION FEES  - EXTERNAL,5902365938,1000055901
02.07.2019,ENVIRONMENT AND LEISURE,STREET TREE CARE LTD,"62,058.00",CAPITAL PS (LEISURE),CONSTRUCTION FEES  - EXTERNAL,5902365938,1000055901
02.07.2019,ENVIRONMENT AND LEISURE,STONEGROVE LIMITED,"37,696.38",CAPITAL PS (LEISURE),CONSTRUCTION MAIN CONTRACT -CERTIFICATED,2102973230,3000001525
02.07.2019,ENVIRONMENT AND LEISURE,STONEGROVE LIMITED,"37,956.26",CAPITAL PS (LEISURE),CONSTRUCTION MAIN CONTRACT -CERTIFICATED,2102973225,3000001525
02.07.2019,ENVIRONMENT DIRECTORATE,LEX AUTOLEASE,"18,796.75",COMMERCIAL VEH CTRL A/C,HIRED VEHICLES,5902366036,1000069462
02.07.2019,ENVIRONMENT DIRECTORATE,SPALDINGS (UK) LTD,636.93,GROUNDS MAINTENANCE - GENERAL,MATERIALS,5902366065,1907384
02.07.2019,ENVIRONMENT DIRECTORATE,GO PRO CHEMICALS LTD,"1,760.99",MANAGEMENT TEAM,MATERIALS,5902366041,1000079528
02.07.2019,ENVIRONMENT DIRECTORATE,BOND SOLON TRAINING LTD,"4,000.00",PARKING OVERHEADS,TRAINING,5902365948,1000031147
02.07.2019,ENVIRONMENT DIRECTORATE,HM COURTS & TRIBUNALS SERVICE,255,ROUGH SLEEPERS,LEGAL FEES & COURT COSTS,2102974480,1000075260
02.07.2019,ENVIRONMENT DIRECTORATE,METROPOLITAN POLICE AUTHORITY,"11,167.00",S92 NIGHT TIME ECONOMY,PROFESSIONAL FEES,5902366088,1000035048
02.07.2019,ENVIRONMENT DIRECTORATE,METROPOLITAN POLICE AUTHORITY,"16,750.00",S92 NIGHT TIME ECONOMY,PROFESSIONAL FEES,5902366086,1000035048
02.07.2019,ENVIRONMENT DIRECTORATE,METROPOLITAN POLICE AUTHORITY,"51,037.00",S92 NIGHT TIME ECONOMY,PROFESSIONAL FEES,5902366083,1000035048
02.07.2019,ENVIRONMENT DIRECTORATE,HM COURTS & TRIBUNALS SERVICE,255,SASBU,LEGAL FEES & COURT COSTS,2102974488,1000075260
02.07.2019,ENVIRONMENT DIRECTORATE,CONWAY AECOM LTD,"1,811.55",TRANSPORT PROJECTS,OTHER CONTRACTORS,5902365934,1000071205
02.07.2019,ENVIRONMENT DIRECTORATE,CONWAY AECOM LTD,"14,537.78",TRANSPORT PROJECTS,OTHER CONTRACTORS,5902365936,1000071205
02.07.2019,EXCHEQUER SERVICES,DSI BILLING SERVICES LTD,"2,365.54",ADMINISTRATIVE SUPPORT,POSTAGES,5902366080,1000058640
02.07.2019,EXCHEQUER SERVICES,ETC VENUES LTD,784,ADMINISTRATIVE SUPPORT,TRAINING,5902366044,1000045226
02.07.2019,HOUSING & MODERNISATION,LITTLE VILLAGE SOUTHWARK,"1,250.00",VCS GRANTS,GRANTS,5902366034,1000082344
02.07.2019,HOUSING & MODERNISATION,MENTAL FIGHT CLUB,"2,250.00",VCS GRANTS,GRANTS,5902366023,1000051170
02.07.2019,HOUSING & MODERNISATION,CRYSTAL PALACE COMM DEV TRUST,"3,000.00",VCS GRANTS,GRANTS,5902366024,1000054200
02.07.2019,HOUSING & MODERNISATION,BERMONDSEY COMMUNITY KITCHEN,"3,750.00",VCS GRANTS,GRANTS,5902366030,1000075477
02.07.2019,HOUSING & MODERNISATION,THE BIKE PROJECT,"3,750.00",VCS GRANTS,GRANTS,5902366031,1000077217
02.07.2019,HOUSING & MODERNISATION,PAXTON GREEN TIME BANK,"3,937.50",VCS GRANTS,GRANTS,5902366027,1000070648
02.07.2019,HOUSING & MODERNISATION,FUTURE MEN,"4,000.00",VCS GRANTS,GRANTS,5902366021,1000046010
02.07.2019,HOUSING & MODERNISATION,BANKSIDE OPEN SPACES TRUST,"4,208.00",VCS GRANTS,GRANTS,5902366017,1000018290
02.07.2019,HOUSING & MODERNISATION,AGE UK LEWISHAM & SOUTHWARK,"4,500.00",VCS GRANTS,GRANTS,5902366004,1507154
02.07.2019,HOUSING & MODERNISATION,TIME & TALENTS ASSOCIATION,"4,500.00",VCS GRANTS,GRANTS,5902366005,1757632
02.07.2019,HOUSING & MODERNISATION,BEDE HSE,"4,500.00",VCS GRANTS,GRANTS,5902366010,11248731
02.07.2019,HOUSING & MODERNISATION,CAMBRIDGE HOUSE & TALBOT,"4,500.00",VCS GRANTS,GRANTS,5902366011,11248874
02.07.2019,HOUSING & MODERNISATION,LATIN AMERICAN DISABLED PEOPLE PROJECT,"4,500.00",VCS GRANTS,GRANTS,5902366025,1000058588
02.07.2019,HOUSING & MODERNISATION,LATIN AMERICAN WOMEN'S RIGHTS SERVICES,"4,500.00",VCS GRANTS,GRANTS,5902366026,1000068356
02.07.2019,HOUSING & MODERNISATION,BLACKFRIARS SETTLEMENT,"4,500.00",VCS GRANTS,GRANTS,5902366028,1000071456
02.07.2019,HOUSING & MODERNISATION,PEMBROKE COLLEGE SETTLEMENT,"4,500.00",VCS GRANTS,GRANTS,5902366029,1000073444
02.07.2019,HOUSING & MODERNISATION,ST FAITHS COMMUNITY CENTRE,"5,000.00",VCS GRANTS,GRANTS,5902366003,1039446
02.07.2019,HOUSING & MODERNISATION,SOUTHWARK EVERY WOMAN'S CENTRE,"5,250.00",VCS GRANTS,GRANTS,5902366020,1000042216
02.07.2019,HOUSING & MODERNISATION,SOUTHWARK CITIZENS ADVICE,"5,600.00",VCS GRANTS,GRANTS,5902366007,1874379
02.07.2019,HOUSING & MODERNISATION,SOUTHWARK TRAVELLERS' ACTION,"5,750.00",VCS GRANTS,GRANTS,5902366032,1000077795
02.07.2019,HOUSING & MODERNISATION,PECAN LTD,"6,500.00",VCS GRANTS,GRANTS,5902366013,11263114
02.07.2019,HOUSING & MODERNISATION,PECAN LTD,"7,250.00",VCS GRANTS,GRANTS,5902366012,11263114
02.07.2019,HOUSING & MODERNISATION,LONDON WILDLIFE TRUST,"7,500.00",VCS GRANTS,GRANTS,5902366006,1832374
02.07.2019,HOUSING & MODERNISATION,AAINA WOMEN GROUP,"8,018.25",VCS GRANTS,GRANTS,5902366015,1000002442
02.07.2019,HOUSING & MODERNISATION,SURREY DOCKS FARM PROVIDENT SOCIETY,"10,000.00",VCS GRANTS,GRANTS,5902366014,1000000958
02.07.2019,HOUSING & MODERNISATION,BEORMUND COMMUNITY CENTRE,"12,437.25",VCS GRANTS,GRANTS,5902366009,11048982
02.07.2019,HOUSING & MODERNISATION,THE MANNA CENTRE,"13,750.00",VCS GRANTS,GRANTS,5902366022,1000048508
02.07.2019,HOUSING & MODERNISATION,SOMALI INTEGRATION & DEVELOPMENT ASSOCIATION,"14,000.00",VCS GRANTS,GRANTS,5902366008,11048946
02.07.2019,HOUSING & MODERNISATION,SOUTHWARK PENSIONERS CENTRE,"25,855.25",VCS GRANTS,GRANTS,5902366018,1000027831
02.07.2019,HOUSING GENERAL FUND,L H BRIDGE LTD,700,CAPITAL PS (HOUSING GF),CONSTRUCTION SITE COSTS,2102973227,3000001167
02.07.2019,HOUSING GENERAL FUND,L H BRIDGE LTD,700,CAPITAL PS (HOUSING GF),CONSTRUCTION SITE COSTS,2102973228,3000001167
02.07.2019,HOUSING HRA,3MS GOLD SERVICES LTD,"4,342.18",CAPITAL PS (HRA),CONST'N MAIN CONTRACT - NON CERTIFICATED,2102973377,3000001256
02.07.2019,HOUSING HRA,3MS GOLD SERVICES LTD,"6,387.27",CAPITAL PS (HRA),CONST'N MAIN CONTRACT - NON CERTIFICATED,2102973378,3000001256
02.07.2019,HOUSING HRA,3MS GOLD SERVICES LTD,"7,526.17",CAPITAL PS (HRA),CONST'N MAIN CONTRACT - NON CERTIFICATED,2102973375,3000001256
02.07.2019,HOUSING HRA,3MS GOLD SERVICES LTD,"8,653.58",CAPITAL PS (HRA),CONST'N MAIN CONTRACT - NON CERTIFICATED,2102973376,3000001256
02.07.2019,HOUSING HRA,FRASER BROWN MACKENNA LTD,"43,775.00",CAPITAL PS (HRA),CONSTRUCTION FEES  - EXTERNAL,5902366064,1000081651
02.07.2019,HOUSING HRA,OCO LIMITED,"138,474.12",PAYMENTS CONTROL ACCOUNT - OCO,MANUAL CREDITORS,5902365998,1006066
02.07.2019,LEISURE DIRECTORATE,QUADRON SERVICES LIMITED,"2,700.00",BURGESS SPORTS CENTRE,GROUNDS MAINTENANCE,5902365951,1000066528
02.07.2019,LEISURE DIRECTORATE,QUADRON SERVICES LIMITED,"7,141.99",BURGESS SPORTS CENTRE,PROFESSIONAL FEES,5902365944,1000066528
02.07.2019,LEISURE DIRECTORATE,NPOWER LTD,499.03,CEMETERIES,ELECTRICITY,5902366037,1000078994
02.07.2019,LEISURE DIRECTORATE,NPOWER LTD,"3,386.25",CEMETERIES,ELECTRICITY,5902366038,1000078994
02.07.2019,LEISURE DIRECTORATE,WEST MALLING FLOWERS,590,CREMATORIUM,MATERIALS,5902366067,1000079594
02.07.2019,LEISURE DIRECTORATE,CHRIS BOOBYER,400,CREMATORIUM,OTHER CONTRACTORS,5902366047,1000081515
02.07.2019,LEISURE DIRECTORATE,LEE SNASHFOLD CREMETORIA MANAGEMENT,663,CREMATORIUM,PROFESSIONAL FEES,5902366039,1000077845
02.07.2019,LEISURE DIRECTORATE,KENT COUNTY COUNCIL - LASER,"3,538.83",SDM BUDGET,ELECTRICITY,5902366056,1000012926
02.07.2019,LEISURE DIRECTORATE,KENT COUNTY COUNCIL - LASER,"9,135.34",SDM BUDGET,ELECTRICITY,5902366062,1000012926
02.07.2019,LEISURE DIRECTORATE,CASTLE WATER LTD,"1,006.88",SDM BUDGET,WATER,5902366055,1000078867
02.07.2019,PECKHAM AND NUNHEAD COMMUNITY COUNCIL,ATHENLAY FOOTBALL CLUB ,"2,950.00",THE 3KICKS YOUTH DEVELOPMENT PROJECT ,GRANT,CHEQUE PAYMENT,CHEQUE PAYMENT
02.07.2019,PLANNING AND TRANSPORT,HM COURTS & TRIBUNALS SERVICE,"2,500.00",COMPLIANCE & MONITORING,LEGAL FEES & COURT COSTS,2102974497,1000075260
02.07.2019,PUBLIC HEALTH,COOKWISE LTD,"2,513.75",PUBLIC HEALTH FHSM,EXTERNAL AGENCIES AND BODIES,5902365960,1000082723
02.07.2019,RESIDENT SERVICES,HM COURTS & TRIBUNALS SERVICE,355,CAMBERWELL,LEGAL FEES & COURT COSTS,2102974494,1000075260
02.07.2019,RESIDENT SERVICES,EDF ENERGY PLC,-441.6,OPERATIONS/OFFICES ACCOMMODATION,ELECTRICITY,5902365615,1008746
02.07.2019,RESIDENT SERVICES,EDF ENERGY PLC,303.68,OPERATIONS/OFFICES ACCOMMODATION,ELECTRICITY,5902365618,1008746
02.07.2019,RESIDENT SERVICES,EDF ENERGY PLC,555.81,OPERATIONS/OFFICES ACCOMMODATION,ELECTRICITY,5902365937,1008746
02.07.2019,RESIDENT SERVICES,NPOWER,"1,499.33",OPERATIONS/OFFICES ACCOMMODATION,ELECTRICITY,5902365973,1000064203
02.07.2019,RESIDENT SERVICES,HM COURTS & TRIBUNALS SERVICE,255,OPERATIONS/OFFICES ACCOMMODATION,LEGAL FEES & COURT COSTS,2102974458,1000075260
02.07.2019,RESIDENT SERVICES,HM COURTS & TRIBUNALS SERVICE,545,OPERATIONS/OFFICES ACCOMMODATION,LEGAL FEES & COURT COSTS,2102974489,1000075260
02.07.2019,RESIDENT SERVICES,THAMES WATER UTILITIES LTD,-339.59,SHELTERED NORTH,WATER,5902366371,1630755
02.07.2019,RESIDENT SERVICES,THAMES WATER UTILITIES LTD,339.59,SHELTERED NORTH,WATER,5902366040,1630755
02.07.2019,RESIDENT SERVICES,THAMES WATER UTILITIES LTD,356.07,SHELTERED NORTH,WATER,5902366042,1630755
02.07.2019,RESIDENT SERVICES,HM COURTS & TRIBUNALS SERVICE,355,SPECIAL INVESTIGATIONS,LEGAL FEES & COURT COSTS,2102974453,1000075260
02.07.2019,RESIDENT SERVICES,KENT COUNTY COUNCIL - LASER,330.39,TA HOSTELS,ELECTRICITY,5902366093,1000012926
02.07.2019,RESIDENT SERVICES,KENT COUNTY COUNCIL - LASER,354.63,TA HOSTELS,ELECTRICITY,5902366094,1000012926
02.07.2019,RESIDENT SERVICES,KENT COUNTY COUNCIL - LASER,414.05,TA HOSTELS,ELECTRICITY,5902366077,1000012926
02.07.2019,RESIDENT SERVICES,CASTLE WATER LTD,"1,492.31",TA HOSTELS,ELECTRICITY,5902366069,1000078867
03.07.2019,ADULT SOCIAL CARE,INTERSERVE (FACILITIES MANAGEMENT),"19,943.90",ANCHOR TRUST REPAIRS,BUILDING R&M,2102974439,3000000166
03.07.2019,ADULT SOCIAL CARE,HINDWOODS LTD,300,APPOINTEESHIPS,OTHER PAYMENTS FOR CLIENTS,2102974430,1000044989
03.07.2019,ADULT SOCIAL CARE,HINDWOODS LTD,300,APPOINTEESHIPS,OTHER PAYMENTS FOR CLIENTS,2102974431,1000044989
03.07.2019,ADULT SOCIAL CARE,NEAT REMOVALS LTD,310,APPOINTEESHIPS,OTHER PAYMENTS FOR CLIENTS,2102974436,1000082589
03.07.2019,ADULT SOCIAL CARE,RAPKYNS CARE CENTRE,500,APPOINTEESHIPS,OTHER PAYMENTS FOR CLIENTS,2102974434,1000077989
03.07.2019,ADULT SOCIAL CARE,BRITISH GAS TRADING LTD,945.87,APPOINTEESHIPS,OTHER PAYMENTS FOR CLIENTS,2102974435,1000055977
03.07.2019,ADULT SOCIAL CARE,REDACTED PERSONAL DATA,254,FAMILY LINK,PAYMENTS TO CARERS,REDACTED,REDACTED
03.07.2019,ADULT SOCIAL CARE,REDACTED PERSONAL DATA,300,FAMILY LINK,PAYMENTS TO CARERS,REDACTED,REDACTED
03.07.2019,ADULT SOCIAL CARE,REDACTED PERSONAL DATA,320,FAMILY LINK,PAYMENTS TO CARERS,REDACTED,REDACTED
03.07.2019,ADULT SOCIAL CARE,REDACTED PERSONAL DATA,440,FAMILY LINK,PAYMENTS TO CARERS,REDACTED,REDACTED
03.07.2019,ADULT SOCIAL CARE,THE CAMDEN SOCIETY (SOCIAL CARE),829.71,LD LTS 18-64,DAYCARE,2102973272,1000036369
03.07.2019,ADULT SOCIAL CARE,THE CAMDEN SOCIETY (SOCIAL CARE),968,LD LTS 18-64,DAYCARE,2102973271,1000036369
03.07.2019,ADULT SOCIAL CARE,THE CAMDEN SOCIETY (SOCIAL CARE),968,LD LTS 18-64,DAYCARE,2102973273,1000036369
03.07.2019,ADULT SOCIAL CARE,THE CAMDEN SOCIETY (SOCIAL CARE),968,LD LTS 18-64,DAYCARE,2102973275,1000036369
03.07.2019,ADULT SOCIAL CARE,THE CAMDEN SOCIETY (SOCIAL CARE),968,LD LTS 18-64,DAYCARE,2102973276,1000036369
03.07.2019,ADULT SOCIAL CARE,THE CAMDEN SOCIETY (SOCIAL CARE),968,LD LTS 18-64,DAYCARE,2102973277,1000036369
03.07.2019,ADULT SOCIAL CARE,SWK DISABLEMENT ASSN,480.18,LD LTS 18-64,SUPPORTED LIVING,2102974395,1000011698
03.07.2019,ADULT SOCIAL CARE,SWK DISABLEMENT ASSN,652.32,LD LTS 18-64,SUPPORTED LIVING,2102974422,1000011698
03.07.2019,ADULT SOCIAL CARE,SWK DISABLEMENT ASSN,665.91,LD LTS 18-64,SUPPORTED LIVING,2102974421,1000011698
03.07.2019,ADULT SOCIAL CARE,SWK DISABLEMENT ASSN,706.68,LD LTS 18-64,SUPPORTED LIVING,2102974382,1000011698
03.07.2019,ADULT SOCIAL CARE,SWK DISABLEMENT ASSN,"1,069.08",LD LTS 18-64,SUPPORTED LIVING,2102974386,1000011698
03.07.2019,ADULT SOCIAL CARE,SWK DISABLEMENT ASSN,"1,522.08",LD LTS 65+,SUPPORTED LIVING,2102974369,1000011698
03.07.2019,ADULT SOCIAL CARE,SWK DISABLEMENT ASSN,"1,522.08",LD LTS 65+,SUPPORTED LIVING,2102974407,1000011698
03.07.2019,ADULT SOCIAL CARE,SWK DISABLEMENT ASSN,326.16,MH LTS 18-64,HOMECARE - SPOT,2102974383,1000011698
03.07.2019,ADULT SOCIAL CARE,SWK DISABLEMENT ASSN,362.4,MH LTS 18-64,HOMECARE - SPOT,2102974384,1000011698
03.07.2019,ADULT SOCIAL CARE,SWK DISABLEMENT ASSN,362.4,MH LTS 18-64,HOMECARE - SPOT,2102974388,1000011698
03.07.2019,ADULT SOCIAL CARE,SWK DISABLEMENT ASSN,253.68,MH LTS 18-64,SUPPORTED LIVING,2102974376,1000011698
03.07.2019,ADULT SOCIAL CARE,SWK DISABLEMENT ASSN,253.68,MH LTS 18-64,SUPPORTED LIVING,2102974385,1000011698
03.07.2019,ADULT SOCIAL CARE,SWK DISABLEMENT ASSN,289.92,MH LTS 18-64,SUPPORTED LIVING,2102974370,1000011698
03.07.2019,ADULT SOCIAL CARE,SWK DISABLEMENT ASSN,289.92,MH LTS 18-64,SUPPORTED LIVING,2102974375,1000011698
03.07.2019,ADULT SOCIAL CARE,SWK DISABLEMENT ASSN,289.92,MH LTS 18-64,SUPPORTED LIVING,2102974381,1000011698
03.07.2019,ADULT SOCIAL CARE,SWK DISABLEMENT ASSN,289.92,MH LTS 18-64,SUPPORTED LIVING,2102974387,1000011698
03.07.2019,ADULT SOCIAL CARE,SWK DISABLEMENT ASSN,289.92,MH LTS 18-64,SUPPORTED LIVING,2102974394,1000011698
03.07.2019,ADULT SOCIAL CARE,SWK DISABLEMENT ASSN,289.92,MH LTS 18-64,SUPPORTED LIVING,2102974400,1000011698
03.07.2019,ADULT SOCIAL CARE,SWK DISABLEMENT ASSN,289.92,MH LTS 18-64,SUPPORTED LIVING,2102974401,1000011698
03.07.2019,ADULT SOCIAL CARE,SWK DISABLEMENT ASSN,289.92,MH LTS 18-64,SUPPORTED LIVING,2102974402,1000011698
03.07.2019,ADULT SOCIAL CARE,SWK DISABLEMENT ASSN,289.92,MH LTS 18-64,SUPPORTED LIVING,2102974403,1000011698
03.07.2019,ADULT SOCIAL CARE,SWK DISABLEMENT ASSN,289.92,MH LTS 18-64,SUPPORTED LIVING,2102974406,1000011698
03.07.2019,ADULT SOCIAL CARE,SWK DISABLEMENT ASSN,289.92,MH LTS 18-64,SUPPORTED LIVING,2102974409,1000011698
03.07.2019,ADULT SOCIAL CARE,SWK DISABLEMENT ASSN,289.92,MH LTS 18-64,SUPPORTED LIVING,2102974410,1000011698
03.07.2019,ADULT SOCIAL CARE,SWK DISABLEMENT ASSN,289.92,MH LTS 18-64,SUPPORTED LIVING,2102974412,1000011698
03.07.2019,ADULT SOCIAL CARE,SWK DISABLEMENT ASSN,362.4,MH LTS 18-64,SUPPORTED LIVING,2102974418,1000011698
03.07.2019,ADULT SOCIAL CARE,SWK DISABLEMENT ASSN,398.64,MH LTS 18-64,SUPPORTED LIVING,2102974374,1000011698
03.07.2019,ADULT SOCIAL CARE,SWK DISABLEMENT ASSN,434.88,MH LTS 18-64,SUPPORTED LIVING,2102974413,1000011698
03.07.2019,ADULT SOCIAL CARE,SWK DISABLEMENT ASSN,453,MH LTS 18-64,SUPPORTED LIVING,2102974426,1000011698
03.07.2019,ADULT SOCIAL CARE,SWK DISABLEMENT ASSN,471.12,MH LTS 18-64,SUPPORTED LIVING,2102974423,1000011698
03.07.2019,ADULT SOCIAL CARE,SWK DISABLEMENT ASSN,"1,340.88",MH LTS 18-64,SUPPORTED LIVING,2102974379,1000011698
03.07.2019,ADULT SOCIAL CARE,SWK DISABLEMENT ASSN,289.92,PHY LTS 65+,HOMECARE - SPOT,2102974415,1000011698
03.07.2019,ADULT SOCIAL CARE,FOUR SEASONS 2000 LTD,"1,659.95",PHY LTS 65+,"MAND STATUTORY CHARGES, NURSING",2102727452,1000075632
03.07.2019,ADULT SOCIAL CARE,FOUR SEASONS 2000 LTD,"-6,575.51",PHY LTS 65+,NURSING PLACEMENTS FEES,2102727453,1000075632
03.07.2019,CENTRAL FUNCTIONS,BLUE CHIP TECHNOLOGIES LTD,"1,692.50",GARAGE REPAIRS,EQUIPMENT PURCHASE & REPAIR,5902366158,1000077837
03.07.2019,CENTRAL FUNCTIONS,VEOLIA ES (UK)LTD,"15,282.87",HEATING ACCOUNT,GAS,5902366106,1824835
03.07.2019,CENTRAL FUNCTIONS,BCS (ELECTRICAL & BUILDING SERVICES LTD),"1,400.00",LEDBURY ESTATE,MISCELLANEOUS EXPENSES,5902366280,1000062321
03.07.2019,CENTRAL FUNCTIONS,BCS (ELECTRICAL & BUILDING SERVICES LTD),"1,400.00",LEDBURY ESTATE,MISCELLANEOUS EXPENSES,5902366280,1000062321
03.07.2019,CENTRAL FUNCTIONS,BCS (ELECTRICAL & BUILDING SERVICES LTD),"1,400.00",LEDBURY ESTATE,MISCELLANEOUS EXPENSES,5902366280,1000062321
03.07.2019,CENTRAL FUNCTIONS,BCS (ELECTRICAL & BUILDING SERVICES LTD),"1,400.00",LEDBURY ESTATE,MISCELLANEOUS EXPENSES,5902366280,1000062321
03.07.2019,CENTRAL FUNCTIONS,BLUE CHIP TECHNOLOGIES LTD,"2,479.88",OPERATIONAL TEAM,EQUIPMENT PURCHASE & REPAIR,5902366158,1000077837
03.07.2019,CENTRAL FUNCTIONS,WINKWORTH FRANCHISING LTD,"3,375.00",SERVICE LEVEL AGREEMENTS,LEGAL FEES & COURT COSTS,2102974446,1000067987
03.07.2019,CHIEF EXECUTIVE,STANBURY BUILDING SERVICES LTD,450,CAPITAL PS (REGEN),CONSTRUCTION,2102974451,3000001967
03.07.2019,CHIEF EXECUTIVE,MACKENZIE ASSOCIATES,"2,550.00",CAPITAL PS (REGEN),CONSTRUCTION FEES,5902366286,1000082710
03.07.2019,CHIEF EXECUTIVE,HAYATSU ARCHITECTS LTD,"6,000.00",CAPITAL PS (REGEN),CONSTRUCTION FEES,5902366264,1000082843
03.07.2019,CHIEF EXECUTIVE,STANDAGE & CO LTD,"1,052.01",CAPITAL PS (REGEN),CONSTRUCTION MAIN CONTRACT -CERTIFICATED,2102973387,4002817
03.07.2019,CHIEF EXECUTIVE'S OFFICE,BAS CONSULTANCY LTD,"3,800.00",BUSINESS SUPPORT,GRANTS,5902366278,1000082570
03.07.2019,CHIEF EXECUTIVE'S OFFICE,RED R DESIGN,275,CHIEF EXEC'S OFFICE,MARKETING & PUBLICITY SERVICES,5902366308,1000035984
03.07.2019,CHIEF EXECUTIVE'S OFFICE,INTERSERVE (FACILITIES MANAGEMENT),"3,161.97",CHIEF EXEC'S OFFICE,RENTS,2102974438,3000000166
03.07.2019,CHIEF EXECUTIVE'S OFFICE,BUREAU VAN DIJK ELECTRONIC PUBLISHING LTD,"11,024.00",CHIEF EXEC'S OFFICE,SUBSCRIPTIONS,5902366304,1000077874
03.07.2019,CHILDREN'S,DRAINAGE TECHNICAL SERVICES LTD,"8,475.00",CAPITAL PS (EDUCATION),CONSTRUCTION FEES,5902366282,1000075790
03.07.2019,CHILDREN'S SERVICES,REDACTED PERSONAL DATA,251.12,ADOPTION PLACEMENTS & INTER AGENCY,PAYMENTS TO CARERS,REDACTED,REDACTED
03.07.2019,CHILDREN'S SERVICES,REDACTED PERSONAL DATA,251.94,ADOPTION PLACEMENTS & INTER AGENCY,PAYMENTS TO CARERS,REDACTED,REDACTED
03.07.2019,CHILDREN'S SERVICES,REDACTED PERSONAL DATA,252.9,ADOPTION PLACEMENTS & INTER AGENCY,PAYMENTS TO CARERS,REDACTED,REDACTED
03.07.2019,CHILDREN'S SERVICES,REDACTED PERSONAL DATA,253.56,ADOPTION PLACEMENTS & INTER AGENCY,PAYMENTS TO CARERS,REDACTED,REDACTED
03.07.2019,CHILDREN'S SERVICES,REDACTED PERSONAL DATA,255.22,ADOPTION PLACEMENTS & INTER AGENCY,PAYMENTS TO CARERS,REDACTED,REDACTED
03.07.2019,CHILDREN'S SERVICES,REDACTED PERSONAL DATA,255.22,ADOPTION PLACEMENTS & INTER AGENCY,PAYMENTS TO CARERS,REDACTED,REDACTED
03.07.2019,CHILDREN'S SERVICES,REDACTED PERSONAL DATA,262.44,ADOPTION PLACEMENTS & INTER AGENCY,PAYMENTS TO CARERS,REDACTED,REDACTED
03.07.2019,CHILDREN'S SERVICES,REDACTED PERSONAL DATA,282.76,ADOPTION PLACEMENTS & INTER AGENCY,PAYMENTS TO CARERS,REDACTED,REDACTED
03.07.2019,CHILDREN'S SERVICES,REDACTED PERSONAL DATA,293.98,ADOPTION PLACEMENTS & INTER AGENCY,PAYMENTS TO CARERS,REDACTED,REDACTED
03.07.2019,CHILDREN'S SERVICES,REDACTED PERSONAL DATA,333.76,ADOPTION PLACEMENTS & INTER AGENCY,PAYMENTS TO CARERS,REDACTED,REDACTED
03.07.2019,CHILDREN'S SERVICES,REDACTED PERSONAL DATA,359.44,ADOPTION PLACEMENTS & INTER AGENCY,PAYMENTS TO CARERS,REDACTED,REDACTED
03.07.2019,CHILDREN'S SERVICES,REDACTED PERSONAL DATA,368.52,ADOPTION PLACEMENTS & INTER AGENCY,PAYMENTS TO CARERS,REDACTED,REDACTED
03.07.2019,CHILDREN'S SERVICES,REDACTED PERSONAL DATA,375.54,ADOPTION PLACEMENTS & INTER AGENCY,PAYMENTS TO CARERS,REDACTED,REDACTED
03.07.2019,CHILDREN'S SERVICES,REDACTED PERSONAL DATA,375.54,ADOPTION PLACEMENTS & INTER AGENCY,PAYMENTS TO CARERS,REDACTED,REDACTED
03.07.2019,CHILDREN'S SERVICES,REDACTED PERSONAL DATA,375.54,ADOPTION PLACEMENTS & INTER AGENCY,PAYMENTS TO CARERS,REDACTED,REDACTED
03.07.2019,CHILDREN'S SERVICES,REDACTED PERSONAL DATA,375.54,ADOPTION PLACEMENTS & INTER AGENCY,PAYMENTS TO CARERS,REDACTED,REDACTED
03.07.2019,CHILDREN'S SERVICES,REDACTED PERSONAL DATA,375.54,ADOPTION PLACEMENTS & INTER AGENCY,PAYMENTS TO CARERS,REDACTED,REDACTED
03.07.2019,CHILDREN'S SERVICES,REDACTED PERSONAL DATA,375.54,ADOPTION PLACEMENTS & INTER AGENCY,PAYMENTS TO CARERS,REDACTED,REDACTED
03.07.2019,CHILDREN'S SERVICES,REDACTED PERSONAL DATA,375.54,ADOPTION PLACEMENTS & INTER AGENCY,PAYMENTS TO CARERS,REDACTED,REDACTED
03.07.2019,CHILDREN'S SERVICES,REDACTED PERSONAL DATA,375.54,ADOPTION PLACEMENTS & INTER AGENCY,PAYMENTS TO CARERS,REDACTED,REDACTED
03.07.2019,CHILDREN'S SERVICES,REDACTED PERSONAL DATA,375.54,ADOPTION PLACEMENTS & INTER AGENCY,PAYMENTS TO CARERS,REDACTED,REDACTED
03.07.2019,CHILDREN'S SERVICES,REDACTED PERSONAL DATA,382.3,ADOPTION PLACEMENTS & INTER AGENCY,PAYMENTS TO CARERS,REDACTED,REDACTED
03.07.2019,CHILDREN'S SERVICES,REDACTED PERSONAL DATA,382.3,ADOPTION PLACEMENTS & INTER AGENCY,PAYMENTS TO CARERS,REDACTED,REDACTED
03.07.2019,CHILDREN'S SERVICES,REDACTED PERSONAL DATA,382.3,ADOPTION PLACEMENTS & INTER AGENCY,PAYMENTS TO CARERS,REDACTED,REDACTED
03.07.2019,CHILDREN'S SERVICES,REDACTED PERSONAL DATA,382.3,ADOPTION PLACEMENTS & INTER AGENCY,PAYMENTS TO CARERS,REDACTED,REDACTED
03.07.2019,CHILDREN'S SERVICES,REDACTED PERSONAL DATA,386,ADOPTION PLACEMENTS & INTER AGENCY,PAYMENTS TO CARERS,REDACTED,REDACTED
03.07.2019,CHILDREN'S SERVICES,REDACTED PERSONAL DATA,400.18,ADOPTION PLACEMENTS & INTER AGENCY,PAYMENTS TO CARERS,REDACTED,REDACTED
03.07.2019,CHILDREN'S SERVICES,REDACTED PERSONAL DATA,400.84,ADOPTION PLACEMENTS & INTER AGENCY,PAYMENTS TO CARERS,REDACTED,REDACTED
03.07.2019,CHILDREN'S SERVICES,REDACTED PERSONAL DATA,400.84,ADOPTION PLACEMENTS & INTER AGENCY,PAYMENTS TO CARERS,REDACTED,REDACTED
03.07.2019,CHILDREN'S SERVICES,REDACTED PERSONAL DATA,404.46,ADOPTION PLACEMENTS & INTER AGENCY,PAYMENTS TO CARERS,REDACTED,REDACTED
03.07.2019,CHILDREN'S SERVICES,REDACTED PERSONAL DATA,451.8,ADOPTION PLACEMENTS & INTER AGENCY,PAYMENTS TO CARERS,REDACTED,REDACTED
03.07.2019,CHILDREN'S SERVICES,REDACTED PERSONAL DATA,457.14,ADOPTION PLACEMENTS & INTER AGENCY,PAYMENTS TO CARERS,REDACTED,REDACTED
03.07.2019,CHILDREN'S SERVICES,REDACTED PERSONAL DATA,465.48,ADOPTION PLACEMENTS & INTER AGENCY,PAYMENTS TO CARERS,REDACTED,REDACTED
03.07.2019,CHILDREN'S SERVICES,REDACTED PERSONAL DATA,465.52,ADOPTION PLACEMENTS & INTER AGENCY,PAYMENTS TO CARERS,REDACTED,REDACTED
03.07.2019,CHILDREN'S SERVICES,REDACTED PERSONAL DATA,465.54,ADOPTION PLACEMENTS & INTER AGENCY,PAYMENTS TO CARERS,REDACTED,REDACTED
03.07.2019,CHILDREN'S SERVICES,REDACTED PERSONAL DATA,465.54,ADOPTION PLACEMENTS & INTER AGENCY,PAYMENTS TO CARERS,REDACTED,REDACTED
03.07.2019,CHILDREN'S SERVICES,REDACTED PERSONAL DATA,465.54,ADOPTION PLACEMENTS & INTER AGENCY,PAYMENTS TO CARERS,REDACTED,REDACTED
03.07.2019,CHILDREN'S SERVICES,REDACTED PERSONAL DATA,465.54,ADOPTION PLACEMENTS & INTER AGENCY,PAYMENTS TO CARERS,REDACTED,REDACTED
03.07.2019,CHILDREN'S SERVICES,REDACTED PERSONAL DATA,484.92,ADOPTION PLACEMENTS & INTER AGENCY,PAYMENTS TO CARERS,REDACTED,REDACTED
03.07.2019,CHILDREN'S SERVICES,REDACTED PERSONAL DATA,485.22,ADOPTION PLACEMENTS & INTER AGENCY,PAYMENTS TO CARERS,REDACTED,REDACTED
03.07.2019,CHILDREN'S SERVICES,REDACTED PERSONAL DATA,500,ADOPTION PLACEMENTS & INTER AGENCY,PAYMENTS TO CARERS,REDACTED,REDACTED
03.07.2019,CHILDREN'S SERVICES,REDACTED PERSONAL DATA,502,ADOPTION PLACEMENTS & INTER AGENCY,PAYMENTS TO CARERS,REDACTED,REDACTED
03.07.2019,CHILDREN'S SERVICES,REDACTED PERSONAL DATA,512.02,ADOPTION PLACEMENTS & INTER AGENCY,PAYMENTS TO CARERS,REDACTED,REDACTED
03.07.2019,CHILDREN'S SERVICES,REDACTED PERSONAL DATA,530,ADOPTION PLACEMENTS & INTER AGENCY,PAYMENTS TO CARERS,REDACTED,REDACTED
03.07.2019,CHILDREN'S SERVICES,REDACTED PERSONAL DATA,552.16,ADOPTION PLACEMENTS & INTER AGENCY,PAYMENTS TO CARERS,REDACTED,REDACTED
03.07.2019,CHILDREN'S SERVICES,REDACTED PERSONAL DATA,559.06,ADOPTION PLACEMENTS & INTER AGENCY,PAYMENTS TO CARERS,REDACTED,REDACTED
03.07.2019,CHILDREN'S SERVICES,REDACTED PERSONAL DATA,588.42,ADOPTION PLACEMENTS & INTER AGENCY,PAYMENTS TO CARERS,REDACTED,REDACTED
03.07.2019,CHILDREN'S SERVICES,REDACTED PERSONAL DATA,623.94,ADOPTION PLACEMENTS & INTER AGENCY,PAYMENTS TO CARERS,REDACTED,REDACTED
03.07.2019,CHILDREN'S SERVICES,REDACTED PERSONAL DATA,635.34,ADOPTION PLACEMENTS & INTER AGENCY,PAYMENTS TO CARERS,REDACTED,REDACTED
03.07.2019,CHILDREN'S SERVICES,REDACTED PERSONAL DATA,640.9,ADOPTION PLACEMENTS & INTER AGENCY,PAYMENTS TO CARERS,REDACTED,REDACTED
03.07.2019,CHILDREN'S SERVICES,REDACTED PERSONAL DATA,652.9,ADOPTION PLACEMENTS & INTER AGENCY,PAYMENTS TO CARERS,REDACTED,REDACTED
03.07.2019,CHILDREN'S SERVICES,REDACTED PERSONAL DATA,652.9,ADOPTION PLACEMENTS & INTER AGENCY,PAYMENTS TO CARERS,REDACTED,REDACTED
03.07.2019,CHILDREN'S SERVICES,REDACTED PERSONAL DATA,653.06,ADOPTION PLACEMENTS & INTER AGENCY,PAYMENTS TO CARERS,REDACTED,REDACTED
03.07.2019,CHILDREN'S SERVICES,REDACTED PERSONAL DATA,682.3,ADOPTION PLACEMENTS & INTER AGENCY,PAYMENTS TO CARERS,REDACTED,REDACTED
03.07.2019,CHILDREN'S SERVICES,REDACTED PERSONAL DATA,682.3,ADOPTION PLACEMENTS & INTER AGENCY,PAYMENTS TO CARERS,REDACTED,REDACTED
03.07.2019,CHILDREN'S SERVICES,REDACTED PERSONAL DATA,695.04,ADOPTION PLACEMENTS & INTER AGENCY,PAYMENTS TO CARERS,REDACTED,REDACTED
03.07.2019,CHILDREN'S SERVICES,REDACTED PERSONAL DATA,695.12,ADOPTION PLACEMENTS & INTER AGENCY,PAYMENTS TO CARERS,REDACTED,REDACTED
03.07.2019,CHILDREN'S SERVICES,REDACTED PERSONAL DATA,705.24,ADOPTION PLACEMENTS & INTER AGENCY,PAYMENTS TO CARERS,REDACTED,REDACTED
03.07.2019,CHILDREN'S SERVICES,REDACTED PERSONAL DATA,712.3,ADOPTION PLACEMENTS & INTER AGENCY,PAYMENTS TO CARERS,REDACTED,REDACTED
03.07.2019,CHILDREN'S SERVICES,REDACTED PERSONAL DATA,717.14,ADOPTION PLACEMENTS & INTER AGENCY,PAYMENTS TO CARERS,REDACTED,REDACTED
03.07.2019,CHILDREN'S SERVICES,REDACTED PERSONAL DATA,738.32,ADOPTION PLACEMENTS & INTER AGENCY,PAYMENTS TO CARERS,REDACTED,REDACTED
03.07.2019,CHILDREN'S SERVICES,REDACTED PERSONAL DATA,767.68,ADOPTION PLACEMENTS & INTER AGENCY,PAYMENTS TO CARERS,REDACTED,REDACTED
03.07.2019,CHILDREN'S SERVICES,REDACTED PERSONAL DATA,777.36,ADOPTION PLACEMENTS & INTER AGENCY,PAYMENTS TO CARERS,REDACTED,REDACTED
03.07.2019,CHILDREN'S SERVICES,REDACTED PERSONAL DATA,854.28,ADOPTION PLACEMENTS & INTER AGENCY,PAYMENTS TO CARERS,REDACTED,REDACTED
03.07.2019,CHILDREN'S SERVICES,REDACTED PERSONAL DATA,908,ADOPTION PLACEMENTS & INTER AGENCY,PAYMENTS TO CARERS,REDACTED,REDACTED
03.07.2019,CHILDREN'S SERVICES,REDACTED PERSONAL DATA,"1,053.20",ADOPTION PLACEMENTS & INTER AGENCY,PAYMENTS TO CARERS,REDACTED,REDACTED
03.07.2019,CHILDREN'S SERVICES,NPOWER LTD,-942.43,AYLESBURY EARLY YEARS CENTRE,ELECTRICITY,5902366136,1000078994
03.07.2019,CHILDREN'S SERVICES,NPOWER LTD,-369.32,AYLESBURY EARLY YEARS CENTRE,ELECTRICITY,5902366131,1000078994
03.07.2019,CHILDREN'S SERVICES,NPOWER LTD,-310.75,AYLESBURY EARLY YEARS CENTRE,ELECTRICITY,5902366126,1000078994
03.07.2019,CHILDREN'S SERVICES,NPOWER LTD,365.9,AYLESBURY EARLY YEARS CENTRE,ELECTRICITY,5902366102,1000078994
03.07.2019,CHILDREN'S SERVICES,NPOWER LTD,405.85,AYLESBURY EARLY YEARS CENTRE,ELECTRICITY,5902366115,1000078994
03.07.2019,CHILDREN'S SERVICES,NPOWER LTD,747.87,AYLESBURY EARLY YEARS CENTRE,ELECTRICITY,5902366112,1000078994
03.07.2019,CHILDREN'S SERVICES,NPOWER LTD,"1,072.65",AYLESBURY EARLY YEARS CENTRE,ELECTRICITY,5902366103,1000078994
03.07.2019,CHILDREN'S SERVICES,NPOWER LTD,"1,127.91",AYLESBURY EARLY YEARS CENTRE,ELECTRICITY,5902366109,1000078994
03.07.2019,CHILDREN'S SERVICES,NPOWER LTD,"1,135.68",AYLESBURY EARLY YEARS CENTRE,ELECTRICITY,5902366104,1000078994
03.07.2019,CHILDREN'S SERVICES,NPOWER LTD,"1,193.44",AYLESBURY EARLY YEARS CENTRE,ELECTRICITY,5902366101,1000078994
03.07.2019,CHILDREN'S SERVICES,NPOWER LTD,"1,217.66",AYLESBURY EARLY YEARS CENTRE,ELECTRICITY,5902366105,1000078994
03.07.2019,CHILDREN'S SERVICES,NPOWER LTD,"2,436.64",AYLESBURY EARLY YEARS CENTRE,ELECTRICITY,5902366099,1000078994
03.07.2019,CHILDREN'S SERVICES,ISABELLE GRAVENSTEIN T/A REVIVAL,696,CENTRAL SUPPORT,OTHER PAYMENTS FOR CLIENTS,5902366314,1000027424
03.07.2019,CHILDREN'S SERVICES,REDACTED PERSONAL DATA,300,DISABILITY & HIV,ADDITIONAL PAYMENTS TO AGENCIES/CARERS,REDACTED,REDACTED
03.07.2019,CHILDREN'S SERVICES,REDACTED PERSONAL DATA,300,DISABILITY & HIV,ADDITIONAL PAYMENTS TO AGENCIES/CARERS,REDACTED,REDACTED
03.07.2019,CHILDREN'S SERVICES,REDACTED PERSONAL DATA,400,DISABILITY & HIV,ADDITIONAL PAYMENTS TO AGENCIES/CARERS,REDACTED,REDACTED
03.07.2019,CHILDREN'S SERVICES,REDACTED PERSONAL DATA,700,DISABILITY & HIV,ADDITIONAL PAYMENTS TO AGENCIES/CARERS,REDACTED,REDACTED
03.07.2019,CHILDREN'S SERVICES,REDACTED PERSONAL DATA,400,DISABILITY & HIV,COMPUTER CONSUMABLES,REDACTED,REDACTED
03.07.2019,CHILDREN'S SERVICES,REDACTED PERSONAL DATA,-820,DISABILITY & HIV,PAYMENTS TO CARERS,REDACTED,REDACTED
03.07.2019,CHILDREN'S SERVICES,REDACTED PERSONAL DATA,-777.85,DISABILITY & HIV,PAYMENTS TO CARERS,REDACTED,REDACTED
03.07.2019,CHILDREN'S SERVICES,REDACTED PERSONAL DATA,-665.34,DISABILITY & HIV,PAYMENTS TO CARERS,REDACTED,REDACTED
03.07.2019,CHILDREN'S SERVICES,REDACTED PERSONAL DATA,-542.57,DISABILITY & HIV,PAYMENTS TO CARERS,REDACTED,REDACTED
03.07.2019,CHILDREN'S SERVICES,REDACTED PERSONAL DATA,-500,DISABILITY & HIV,PAYMENTS TO CARERS,REDACTED,REDACTED
03.07.2019,CHILDREN'S SERVICES,REDACTED PERSONAL DATA,-410,DISABILITY & HIV,PAYMENTS TO CARERS,REDACTED,REDACTED
03.07.2019,CHILDREN'S SERVICES,REDACTED PERSONAL DATA,-351.43,DISABILITY & HIV,PAYMENTS TO CARERS,REDACTED,REDACTED
03.07.2019,CHILDREN'S SERVICES,REDACTED PERSONAL DATA,-351.43,DISABILITY & HIV,PAYMENTS TO CARERS,REDACTED,REDACTED
03.07.2019,CHILDREN'S SERVICES,REDACTED PERSONAL DATA,-338,DISABILITY & HIV,PAYMENTS TO CARERS,REDACTED,REDACTED
03.07.2019,CHILDREN'S SERVICES,REDACTED PERSONAL DATA,-300,DISABILITY & HIV,PAYMENTS TO CARERS,REDACTED,REDACTED
03.07.2019,CHILDREN'S SERVICES,REDACTED PERSONAL DATA,-299,DISABILITY & HIV,PAYMENTS TO CARERS,REDACTED,REDACTED
03.07.2019,CHILDREN'S SERVICES,REDACTED PERSONAL DATA,-259.29,DISABILITY & HIV,PAYMENTS TO CARERS,REDACTED,REDACTED
03.07.2019,CHILDREN'S SERVICES,REDACTED PERSONAL DATA,259.28,DISABILITY & HIV,PAYMENTS TO CARERS,REDACTED,REDACTED
03.07.2019,CHILDREN'S SERVICES,REDACTED PERSONAL DATA,259.28,DISABILITY & HIV,PAYMENTS TO CARERS,REDACTED,REDACTED
03.07.2019,CHILDREN'S SERVICES,REDACTED PERSONAL DATA,259.29,DISABILITY & HIV,PAYMENTS TO CARERS,REDACTED,REDACTED
03.07.2019,CHILDREN'S SERVICES,REDACTED PERSONAL DATA,322.86,DISABILITY & HIV,PAYMENTS TO CARERS,REDACTED,REDACTED
03.07.2019,CHILDREN'S SERVICES,REDACTED PERSONAL DATA,400,DISABILITY & HIV,PAYMENTS TO CARERS,REDACTED,REDACTED
03.07.2019,CHILDREN'S SERVICES,REDACTED PERSONAL DATA,409.99,DISABILITY & HIV,PAYMENTS TO CARERS,REDACTED,REDACTED
03.07.2019,CHILDREN'S SERVICES,REDACTED PERSONAL DATA,410,DISABILITY & HIV,PAYMENTS TO CARERS,REDACTED,REDACTED
03.07.2019,CHILDREN'S SERVICES,REDACTED PERSONAL DATA,437,DISABILITY & HIV,PAYMENTS TO CARERS,REDACTED,REDACTED
03.07.2019,CHILDREN'S SERVICES,REDACTED PERSONAL DATA,516.57,DISABILITY & HIV,PAYMENTS TO CARERS,REDACTED,REDACTED
03.07.2019,CHILDREN'S SERVICES,REDACTED PERSONAL DATA,646,DISABILITY & HIV,PAYMENTS TO CARERS,REDACTED,REDACTED
03.07.2019,CHILDREN'S SERVICES,REDACTED PERSONAL DATA,646,DISABILITY & HIV,PAYMENTS TO CARERS,REDACTED,REDACTED
03.07.2019,CHILDREN'S SERVICES,REDACTED PERSONAL DATA,646,DISABILITY & HIV,PAYMENTS TO CARERS,REDACTED,REDACTED
03.07.2019,CHILDREN'S SERVICES,REDACTED PERSONAL DATA,646,DISABILITY & HIV,PAYMENTS TO CARERS,REDACTED,REDACTED
03.07.2019,CHILDREN'S SERVICES,REDACTED PERSONAL DATA,646,DISABILITY & HIV,PAYMENTS TO CARERS,REDACTED,REDACTED
03.07.2019,CHILDREN'S SERVICES,REDACTED PERSONAL DATA,646,DISABILITY & HIV,PAYMENTS TO CARERS,REDACTED,REDACTED
03.07.2019,CHILDREN'S SERVICES,REDACTED PERSONAL DATA,660,DISABILITY & HIV,PAYMENTS TO CARERS,REDACTED,REDACTED
03.07.2019,CHILDREN'S SERVICES,REDACTED PERSONAL DATA,676,DISABILITY & HIV,PAYMENTS TO CARERS,REDACTED,REDACTED
03.07.2019,CHILDREN'S SERVICES,REDACTED PERSONAL DATA,676,DISABILITY & HIV,PAYMENTS TO CARERS,REDACTED,REDACTED
03.07.2019,CHILDREN'S SERVICES,REDACTED PERSONAL DATA,676,DISABILITY & HIV,PAYMENTS TO CARERS,REDACTED,REDACTED
03.07.2019,CHILDREN'S SERVICES,REDACTED PERSONAL DATA,676,DISABILITY & HIV,PAYMENTS TO CARERS,REDACTED,REDACTED
03.07.2019,CHILDREN'S SERVICES,REDACTED PERSONAL DATA,676,DISABILITY & HIV,PAYMENTS TO CARERS,REDACTED,REDACTED
03.07.2019,CHILDREN'S SERVICES,REDACTED PERSONAL DATA,676,DISABILITY & HIV,PAYMENTS TO CARERS,REDACTED,REDACTED
03.07.2019,CHILDREN'S SERVICES,REDACTED PERSONAL DATA,676,DISABILITY & HIV,PAYMENTS TO CARERS,REDACTED,REDACTED
03.07.2019,CHILDREN'S SERVICES,REDACTED PERSONAL DATA,676,DISABILITY & HIV,PAYMENTS TO CARERS,REDACTED,REDACTED
03.07.2019,CHILDREN'S SERVICES,REDACTED PERSONAL DATA,696,DISABILITY & HIV,PAYMENTS TO CARERS,REDACTED,REDACTED
03.07.2019,CHILDREN'S SERVICES,REDACTED PERSONAL DATA,696,DISABILITY & HIV,PAYMENTS TO CARERS,REDACTED,REDACTED
03.07.2019,CHILDREN'S SERVICES,REDACTED PERSONAL DATA,696,DISABILITY & HIV,PAYMENTS TO CARERS,REDACTED,REDACTED
03.07.2019,CHILDREN'S SERVICES,REDACTED PERSONAL DATA,696,DISABILITY & HIV,PAYMENTS TO CARERS,REDACTED,REDACTED
03.07.2019,CHILDREN'S SERVICES,REDACTED PERSONAL DATA,696,DISABILITY & HIV,PAYMENTS TO CARERS,REDACTED,REDACTED
03.07.2019,CHILDREN'S SERVICES,REDACTED PERSONAL DATA,706,DISABILITY & HIV,PAYMENTS TO CARERS,REDACTED,REDACTED
03.07.2019,CHILDREN'S SERVICES,REDACTED PERSONAL DATA,712.3,DISABILITY & HIV,PAYMENTS TO CARERS,REDACTED,REDACTED
03.07.2019,CHILDREN'S SERVICES,REDACTED PERSONAL DATA,726,DISABILITY & HIV,PAYMENTS TO CARERS,REDACTED,REDACTED
03.07.2019,CHILDREN'S SERVICES,REDACTED PERSONAL DATA,726,DISABILITY & HIV,PAYMENTS TO CARERS,REDACTED,REDACTED
03.07.2019,CHILDREN'S SERVICES,REDACTED PERSONAL DATA,726,DISABILITY & HIV,PAYMENTS TO CARERS,REDACTED,REDACTED
03.07.2019,CHILDREN'S SERVICES,REDACTED PERSONAL DATA,726,DISABILITY & HIV,PAYMENTS TO CARERS,REDACTED,REDACTED
03.07.2019,CHILDREN'S SERVICES,REDACTED PERSONAL DATA,726,DISABILITY & HIV,PAYMENTS TO CARERS,REDACTED,REDACTED
03.07.2019,CHILDREN'S SERVICES,REDACTED PERSONAL DATA,726,DISABILITY & HIV,PAYMENTS TO CARERS,REDACTED,REDACTED
03.07.2019,CHILDREN'S SERVICES,REDACTED PERSONAL DATA,726,DISABILITY & HIV,PAYMENTS TO CARERS,REDACTED,REDACTED
03.07.2019,CHILDREN'S SERVICES,REDACTED PERSONAL DATA,726,DISABILITY & HIV,PAYMENTS TO CARERS,REDACTED,REDACTED
03.07.2019,CHILDREN'S SERVICES,REDACTED PERSONAL DATA,726,DISABILITY & HIV,PAYMENTS TO CARERS,REDACTED,REDACTED
03.07.2019,CHILDREN'S SERVICES,REDACTED PERSONAL DATA,726,DISABILITY & HIV,PAYMENTS TO CARERS,REDACTED,REDACTED
03.07.2019,CHILDREN'S SERVICES,REDACTED PERSONAL DATA,726,DISABILITY & HIV,PAYMENTS TO CARERS,REDACTED,REDACTED
03.07.2019,CHILDREN'S SERVICES,REDACTED PERSONAL DATA,726,DISABILITY & HIV,PAYMENTS TO CARERS,REDACTED,REDACTED
03.07.2019,CHILDREN'S SERVICES,REDACTED PERSONAL DATA,726,DISABILITY & HIV,PAYMENTS TO CARERS,REDACTED,REDACTED
03.07.2019,CHILDREN'S SERVICES,REDACTED PERSONAL DATA,726,DISABILITY & HIV,PAYMENTS TO CARERS,REDACTED,REDACTED
03.07.2019,CHILDREN'S SERVICES,REDACTED PERSONAL DATA,726,DISABILITY & HIV,PAYMENTS TO CARERS,REDACTED,REDACTED
03.07.2019,CHILDREN'S SERVICES,REDACTED PERSONAL DATA,776.08,DISABILITY & HIV,PAYMENTS TO CARERS,REDACTED,REDACTED
03.07.2019,CHILDREN'S SERVICES,REDACTED PERSONAL DATA,776.08,DISABILITY & HIV,PAYMENTS TO CARERS,REDACTED,REDACTED
03.07.2019,CHILDREN'S SERVICES,REDACTED PERSONAL DATA,784,DISABILITY & HIV,PAYMENTS TO CARERS,REDACTED,REDACTED
03.07.2019,CHILDREN'S SERVICES,REDACTED PERSONAL DATA,784,DISABILITY & HIV,PAYMENTS TO CARERS,REDACTED,REDACTED
03.07.2019,CHILDREN'S SERVICES,REDACTED PERSONAL DATA,784,DISABILITY & HIV,PAYMENTS TO CARERS,REDACTED,REDACTED
03.07.2019,CHILDREN'S SERVICES,REDACTED PERSONAL DATA,790,DISABILITY & HIV,PAYMENTS TO CARERS,REDACTED,REDACTED
03.07.2019,CHILDREN'S SERVICES,REDACTED PERSONAL DATA,790,DISABILITY & HIV,PAYMENTS TO CARERS,REDACTED,REDACTED
03.07.2019,CHILDREN'S SERVICES,REDACTED PERSONAL DATA,790,DISABILITY & HIV,PAYMENTS TO CARERS,REDACTED,REDACTED
03.07.2019,CHILDREN'S SERVICES,REDACTED PERSONAL DATA,790,DISABILITY & HIV,PAYMENTS TO CARERS,REDACTED,REDACTED
03.07.2019,CHILDREN'S SERVICES,REDACTED PERSONAL DATA,790,DISABILITY & HIV,PAYMENTS TO CARERS,REDACTED,REDACTED
03.07.2019,CHILDREN'S SERVICES,REDACTED PERSONAL DATA,790,DISABILITY & HIV,PAYMENTS TO CARERS,REDACTED,REDACTED
03.07.2019,CHILDREN'S SERVICES,REDACTED PERSONAL DATA,790,DISABILITY & HIV,PAYMENTS TO CARERS,REDACTED,REDACTED
03.07.2019,CHILDREN'S SERVICES,REDACTED PERSONAL DATA,790,DISABILITY & HIV,PAYMENTS TO CARERS,REDACTED,REDACTED
03.07.2019,CHILDREN'S SERVICES,REDACTED PERSONAL DATA,790,DISABILITY & HIV,PAYMENTS TO CARERS,REDACTED,REDACTED
03.07.2019,CHILDREN'S SERVICES,REDACTED PERSONAL DATA,790,DISABILITY & HIV,PAYMENTS TO CARERS,REDACTED,REDACTED
03.07.2019,CHILDREN'S SERVICES,REDACTED PERSONAL DATA,790,DISABILITY & HIV,PAYMENTS TO CARERS,REDACTED,REDACTED
03.07.2019,CHILDREN'S SERVICES,REDACTED PERSONAL DATA,814,DISABILITY & HIV,PAYMENTS TO CARERS,REDACTED,REDACTED
03.07.2019,CHILDREN'S SERVICES,REDACTED PERSONAL DATA,814,DISABILITY & HIV,PAYMENTS TO CARERS,REDACTED,REDACTED
03.07.2019,CHILDREN'S SERVICES,REDACTED PERSONAL DATA,814,DISABILITY & HIV,PAYMENTS TO CARERS,REDACTED,REDACTED
03.07.2019,CHILDREN'S SERVICES,REDACTED PERSONAL DATA,814,DISABILITY & HIV,PAYMENTS TO CARERS,REDACTED,REDACTED
03.07.2019,CHILDREN'S SERVICES,REDACTED PERSONAL DATA,814,DISABILITY & HIV,PAYMENTS TO CARERS,REDACTED,REDACTED
03.07.2019,CHILDREN'S SERVICES,REDACTED PERSONAL DATA,814,DISABILITY & HIV,PAYMENTS TO CARERS,REDACTED,REDACTED
03.07.2019,CHILDREN'S SERVICES,REDACTED PERSONAL DATA,814,DISABILITY & HIV,PAYMENTS TO CARERS,REDACTED,REDACTED
03.07.2019,CHILDREN'S SERVICES,REDACTED PERSONAL DATA,814,DISABILITY & HIV,PAYMENTS TO CARERS,REDACTED,REDACTED
03.07.2019,CHILDREN'S SERVICES,REDACTED PERSONAL DATA,814,DISABILITY & HIV,PAYMENTS TO CARERS,REDACTED,REDACTED
03.07.2019,CHILDREN'S SERVICES,REDACTED PERSONAL DATA,814,DISABILITY & HIV,PAYMENTS TO CARERS,REDACTED,REDACTED
03.07.2019,CHILDREN'S SERVICES,REDACTED PERSONAL DATA,814,DISABILITY & HIV,PAYMENTS TO CARERS,REDACTED,REDACTED
03.07.2019,CHILDREN'S SERVICES,REDACTED PERSONAL DATA,814,DISABILITY & HIV,PAYMENTS TO CARERS,REDACTED,REDACTED
03.07.2019,CHILDREN'S SERVICES,REDACTED PERSONAL DATA,814,DISABILITY & HIV,PAYMENTS TO CARERS,REDACTED,REDACTED
03.07.2019,CHILDREN'S SERVICES,REDACTED PERSONAL DATA,814,DISABILITY & HIV,PAYMENTS TO CARERS,REDACTED,REDACTED
03.07.2019,CHILDREN'S SERVICES,REDACTED PERSONAL DATA,814,DISABILITY & HIV,PAYMENTS TO CARERS,REDACTED,REDACTED
03.07.2019,CHILDREN'S SERVICES,REDACTED PERSONAL DATA,814,DISABILITY & HIV,PAYMENTS TO CARERS,REDACTED,REDACTED
03.07.2019,CHILDREN'S SERVICES,REDACTED PERSONAL DATA,814,DISABILITY & HIV,PAYMENTS TO CARERS,REDACTED,REDACTED
03.07.2019,CHILDREN'S SERVICES,REDACTED PERSONAL DATA,814,DISABILITY & HIV,PAYMENTS TO CARERS,REDACTED,REDACTED
03.07.2019,CHILDREN'S SERVICES,REDACTED PERSONAL DATA,820,DISABILITY & HIV,PAYMENTS TO CARERS,REDACTED,REDACTED
03.07.2019,CHILDREN'S SERVICES,REDACTED PERSONAL DATA,820,DISABILITY & HIV,PAYMENTS TO CARERS,REDACTED,REDACTED
03.07.2019,CHILDREN'S SERVICES,REDACTED PERSONAL DATA,820,DISABILITY & HIV,PAYMENTS TO CARERS,REDACTED,REDACTED
03.07.2019,CHILDREN'S SERVICES,REDACTED PERSONAL DATA,820,DISABILITY & HIV,PAYMENTS TO CARERS,REDACTED,REDACTED
03.07.2019,CHILDREN'S SERVICES,REDACTED PERSONAL DATA,820,DISABILITY & HIV,PAYMENTS TO CARERS,REDACTED,REDACTED
03.07.2019,CHILDREN'S SERVICES,REDACTED PERSONAL DATA,820,DISABILITY & HIV,PAYMENTS TO CARERS,REDACTED,REDACTED
03.07.2019,CHILDREN'S SERVICES,REDACTED PERSONAL DATA,820,DISABILITY & HIV,PAYMENTS TO CARERS,REDACTED,REDACTED
03.07.2019,CHILDREN'S SERVICES,REDACTED PERSONAL DATA,820,DISABILITY & HIV,PAYMENTS TO CARERS,REDACTED,REDACTED
03.07.2019,CHILDREN'S SERVICES,REDACTED PERSONAL DATA,820,DISABILITY & HIV,PAYMENTS TO CARERS,REDACTED,REDACTED
03.07.2019,CHILDREN'S SERVICES,REDACTED PERSONAL DATA,820,DISABILITY & HIV,PAYMENTS TO CARERS,REDACTED,REDACTED
03.07.2019,CHILDREN'S SERVICES,REDACTED PERSONAL DATA,820,DISABILITY & HIV,PAYMENTS TO CARERS,REDACTED,REDACTED
03.07.2019,CHILDREN'S SERVICES,REDACTED PERSONAL DATA,820,DISABILITY & HIV,PAYMENTS TO CARERS,REDACTED,REDACTED
03.07.2019,CHILDREN'S SERVICES,REDACTED PERSONAL DATA,820,DISABILITY & HIV,PAYMENTS TO CARERS,REDACTED,REDACTED
03.07.2019,CHILDREN'S SERVICES,REDACTED PERSONAL DATA,820,DISABILITY & HIV,PAYMENTS TO CARERS,REDACTED,REDACTED
03.07.2019,CHILDREN'S SERVICES,REDACTED PERSONAL DATA,820,DISABILITY & HIV,PAYMENTS TO CARERS,REDACTED,REDACTED
03.07.2019,CHILDREN'S SERVICES,REDACTED PERSONAL DATA,820,DISABILITY & HIV,PAYMENTS TO CARERS,REDACTED,REDACTED
03.07.2019,CHILDREN'S SERVICES,REDACTED PERSONAL DATA,820,DISABILITY & HIV,PAYMENTS TO CARERS,REDACTED,REDACTED
03.07.2019,CHILDREN'S SERVICES,REDACTED PERSONAL DATA,820,DISABILITY & HIV,PAYMENTS TO CARERS,REDACTED,REDACTED
03.07.2019,CHILDREN'S SERVICES,REDACTED PERSONAL DATA,820,DISABILITY & HIV,PAYMENTS TO CARERS,REDACTED,REDACTED
03.07.2019,CHILDREN'S SERVICES,REDACTED PERSONAL DATA,820,DISABILITY & HIV,PAYMENTS TO CARERS,REDACTED,REDACTED
03.07.2019,CHILDREN'S SERVICES,REDACTED PERSONAL DATA,820,DISABILITY & HIV,PAYMENTS TO CARERS,REDACTED,REDACTED
03.07.2019,CHILDREN'S SERVICES,REDACTED PERSONAL DATA,820,DISABILITY & HIV,PAYMENTS TO CARERS,REDACTED,REDACTED
03.07.2019,CHILDREN'S SERVICES,REDACTED PERSONAL DATA,820,DISABILITY & HIV,PAYMENTS TO CARERS,REDACTED,REDACTED
03.07.2019,CHILDREN'S SERVICES,REDACTED PERSONAL DATA,820,DISABILITY & HIV,PAYMENTS TO CARERS,REDACTED,REDACTED
03.07.2019,CHILDREN'S SERVICES,REDACTED PERSONAL DATA,820,DISABILITY & HIV,PAYMENTS TO CARERS,REDACTED,REDACTED
03.07.2019,CHILDREN'S SERVICES,REDACTED PERSONAL DATA,820,DISABILITY & HIV,PAYMENTS TO CARERS,REDACTED,REDACTED
03.07.2019,CHILDREN'S SERVICES,REDACTED PERSONAL DATA,820,DISABILITY & HIV,PAYMENTS TO CARERS,REDACTED,REDACTED
03.07.2019,CHILDREN'S SERVICES,REDACTED PERSONAL DATA,820,DISABILITY & HIV,PAYMENTS TO CARERS,REDACTED,REDACTED
03.07.2019,CHILDREN'S SERVICES,REDACTED PERSONAL DATA,820,DISABILITY & HIV,PAYMENTS TO CARERS,REDACTED,REDACTED
03.07.2019,CHILDREN'S SERVICES,REDACTED PERSONAL DATA,820,DISABILITY & HIV,PAYMENTS TO CARERS,REDACTED,REDACTED
03.07.2019,CHILDREN'S SERVICES,REDACTED PERSONAL DATA,820,DISABILITY & HIV,PAYMENTS TO CARERS,REDACTED,REDACTED
03.07.2019,CHILDREN'S SERVICES,REDACTED PERSONAL DATA,820,DISABILITY & HIV,PAYMENTS TO CARERS,REDACTED,REDACTED
03.07.2019,CHILDREN'S SERVICES,REDACTED PERSONAL DATA,820,DISABILITY & HIV,PAYMENTS TO CARERS,REDACTED,REDACTED
03.07.2019,CHILDREN'S SERVICES,REDACTED PERSONAL DATA,820,DISABILITY & HIV,PAYMENTS TO CARERS,REDACTED,REDACTED
03.07.2019,CHILDREN'S SERVICES,REDACTED PERSONAL DATA,820,DISABILITY & HIV,PAYMENTS TO CARERS,REDACTED,REDACTED
03.07.2019,CHILDREN'S SERVICES,REDACTED PERSONAL DATA,820,DISABILITY & HIV,PAYMENTS TO CARERS,REDACTED,REDACTED
03.07.2019,CHILDREN'S SERVICES,REDACTED PERSONAL DATA,820,DISABILITY & HIV,PAYMENTS TO CARERS,REDACTED,REDACTED
03.07.2019,CHILDREN'S SERVICES,REDACTED PERSONAL DATA,820,DISABILITY & HIV,PAYMENTS TO CARERS,REDACTED,REDACTED
03.07.2019,CHILDREN'S SERVICES,REDACTED PERSONAL DATA,820,DISABILITY & HIV,PAYMENTS TO CARERS,REDACTED,REDACTED
03.07.2019,CHILDREN'S SERVICES,REDACTED PERSONAL DATA,820,DISABILITY & HIV,PAYMENTS TO CARERS,REDACTED,REDACTED
03.07.2019,CHILDREN'S SERVICES,REDACTED PERSONAL DATA,820,DISABILITY & HIV,PAYMENTS TO CARERS,REDACTED,REDACTED
03.07.2019,CHILDREN'S SERVICES,REDACTED PERSONAL DATA,820,DISABILITY & HIV,PAYMENTS TO CARERS,REDACTED,REDACTED
03.07.2019,CHILDREN'S SERVICES,REDACTED PERSONAL DATA,820,DISABILITY & HIV,PAYMENTS TO CARERS,REDACTED,REDACTED
03.07.2019,CHILDREN'S SERVICES,REDACTED PERSONAL DATA,820,DISABILITY & HIV,PAYMENTS TO CARERS,REDACTED,REDACTED
03.07.2019,CHILDREN'S SERVICES,REDACTED PERSONAL DATA,820,DISABILITY & HIV,PAYMENTS TO CARERS,REDACTED,REDACTED
03.07.2019,CHILDREN'S SERVICES,REDACTED PERSONAL DATA,820,DISABILITY & HIV,PAYMENTS TO CARERS,REDACTED,REDACTED
03.07.2019,CHILDREN'S SERVICES,REDACTED PERSONAL DATA,826.86,DISABILITY & HIV,PAYMENTS TO CARERS,REDACTED,REDACTED
03.07.2019,CHILDREN'S SERVICES,REDACTED PERSONAL DATA,850,DISABILITY & HIV,PAYMENTS TO CARERS,REDACTED,REDACTED
03.07.2019,CHILDREN'S SERVICES,REDACTED PERSONAL DATA,854.28,DISABILITY & HIV,PAYMENTS TO CARERS,REDACTED,REDACTED
03.07.2019,CHILDREN'S SERVICES,REDACTED PERSONAL DATA,874,DISABILITY & HIV,PAYMENTS TO CARERS,REDACTED,REDACTED
03.07.2019,CHILDREN'S SERVICES,REDACTED PERSONAL DATA,874,DISABILITY & HIV,PAYMENTS TO CARERS,REDACTED,REDACTED
03.07.2019,CHILDREN'S SERVICES,REDACTED PERSONAL DATA,874,DISABILITY & HIV,PAYMENTS TO CARERS,REDACTED,REDACTED
03.07.2019,CHILDREN'S SERVICES,REDACTED PERSONAL DATA,874,DISABILITY & HIV,PAYMENTS TO CARERS,REDACTED,REDACTED
03.07.2019,CHILDREN'S SERVICES,REDACTED PERSONAL DATA,874,DISABILITY & HIV,PAYMENTS TO CARERS,REDACTED,REDACTED
03.07.2019,CHILDREN'S SERVICES,REDACTED PERSONAL DATA,904,DISABILITY & HIV,PAYMENTS TO CARERS,REDACTED,REDACTED
03.07.2019,CHILDREN'S SERVICES,REDACTED PERSONAL DATA,904,DISABILITY & HIV,PAYMENTS TO CARERS,REDACTED,REDACTED
03.07.2019,CHILDREN'S SERVICES,REDACTED PERSONAL DATA,904,DISABILITY & HIV,PAYMENTS TO CARERS,REDACTED,REDACTED
03.07.2019,CHILDREN'S SERVICES,REDACTED PERSONAL DATA,904,DISABILITY & HIV,PAYMENTS TO CARERS,REDACTED,REDACTED
03.07.2019,CHILDREN'S SERVICES,REDACTED PERSONAL DATA,904,DISABILITY & HIV,PAYMENTS TO CARERS,REDACTED,REDACTED
03.07.2019,CHILDREN'S SERVICES,REDACTED PERSONAL DATA,904,DISABILITY & HIV,PAYMENTS TO CARERS,REDACTED,REDACTED
03.07.2019,CHILDREN'S SERVICES,REDACTED PERSONAL DATA,904,DISABILITY & HIV,PAYMENTS TO CARERS,REDACTED,REDACTED
03.07.2019,CHILDREN'S SERVICES,REDACTED PERSONAL DATA,904,DISABILITY & HIV,PAYMENTS TO CARERS,REDACTED,REDACTED
03.07.2019,CHILDREN'S SERVICES,REDACTED PERSONAL DATA,904,DISABILITY & HIV,PAYMENTS TO CARERS,REDACTED,REDACTED
03.07.2019,CHILDREN'S SERVICES,REDACTED PERSONAL DATA,904,DISABILITY & HIV,PAYMENTS TO CARERS,REDACTED,REDACTED
03.07.2019,CHILDREN'S SERVICES,REDACTED PERSONAL DATA,904,DISABILITY & HIV,PAYMENTS TO CARERS,REDACTED,REDACTED
03.07.2019,CHILDREN'S SERVICES,REDACTED PERSONAL DATA,904,DISABILITY & HIV,PAYMENTS TO CARERS,REDACTED,REDACTED
03.07.2019,CHILDREN'S SERVICES,REDACTED PERSONAL DATA,904,DISABILITY & HIV,PAYMENTS TO CARERS,REDACTED,REDACTED
03.07.2019,CHILDREN'S SERVICES,REDACTED PERSONAL DATA,904,DISABILITY & HIV,PAYMENTS TO CARERS,REDACTED,REDACTED
03.07.2019,CHILDREN'S SERVICES,REDACTED PERSONAL DATA,904,DISABILITY & HIV,PAYMENTS TO CARERS,REDACTED,REDACTED
03.07.2019,CHILDREN'S SERVICES,REDACTED PERSONAL DATA,904,DISABILITY & HIV,PAYMENTS TO CARERS,REDACTED,REDACTED
03.07.2019,CHILDREN'S SERVICES,REDACTED PERSONAL DATA,924.2,DISABILITY & HIV,PAYMENTS TO CARERS,REDACTED,REDACTED
03.07.2019,CHILDREN'S SERVICES,REDACTED PERSONAL DATA,934,DISABILITY & HIV,PAYMENTS TO CARERS,REDACTED,REDACTED
03.07.2019,CHILDREN'S SERVICES,REDACTED PERSONAL DATA,985.28,DISABILITY & HIV,PAYMENTS TO CARERS,REDACTED,REDACTED
03.07.2019,CHILDREN'S SERVICES,REDACTED PERSONAL DATA,985.28,DISABILITY & HIV,PAYMENTS TO CARERS,REDACTED,REDACTED
03.07.2019,CHILDREN'S SERVICES,REDACTED PERSONAL DATA,991.42,DISABILITY & HIV,PAYMENTS TO CARERS,REDACTED,REDACTED
03.07.2019,CHILDREN'S SERVICES,REDACTED PERSONAL DATA,991.42,DISABILITY & HIV,PAYMENTS TO CARERS,REDACTED,REDACTED
03.07.2019,CHILDREN'S SERVICES,REDACTED PERSONAL DATA,"1,094.60",DISABILITY & HIV,PAYMENTS TO CARERS,REDACTED,REDACTED
03.07.2019,CHILDREN'S SERVICES,REDACTED PERSONAL DATA,"1,094.60",DISABILITY & HIV,PAYMENTS TO CARERS,REDACTED,REDACTED
03.07.2019,CHILDREN'S SERVICES,REDACTED PERSONAL DATA,"1,185.00",DISABILITY & HIV,PAYMENTS TO CARERS,REDACTED,REDACTED
03.07.2019,CHILDREN'S SERVICES,REDACTED PERSONAL DATA,"1,522.86",DISABILITY & HIV,PAYMENTS TO CARERS,REDACTED,REDACTED
03.07.2019,CHILDREN'S SERVICES,REDACTED PERSONAL DATA,"1,534.43",DISABILITY & HIV,PAYMENTS TO CARERS,REDACTED,REDACTED
03.07.2019,CHILDREN'S SERVICES,REDACTED PERSONAL DATA,"1,564.29",DISABILITY & HIV,PAYMENTS TO CARERS,REDACTED,REDACTED
03.07.2019,CHILDREN'S SERVICES,REDACTED PERSONAL DATA,"1,633.46",DISABILITY & HIV,PAYMENTS TO CARERS,REDACTED,REDACTED
03.07.2019,CHILDREN'S SERVICES,REDACTED PERSONAL DATA,"1,700.00",DISABILITY & HIV,PAYMENTS TO CARERS,REDACTED,REDACTED
03.07.2019,CHILDREN'S SERVICES,REDACTED PERSONAL DATA,"1,700.00",DISABILITY & HIV,PAYMENTS TO CARERS,REDACTED,REDACTED
03.07.2019,CHILDREN'S SERVICES,REDACTED PERSONAL DATA,"1,956.86",DISABILITY & HIV,PAYMENTS TO CARERS,REDACTED,REDACTED
03.07.2019,CHILDREN'S SERVICES,REDACTED PERSONAL DATA,"2,229.85",DISABILITY & HIV,PAYMENTS TO CARERS,REDACTED,REDACTED
03.07.2019,CHILDREN'S SERVICES,REDACTED PERSONAL DATA,"2,618.57",DISABILITY & HIV,PAYMENTS TO CARERS,REDACTED,REDACTED
03.07.2019,CHILDREN'S SERVICES,REDACTED PERSONAL DATA,800,FRIENDS & FAMILY FOSTERING,ADDITIONAL PAYMENTS TO AGENCIES/CARERS,REDACTED,REDACTED
03.07.2019,CHILDREN'S SERVICES,REDACTED PERSONAL DATA,"1,846.00",FRIENDS & FAMILY FOSTERING,ADDITIONAL PAYMENTS TO AGENCIES/CARERS,REDACTED,REDACTED
03.07.2019,CHILDREN'S SERVICES,REDACTED PERSONAL DATA,"-2,046.90",FRIENDS & FAMILY FOSTERING,PAYMENTS TO CARERS,REDACTED,REDACTED
03.07.2019,CHILDREN'S SERVICES,REDACTED PERSONAL DATA,-400,FRIENDS & FAMILY FOSTERING,PAYMENTS TO CARERS,REDACTED,REDACTED
03.07.2019,CHILDREN'S SERVICES,REDACTED PERSONAL DATA,298,FRIENDS & FAMILY FOSTERING,PAYMENTS TO CARERS,REDACTED,REDACTED
03.07.2019,CHILDREN'S SERVICES,REDACTED PERSONAL DATA,298,FRIENDS & FAMILY FOSTERING,PAYMENTS TO CARERS,REDACTED,REDACTED
03.07.2019,CHILDREN'S SERVICES,REDACTED PERSONAL DATA,298,FRIENDS & FAMILY FOSTERING,PAYMENTS TO CARERS,REDACTED,REDACTED
03.07.2019,CHILDREN'S SERVICES,REDACTED PERSONAL DATA,335.34,FRIENDS & FAMILY FOSTERING,PAYMENTS TO CARERS,REDACTED,REDACTED
03.07.2019,CHILDREN'S SERVICES,REDACTED PERSONAL DATA,336,FRIENDS & FAMILY FOSTERING,PAYMENTS TO CARERS,REDACTED,REDACTED
03.07.2019,CHILDREN'S SERVICES,REDACTED PERSONAL DATA,336,FRIENDS & FAMILY FOSTERING,PAYMENTS TO CARERS,REDACTED,REDACTED
03.07.2019,CHILDREN'S SERVICES,REDACTED PERSONAL DATA,336,FRIENDS & FAMILY FOSTERING,PAYMENTS TO CARERS,REDACTED,REDACTED
03.07.2019,CHILDREN'S SERVICES,REDACTED PERSONAL DATA,336,FRIENDS & FAMILY FOSTERING,PAYMENTS TO CARERS,REDACTED,REDACTED
03.07.2019,CHILDREN'S SERVICES,REDACTED PERSONAL DATA,380,FRIENDS & FAMILY FOSTERING,PAYMENTS TO CARERS,REDACTED,REDACTED
03.07.2019,CHILDREN'S SERVICES,REDACTED PERSONAL DATA,380,FRIENDS & FAMILY FOSTERING,PAYMENTS TO CARERS,REDACTED,REDACTED
03.07.2019,CHILDREN'S SERVICES,REDACTED PERSONAL DATA,380,FRIENDS & FAMILY FOSTERING,PAYMENTS TO CARERS,REDACTED,REDACTED
03.07.2019,CHILDREN'S SERVICES,REDACTED PERSONAL DATA,380,FRIENDS & FAMILY FOSTERING,PAYMENTS TO CARERS,REDACTED,REDACTED
03.07.2019,CHILDREN'S SERVICES,REDACTED PERSONAL DATA,380,FRIENDS & FAMILY FOSTERING,PAYMENTS TO CARERS,REDACTED,REDACTED
03.07.2019,CHILDREN'S SERVICES,REDACTED PERSONAL DATA,382.3,FRIENDS & FAMILY FOSTERING,PAYMENTS TO CARERS,REDACTED,REDACTED
03.07.2019,CHILDREN'S SERVICES,REDACTED PERSONAL DATA,444,FRIENDS & FAMILY FOSTERING,PAYMENTS TO CARERS,REDACTED,REDACTED
03.07.2019,CHILDREN'S SERVICES,REDACTED PERSONAL DATA,476.08,FRIENDS & FAMILY FOSTERING,PAYMENTS TO CARERS,REDACTED,REDACTED
03.07.2019,CHILDREN'S SERVICES,REDACTED PERSONAL DATA,476.08,FRIENDS & FAMILY FOSTERING,PAYMENTS TO CARERS,REDACTED,REDACTED
03.07.2019,CHILDREN'S SERVICES,REDACTED PERSONAL DATA,476.08,FRIENDS & FAMILY FOSTERING,PAYMENTS TO CARERS,REDACTED,REDACTED
03.07.2019,CHILDREN'S SERVICES,REDACTED PERSONAL DATA,476.08,FRIENDS & FAMILY FOSTERING,PAYMENTS TO CARERS,REDACTED,REDACTED
03.07.2019,CHILDREN'S SERVICES,REDACTED PERSONAL DATA,476.08,FRIENDS & FAMILY FOSTERING,PAYMENTS TO CARERS,REDACTED,REDACTED
03.07.2019,CHILDREN'S SERVICES,REDACTED PERSONAL DATA,646,FRIENDS & FAMILY FOSTERING,PAYMENTS TO CARERS,REDACTED,REDACTED
03.07.2019,CHILDREN'S SERVICES,REDACTED PERSONAL DATA,682.3,FRIENDS & FAMILY FOSTERING,PAYMENTS TO CARERS,REDACTED,REDACTED
03.07.2019,CHILDREN'S SERVICES,REDACTED PERSONAL DATA,682.3,FRIENDS & FAMILY FOSTERING,PAYMENTS TO CARERS,REDACTED,REDACTED
03.07.2019,CHILDREN'S SERVICES,REDACTED PERSONAL DATA,682.3,FRIENDS & FAMILY FOSTERING,PAYMENTS TO CARERS,REDACTED,REDACTED
03.07.2019,CHILDREN'S SERVICES,REDACTED PERSONAL DATA,682.3,FRIENDS & FAMILY FOSTERING,PAYMENTS TO CARERS,REDACTED,REDACTED
03.07.2019,CHILDREN'S SERVICES,REDACTED PERSONAL DATA,682.3,FRIENDS & FAMILY FOSTERING,PAYMENTS TO CARERS,REDACTED,REDACTED
03.07.2019,CHILDREN'S SERVICES,REDACTED PERSONAL DATA,682.3,FRIENDS & FAMILY FOSTERING,PAYMENTS TO CARERS,REDACTED,REDACTED
03.07.2019,CHILDREN'S SERVICES,REDACTED PERSONAL DATA,682.3,FRIENDS & FAMILY FOSTERING,PAYMENTS TO CARERS,REDACTED,REDACTED
03.07.2019,CHILDREN'S SERVICES,REDACTED PERSONAL DATA,682.3,FRIENDS & FAMILY FOSTERING,PAYMENTS TO CARERS,REDACTED,REDACTED
03.07.2019,CHILDREN'S SERVICES,REDACTED PERSONAL DATA,682.3,FRIENDS & FAMILY FOSTERING,PAYMENTS TO CARERS,REDACTED,REDACTED
03.07.2019,CHILDREN'S SERVICES,REDACTED PERSONAL DATA,682.3,FRIENDS & FAMILY FOSTERING,PAYMENTS TO CARERS,REDACTED,REDACTED
03.07.2019,CHILDREN'S SERVICES,REDACTED PERSONAL DATA,696,FRIENDS & FAMILY FOSTERING,PAYMENTS TO CARERS,REDACTED,REDACTED
03.07.2019,CHILDREN'S SERVICES,REDACTED PERSONAL DATA,767.66,FRIENDS & FAMILY FOSTERING,PAYMENTS TO CARERS,REDACTED,REDACTED
03.07.2019,CHILDREN'S SERVICES,REDACTED PERSONAL DATA,776.08,FRIENDS & FAMILY FOSTERING,PAYMENTS TO CARERS,REDACTED,REDACTED
03.07.2019,CHILDREN'S SERVICES,REDACTED PERSONAL DATA,776.08,FRIENDS & FAMILY FOSTERING,PAYMENTS TO CARERS,REDACTED,REDACTED
03.07.2019,CHILDREN'S SERVICES,REDACTED PERSONAL DATA,776.08,FRIENDS & FAMILY FOSTERING,PAYMENTS TO CARERS,REDACTED,REDACTED
03.07.2019,CHILDREN'S SERVICES,REDACTED PERSONAL DATA,776.08,FRIENDS & FAMILY FOSTERING,PAYMENTS TO CARERS,REDACTED,REDACTED
03.07.2019,CHILDREN'S SERVICES,REDACTED PERSONAL DATA,776.08,FRIENDS & FAMILY FOSTERING,PAYMENTS TO CARERS,REDACTED,REDACTED
03.07.2019,CHILDREN'S SERVICES,REDACTED PERSONAL DATA,790,FRIENDS & FAMILY FOSTERING,PAYMENTS TO CARERS,REDACTED,REDACTED
03.07.2019,CHILDREN'S SERVICES,REDACTED PERSONAL DATA,790,FRIENDS & FAMILY FOSTERING,PAYMENTS TO CARERS,REDACTED,REDACTED
03.07.2019,CHILDREN'S SERVICES,REDACTED PERSONAL DATA,790,FRIENDS & FAMILY FOSTERING,PAYMENTS TO CARERS,REDACTED,REDACTED
03.07.2019,CHILDREN'S SERVICES,REDACTED PERSONAL DATA,874,FRIENDS & FAMILY FOSTERING,PAYMENTS TO CARERS,REDACTED,REDACTED
03.07.2019,CHILDREN'S SERVICES,REDACTED PERSONAL DATA,"3,160.00",FRIENDS & FAMILY FOSTERING,PAYMENTS TO CARERS,REDACTED,REDACTED
03.07.2019,CHILDREN'S SERVICES,REDACTED PERSONAL DATA,300,LEAVING CARE GRANT,OTHER PAYMENTS FOR CLIENTS,REDACTED,REDACTED
03.07.2019,CHILDREN'S SERVICES,REDACTED PERSONAL DATA,712.44,LEAVING CARE GRANT,OTHER PAYMENTS FOR CLIENTS,REDACTED,REDACTED
03.07.2019,CHILDREN'S SERVICES,REDACTED PERSONAL DATA,269.08,RESIDENCE ORDERS,PAYMENTS TO CARERS,REDACTED,REDACTED
03.07.2019,CHILDREN'S SERVICES,REDACTED PERSONAL DATA,276.1,RESIDENCE ORDERS,PAYMENTS TO CARERS,REDACTED,REDACTED
03.07.2019,CHILDREN'S SERVICES,PURPLE PEBBLES(CHILD CARE) SERVICES,"1,821.43",RESOURCE PANEL,OTHER PAYMENTS FOR CLIENTS,2102974351,1000070705
03.07.2019,CHILDREN'S SERVICES,YOUNG FUTURES,-874.2,S24 CLA,EXTERNAL AGENCIES AND BODIES,2102974352,1000059563
03.07.2019,CHILDREN'S SERVICES,YOUNG FUTURES,"2,142.90",S24 CLA,EXTERNAL AGENCIES AND BODIES,2102974356,1000059563
03.07.2019,CHILDREN'S SERVICES,CONSONANT LTD,"2,389.00",S24 CLA,EXTERNAL AGENCIES AND BODIES,5902366312,1000082830
03.07.2019,CHILDREN'S SERVICES,FUTURE FOUNDATIONS LTD,"2,554.28",S24 CLA,EXTERNAL AGENCIES AND BODIES,2102974360,1000063272
03.07.2019,CHILDREN'S SERVICES,FUTURE FOUNDATIONS LTD,"2,639.42",S24 CLA,EXTERNAL AGENCIES AND BODIES,2102974355,1000063272
03.07.2019,CHILDREN'S SERVICES,YOUNG FUTURES,"2,700.00",S24 CLA,EXTERNAL AGENCIES AND BODIES,2102974362,1000059563
03.07.2019,CHILDREN'S SERVICES,YOUNG FUTURES,"2,700.00",S24 CLA,EXTERNAL AGENCIES AND BODIES,2102974364,1000059563
03.07.2019,CHILDREN'S SERVICES,FUTURE FOUNDATIONS LTD,"2,809.71",S24 CLA,EXTERNAL AGENCIES AND BODIES,2102974353,1000063272
03.07.2019,CHILDREN'S SERVICES,YOUNG FUTURES,"3,582.81",S24 CLA,EXTERNAL AGENCIES AND BODIES,2102974354,1000059563
03.07.2019,CHILDREN'S SERVICES,YOUNG FUTURES,"3,814.20",S24 CLA,EXTERNAL AGENCIES AND BODIES,2102974361,1000059563
03.07.2019,CHILDREN'S SERVICES,YOUNG FUTURES,"2,700.00",SEMI INDEPENDENT,EXTERNAL AGENCIES AND BODIES,2102974363,1000059563
03.07.2019,CHILDREN'S SERVICES,YOUNG FUTURES,"7,928.40",SEMI INDEPENDENT,EXTERNAL AGENCIES AND BODIES,2102974349,1000059563
03.07.2019,CHILDREN'S SERVICES,YOUNG FUTURES,"7,928.40",SEMI INDEPENDENT,EXTERNAL AGENCIES AND BODIES,2102974350,1000059563
03.07.2019,CHILDREN'S SERVICES,REDACTED PERSONAL DATA,260,SEMI INDEPENDENT,OTHER PAYMENTS FOR CLIENTS,REDACTED,REDACTED
03.07.2019,CHILDREN'S SERVICES,REDACTED PERSONAL DATA,269.08,SPECIAL GUARDIANSHIP,PAYMENTS TO CARERS,REDACTED,REDACTED
03.07.2019,CHILDREN'S SERVICES,REDACTED PERSONAL DATA,269.08,SPECIAL GUARDIANSHIP,PAYMENTS TO CARERS,REDACTED,REDACTED
03.07.2019,CHILDREN'S SERVICES,REDACTED PERSONAL DATA,342.45,SPECIAL GUARDIANSHIP,PAYMENTS TO CARERS,REDACTED,REDACTED
03.07.2019,CHILDREN'S SERVICES,REDACTED PERSONAL DATA,343.05,SPECIAL GUARDIANSHIP,PAYMENTS TO CARERS,REDACTED,REDACTED
03.07.2019,CHILDREN'S SERVICES,REDACTED PERSONAL DATA,356.15,SPECIAL GUARDIANSHIP,PAYMENTS TO CARERS,REDACTED,REDACTED
03.07.2019,CHILDREN'S SERVICES,REDACTED PERSONAL DATA,388.04,SPECIAL GUARDIANSHIP,PAYMENTS TO CARERS,REDACTED,REDACTED
03.07.2019,CHILDREN'S SERVICES,REDACTED PERSONAL DATA,389.34,SPECIAL GUARDIANSHIP,PAYMENTS TO CARERS,REDACTED,REDACTED
03.07.2019,CHILDREN'S SERVICES,REDACTED PERSONAL DATA,395,SPECIAL GUARDIANSHIP,PAYMENTS TO CARERS,REDACTED,REDACTED
03.07.2019,CHILDREN'S SERVICES,REDACTED PERSONAL DATA,403.04,SPECIAL GUARDIANSHIP,PAYMENTS TO CARERS,REDACTED,REDACTED
03.07.2019,CHILDREN'S SERVICES,REDACTED PERSONAL DATA,525,SPECIAL GUARDIANSHIP,PAYMENTS TO CARERS,REDACTED,REDACTED
03.07.2019,CHILDREN'S SERVICES,REDACTED PERSONAL DATA,525,SPECIAL GUARDIANSHIP,PAYMENTS TO CARERS,REDACTED,REDACTED
03.07.2019,CHILDREN'S SERVICES,REDACTED PERSONAL DATA,525,SPECIAL GUARDIANSHIP,PAYMENTS TO CARERS,REDACTED,REDACTED
03.07.2019,CHILDREN'S SERVICES,INTEGRATED SERVICES PROGRAMME,"2,334.00",STAYING PUT,EXTERNAL AGENCIES AND BODIES,2102974365,1642068
03.07.2019,CHILDREN'S SERVICES,REDACTED PERSONAL DATA,-535.72,STAYING PUT,PAYMENTS TO CARERS,REDACTED,REDACTED
03.07.2019,CHILDREN'S SERVICES,REDACTED PERSONAL DATA,-500,STAYING PUT,PAYMENTS TO CARERS,REDACTED,REDACTED
03.07.2019,CHILDREN'S SERVICES,REDACTED PERSONAL DATA,373.46,STAYING PUT,PAYMENTS TO CARERS,REDACTED,REDACTED
03.07.2019,CHILDREN'S SERVICES,REDACTED PERSONAL DATA,430,STAYING PUT,PAYMENTS TO CARERS,REDACTED,REDACTED
03.07.2019,CHILDREN'S SERVICES,REDACTED PERSONAL DATA,500,STAYING PUT,PAYMENTS TO CARERS,REDACTED,REDACTED
03.07.2019,CHILDREN'S SERVICES,REDACTED PERSONAL DATA,500,STAYING PUT,PAYMENTS TO CARERS,REDACTED,REDACTED
03.07.2019,CHILDREN'S SERVICES,REDACTED PERSONAL DATA,500,STAYING PUT,PAYMENTS TO CARERS,REDACTED,REDACTED
03.07.2019,CHILDREN'S SERVICES,REDACTED PERSONAL DATA,500,STAYING PUT,PAYMENTS TO CARERS,REDACTED,REDACTED
03.07.2019,CHILDREN'S SERVICES,REDACTED PERSONAL DATA,500,STAYING PUT,PAYMENTS TO CARERS,REDACTED,REDACTED
03.07.2019,CHILDREN'S SERVICES,REDACTED PERSONAL DATA,500,STAYING PUT,PAYMENTS TO CARERS,REDACTED,REDACTED
03.07.2019,CHILDREN'S SERVICES,REDACTED PERSONAL DATA,500,STAYING PUT,PAYMENTS TO CARERS,REDACTED,REDACTED
03.07.2019,CHILDREN'S SERVICES,REDACTED PERSONAL DATA,500,STAYING PUT,PAYMENTS TO CARERS,REDACTED,REDACTED
03.07.2019,CHILDREN'S SERVICES,REDACTED PERSONAL DATA,500,STAYING PUT,PAYMENTS TO CARERS,REDACTED,REDACTED
03.07.2019,CHILDREN'S SERVICES,REDACTED PERSONAL DATA,500,STAYING PUT,PAYMENTS TO CARERS,REDACTED,REDACTED
03.07.2019,CHILDREN'S SERVICES,REDACTED PERSONAL DATA,500,STAYING PUT,PAYMENTS TO CARERS,REDACTED,REDACTED
03.07.2019,CHILDREN'S SERVICES,REDACTED PERSONAL DATA,500,STAYING PUT,PAYMENTS TO CARERS,REDACTED,REDACTED
03.07.2019,CHILDREN'S SERVICES,REDACTED PERSONAL DATA,500,STAYING PUT,PAYMENTS TO CARERS,REDACTED,REDACTED
03.07.2019,CHILDREN'S SERVICES,REDACTED PERSONAL DATA,500,STAYING PUT,PAYMENTS TO CARERS,REDACTED,REDACTED
03.07.2019,CHILDREN'S SERVICES,REDACTED PERSONAL DATA,500,STAYING PUT,PAYMENTS TO CARERS,REDACTED,REDACTED
03.07.2019,CHILDREN'S SERVICES,REDACTED PERSONAL DATA,500,STAYING PUT,PAYMENTS TO CARERS,REDACTED,REDACTED
03.07.2019,CHILDREN'S SERVICES,REDACTED PERSONAL DATA,500,STAYING PUT,PAYMENTS TO CARERS,REDACTED,REDACTED
03.07.2019,CHILDREN'S SERVICES,REDACTED PERSONAL DATA,500,STAYING PUT,PAYMENTS TO CARERS,REDACTED,REDACTED
03.07.2019,CHILDREN'S SERVICES,REDACTED PERSONAL DATA,500,STAYING PUT,PAYMENTS TO CARERS,REDACTED,REDACTED
03.07.2019,CHILDREN'S SERVICES,REDACTED PERSONAL DATA,500,STAYING PUT,PAYMENTS TO CARERS,REDACTED,REDACTED
03.07.2019,CHILDREN'S SERVICES,REDACTED PERSONAL DATA,500,STAYING PUT,PAYMENTS TO CARERS,REDACTED,REDACTED
03.07.2019,CHILDREN'S SERVICES,REDACTED PERSONAL DATA,500,STAYING PUT,PAYMENTS TO CARERS,REDACTED,REDACTED
03.07.2019,CHILDREN'S SERVICES,REDACTED PERSONAL DATA,500,STAYING PUT,PAYMENTS TO CARERS,REDACTED,REDACTED
03.07.2019,CHILDREN'S SERVICES,REDACTED PERSONAL DATA,500,STAYING PUT,PAYMENTS TO CARERS,REDACTED,REDACTED
03.07.2019,CHILDREN'S SERVICES,REDACTED PERSONAL DATA,500,STAYING PUT,PAYMENTS TO CARERS,REDACTED,REDACTED
03.07.2019,CHILDREN'S SERVICES,REDACTED PERSONAL DATA,500,STAYING PUT,PAYMENTS TO CARERS,REDACTED,REDACTED
03.07.2019,CHILDREN'S SERVICES,REDACTED PERSONAL DATA,600,STAYING PUT,PAYMENTS TO CARERS,REDACTED,REDACTED
03.07.2019,CHILDREN'S SERVICES,REDACTED PERSONAL DATA,700,STAYING PUT,PAYMENTS TO CARERS,REDACTED,REDACTED
03.07.2019,CHILDREN'S SERVICES,REDACTED PERSONAL DATA,700,STAYING PUT,PAYMENTS TO CARERS,REDACTED,REDACTED
03.07.2019,CHILDREN'S SERVICES,REDACTED PERSONAL DATA,750,STAYING PUT,PAYMENTS TO CARERS,REDACTED,REDACTED
03.07.2019,CHILDREN'S SERVICES,REDACTED PERSONAL DATA,798.12,STAYING PUT,PAYMENTS TO CARERS,REDACTED,REDACTED
03.07.2019,CHILDREN'S SERVICES,REDACTED PERSONAL DATA,814,STAYING PUT,PAYMENTS TO CARERS,REDACTED,REDACTED
03.07.2019,CHILDREN'S SERVICES,REDACTED PERSONAL DATA,"1,000.00",STAYING PUT,PAYMENTS TO CARERS,REDACTED,REDACTED
03.07.2019,CHILDREN'S SERVICES,REDACTED PERSONAL DATA,"1,379.08",STAYING PUT,PAYMENTS TO CARERS,REDACTED,REDACTED
03.07.2019,CHILDREN'S SERVICES,YOUNG FUTURES,-874.2,UASC SECTION 24,EXTERNAL AGENCIES AND BODIES,2102974357,1000059563
03.07.2019,CHILDREN'S SERVICES,FUTURE FOUNDATIONS LTD,"1,722.71",UASC SECTION 24,EXTERNAL AGENCIES AND BODIES,2102974358,1000063272
03.07.2019,CHILDREN'S SERVICES,YOUNG FUTURES,"2,142.90",UASC SECTION 24,EXTERNAL AGENCIES AND BODIES,2102974359,1000059563
03.07.2019,CHILDREN'S SERVICES,REDACTED PERSONAL DATA,300,UNACCOMPANIED ASYLUM CHILDREN 16-17,ADDITIONAL PAYMENTS TO AGENCIES/CARERS,REDACTED,REDACTED
03.07.2019,CUSTOMER EXPERIENCE HGF,INTERSERVE (FACILITIES MANAGEMENT),"24,557.69",CORONER'S,BUILDING R&M,2102973394,3000000166
03.07.2019,CUSTOMER EXPERIENCE HGF,TABRIS LTD,"10,800.00",HOMELESSNESS TRAINING ACADEMY,TRAINING,5902366242,1000080027
03.07.2019,CUSTOMER EXPERIENCE HGF,DENHAN INTERNATIONAL LIMITED,"26,178.50",NIGHTLY TA (NSC),EXTERNAL AGENCIES AND BODIES,5902366223,1000075567
03.07.2019,CUSTOMER EXPERIENCE HGF,NATIONWIDE ACCOMMODATION,"154,722.48",NIGHTLY TA (NSC),EXTERNAL AGENCIES AND BODIES,5902366310,1000076112
03.07.2019,CUSTOMER EXPERIENCE HGF,DENHAN PROPERTY SERVICES LTD,"171,820.84",PSL PLACEMENTS,EXTERNAL AGENCIES AND BODIES,5902366219,1000082464
03.07.2019,ENVIRONMENT AND LEISURE,STANBURY BUILDING SERVICES LTD,795,CAPITAL PS (LEISURE),CONST'N MAIN CONTRACT - NON CERTIFICATED,2102973388,3000001967
03.07.2019,ENVIRONMENT AND LEISURE,CJS PLANTS,945,CAPITAL PS (LEISURE),CONST'N MAIN CONTRACT - NON CERTIFICATED,5902366203,1000025370
03.07.2019,ENVIRONMENT AND LEISURE,CJS PLANTS,"1,045.00",CAPITAL PS (LEISURE),CONST'N MAIN CONTRACT - NON CERTIFICATED,5902366209,1000025370
03.07.2019,ENVIRONMENT AND LEISURE,CJS PLANTS,"1,140.00",CAPITAL PS (LEISURE),CONST'N MAIN CONTRACT - NON CERTIFICATED,5902366200,1000025370
03.07.2019,ENVIRONMENT AND LEISURE,CJS PLANTS,"1,175.00",CAPITAL PS (LEISURE),CONST'N MAIN CONTRACT - NON CERTIFICATED,5902365917,1000025370
03.07.2019,ENVIRONMENT AND LEISURE,CJS PLANTS,"11,400.00",CAPITAL PS (LEISURE),CONST'N MAIN CONTRACT - NON CERTIFICATED,5902366205,1000025370
03.07.2019,ENVIRONMENT AND LEISURE,HOBART PAVING COMPANY LTD,"2,600.00",CAPITAL PS (LEISURE),CONSTRUCTION FEES - INTERNAL,2102973393,3000001690
03.07.2019,ENVIRONMENT DIRECTORATE,HOWDENS JOINERY CO,420,DEPOT COSTS,MATERIALS,5902366107,1000027491
03.07.2019,ENVIRONMENT DIRECTORATE,PERFORMANCE CHEMICALS LTD,890.72,ESTATE CLEANING-GENERAL,MATERIALS,5902366309,1000037129
03.07.2019,ENVIRONMENT DIRECTORATE,THE INSTITUTE OF LIGHTING ENGINEERS,"1,430.00",HIGHWAY LIGHTING OVERHEADS,TRAINING,5902366306,1000037160
03.07.2019,ENVIRONMENT DIRECTORATE,THE INSTITUTE OF LIGHTING ENGINEERS,"1,430.00",HIGHWAY LIGHTING OVERHEADS,TRAINING,5902366306,1000037160
03.07.2019,ENVIRONMENT DIRECTORATE,THE INSTITUTE OF LIGHTING ENGINEERS,"1,430.00",HIGHWAY LIGHTING OVERHEADS,TRAINING,5902366306,1000037160
03.07.2019,ENVIRONMENT DIRECTORATE,CONWAY AECOM LTD,"315,013.73",HIGHWAY MAINTENANCE OVERHEADS,HIGHWAYS TERM CONTRACT,2102974449,3000001595
03.07.2019,ENVIRONMENT DIRECTORATE,SMITHY DECORATING,"7,196.39",SBS - HOLDING ACCOUNT,OTHER CONTRACTORS,2102974437,3000002050
03.07.2019,ENVIRONMENT DIRECTORATE,TYCO INTEGRATED FIRE & SECURITY,"13,071.08",TOWN CENTRE CCTV,EQUIPMENT PURCHASE & REPAIR,5902366191,1000077948
03.07.2019,ENVIRONMENT DIRECTORATE,TYCO INTEGRATED FIRE & SECURITY,"2,232.82",TOWN CENTRE CCTV,OTHER CONTRACTORS,5902366246,1000077948
03.07.2019,EXCHEQUER SERVICES,BLUE CHIP TECHNOLOGIES LTD,587.74,ADMINISTRATIVE SUPPORT,EQUIPMENT PURCHASE & REPAIR,5902366158,1000077837
03.07.2019,EXCHEQUER SERVICES,BLUE CHIP TECHNOLOGIES LTD,"2,485.89",ADMINISTRATIVE SUPPORT,EQUIPMENT PURCHASE & REPAIR,5902366158,1000077837
03.07.2019,EXCHEQUER SERVICES,CJS PLANTS,"-5,304.00",FC&P PROCESSING,OFFICE EXPENSES,2102972674,1000025370
03.07.2019,EXCHEQUER SERVICES,CJS PLANTS,"-2,496.00",FC&P PROCESSING,OFFICE EXPENSES,2102972673,1000025370
03.07.2019,EXCHEQUER SERVICES,BLUE CHIP TECHNOLOGIES LTD,899.03,NNDR,EQUIPMENT PURCHASE & REPAIR,5902366158,1000077837
03.07.2019,FINANCIAL AND INFORMATION GOVERNANCE,CIPFA,"2,045.00",CIPFA TRAINEES,TRAINING,5902366169,1000000196
03.07.2019,FINANCIAL AND INFORMATION GOVERNANCE,CIPFA,"2,045.00",CIPFA TRAINEES,TRAINING,5902366170,1000000196
03.07.2019,FINANCIAL AND INFORMATION GOVERNANCE,CIPFA,"3,525.00",CIPFA TRAINEES,TRAINING,5902366173,1000000196
03.07.2019,HOUSING & MODERNISATION,SWK DAY CTR FOR ASYLUM SEEKERS,"11,330.25",VCS GRANTS,GRANTS,5902366019,1000040491
03.07.2019,HOUSING GENERAL FUND,INTERSERVE (FACILITIES MANAGEMENT),"20,863.05",CAPITAL PS (REGEN),CONSTRUCTION,2102974441,3000000166
03.07.2019,HOUSING GENERAL FUND,INTERSERVE (FACILITIES MANAGEMENT),"96,777.35",CAPITAL PS (REGEN),CONSTRUCTION,2102974440,3000000166
03.07.2019,HOUSING HRA,3MS GOLD SERVICES LTD,"7,295.77",CAPITAL PS (HRA),CONST'N MAIN CONTRACT - NON CERTIFICATED,2102973382,3000001256
03.07.2019,HOUSING HRA,3MS GOLD SERVICES LTD,"7,421.51",CAPITAL PS (HRA),CONST'N MAIN CONTRACT - NON CERTIFICATED,2102973379,3000001256
03.07.2019,HOUSING HRA,3MS GOLD SERVICES LTD,"7,421.51",CAPITAL PS (HRA),CONST'N MAIN CONTRACT - NON CERTIFICATED,2102973381,3000001256
03.07.2019,HOUSING HRA,L H BRIDGE LTD,"8,034.00",CAPITAL PS (HRA),CONST'N MAIN CONTRACT - NON CERTIFICATED,2102974443,3000001167
03.07.2019,HOUSING HRA,3MS GOLD SERVICES LTD,"8,288.26",CAPITAL PS (HRA),CONST'N MAIN CONTRACT - NON CERTIFICATED,2102973380,3000001256
03.07.2019,HOUSING HRA,PJC CONSULTANCY LTD,320,CAPITAL PS (HRA),CONSTRUCTION FEES  - EXTERNAL,5902366315,1000077403
03.07.2019,HOUSING HRA,ARBECO LTD,"2,325.00",CAPITAL PS (HRA),CONSTRUCTION FEES  - EXTERNAL,5902366313,1000060693
03.07.2019,HOUSING HRA,ARCHITECTURAL DECORATORS LTD,"11,715.76",CAPITAL PS (HRA),CONSTRUCTION MAIN CONTRACT -CERTIFICATED,2102973390,3000001065
03.07.2019,HOUSING HRA,SALTASH ENTERPRISES LTD,"25,892.38",CAPITAL PS (HRA),CONSTRUCTION MAIN CONTRACT -CERTIFICATED,2102974447,4013605
03.07.2019,HOUSING HRA,A & E ELKINS LTD,"30,088.98",CAPITAL PS (HRA),CONSTRUCTION MAIN CONTRACT -CERTIFICATED,2102973391,4012501
03.07.2019,HOUSING HRA,A & E ELKINS LTD,"44,029.98",CAPITAL PS (HRA),CONSTRUCTION MAIN CONTRACT -CERTIFICATED,2102973392,4012501
03.07.2019,HOUSING HRA,THOMAS SINDEN CONSTRUCTION,"53,824.81",CAPITAL PS (HRA),CONSTRUCTION MAIN CONTRACT -CERTIFICATED,2102973389,3000000605
03.07.2019,HOUSING HRA,SALTASH ENTERPRISES LTD,"59,123.93",CAPITAL PS (HRA),CONSTRUCTION MAIN CONTRACT -CERTIFICATED,2102974448,4013605
03.07.2019,HOUSING HRA,ENGIE REGENERATION (APOLLO) LTD,"81,478.13",CAPITAL PS (HRA),CONSTRUCTION MAIN CONTRACT -CERTIFICATED,2102973383,4000449
03.07.2019,HOUSING HRA,MPS HOUSING LTD,"129,671.42",CAPITAL PS (HRA),CONSTRUCTION MAIN CONTRACT -CERTIFICATED,2102974444,3000002101
03.07.2019,HOUSING HRA,ENGIE REGENERATION (APOLLO) LTD,"219,498.88",CAPITAL PS (HRA),CONSTRUCTION MAIN CONTRACT -CERTIFICATED,2102973385,4000449
03.07.2019,HOUSING HRA,ENGIE REGENERATION (APOLLO) LTD,"241,984.49",CAPITAL PS (HRA),CONSTRUCTION MAIN CONTRACT -CERTIFICATED,2102973384,4000449
03.07.2019,HOUSING HRA,ENGIE REGENERATION (APOLLO) LTD,"1,227,049.41",CAPITAL PS (HRA),CONSTRUCTION MAIN CONTRACT -CERTIFICATED,2102973386,4000449
03.07.2019,HOUSING HRA,ALAN CONISBEE & ASSOCIATES LTD,950,CAPITAL PS (REGEN),LAND & BUILDINGS ACQUISITION FEES,5902366281,1000047171
03.07.2019,HOUSING HRA,DUCTCLEAN (UK) LTD,"30,203.40",DUCTCLEAN,I-WORLD CONTRACTORS HOLDING ACCOUNT,2102974450,3000001635
03.07.2019,HOUSING HRA,SPOKEMEAD MAINTENANCE LTD,"59,313.83",PAYMENTS CONTROL ACCOUNT - SPOKEMEAD,I-WORLD CONTRACTORS HOLDING ACCOUNT,5902366189,1000059211
03.07.2019,LAW & DEMOCRACY,DR BRENNAN JACOBY,"2,596.00",LEGAL SVCES MANAGEMENT,PROFESSIONAL FEES,5902366260,1000082354
03.07.2019,LAW & DEMOCRACY,TROWERS & HAMLINS LLP,"2,723.00",LEGAL SVCES MANAGEMENT,PROFESSIONAL FEES,5902366176,1000016239
03.07.2019,LAW & DEMOCRACY,ANTHONY COLLINS SOLICITORS LLP,"1,218.00",LEGAL SVCES MANAGEMENT,PROFESSIONAL FEES,5902366119,1000010142
03.07.2019,LEISURE DIRECTORATE,BARRY COLLINGS ENTERTAINMENTS,"5,000.00",BERMONDSEY CARNIVAL,PROFESSIONAL FEES,5902365895,1000055046
03.07.2019,LEISURE DIRECTORATE,WESTMINSTER WASTE,649,CEMETERIES,OTHER CONTRACTORS,5902365965,1000080933
03.07.2019,LEISURE DIRECTORATE,CAMBRIDGE HOUSE & TALBOT,439,COMMUNITY SPORTS DEVELOPMENT,HIRE OF ROOMS/HALLS,5902366144,1139414
03.07.2019,LEISURE DIRECTORATE,WARWICK LANDSCAPING LTD,"1,491.37",CREMATORIUM,BUILDING R&M,2102974445,3000001705
03.07.2019,LEISURE DIRECTORATE,CONWAY AECOM LTD,"-10,128.12",SOUTHWARK AREA TEAM,OTHER R&M,5902365077,3000001595
03.07.2019,MODERNISATION HGF,EMS EVENTS LTD,"1,768.20",160 TOOLEY ST.,OP LEASE/HIRE CHARGES:PLANT/EQUIP/FURNIT,5902366124,1000057494
03.07.2019,MODERNISATION HGF,GENERAL DYNAMICS INFORMATION TECHNOLOGY LTD,"-14,315.00",APPLICATIONS,TELEPHONES (LAND LINES),5902366185,1000043058
03.07.2019,MODERNISATION HGF,GENERAL DYNAMICS INFORMATION TECHNOLOGY LTD,"-14,158.00",APPLICATIONS,TELEPHONES (LAND LINES),5902366198,1000043058
03.07.2019,MODERNISATION HGF,GENERAL DYNAMICS INFORMATION TECHNOLOGY LTD,"-14,042.00",APPLICATIONS,TELEPHONES (LAND LINES),5902366192,1000043058
03.07.2019,MODERNISATION HGF,GENERAL DYNAMICS INFORMATION TECHNOLOGY LTD,"59,149.00",APPLICATIONS,TELEPHONES (LAND LINES),5902366171,1000043058
03.07.2019,MODERNISATION HGF,GENERAL DYNAMICS INFORMATION TECHNOLOGY LTD,"59,149.00",APPLICATIONS,TELEPHONES (LAND LINES),5902366175,1000043058
03.07.2019,MODERNISATION HGF,GENERAL DYNAMICS INFORMATION TECHNOLOGY LTD,"59,149.00",APPLICATIONS,TELEPHONES (LAND LINES),5902366179,1000043058
03.07.2019,MODERNISATION HGF,CAPITA SECURE INFORMATION,"40,268.89",IT MANAGEMENT,COMMS & COMPUTING CONTRACT CHARGES,5902366295,1000070739
03.07.2019,MODERNISATION HGF,VIRGIN MEDIA,315,IT MANAGEMENT,DATA COMMUNICATIONS,5902366163,1000026457
03.07.2019,MODERNISATION HGF,VIRGIN MEDIA,647.31,IT MANAGEMENT,DATA COMMUNICATIONS,5902366147,1000026457
03.07.2019,MODERNISATION HGF,VIRGIN MEDIA,"1,043.60",IT MANAGEMENT,DATA COMMUNICATIONS,5902366167,1000026457
03.07.2019,MODERNISATION HGF,VIRGIN MEDIA,"2,145.06",IT MANAGEMENT,DATA COMMUNICATIONS,5902366151,1000026457
03.07.2019,MODERNISATION HGF,VIRGIN MEDIA,"6,122.34",IT MANAGEMENT,DATA COMMUNICATIONS,5902366156,1000026457
03.07.2019,MODERNISATION HGF,VIRGIN MEDIA,"13,101.70",IT MANAGEMENT,DATA COMMUNICATIONS,5902366166,1000026457
03.07.2019,MODERNISATION HGF,NEWMANS CONSULTING LIMITED,"2,850.00",OCCUPATIONAL ASSESSMENT,CONSULTANTS SERVICES,5902366268,1000065375
03.07.2019,MODERNISATION HGF,INTERSERVE (FACILITIES MANAGEMENT),"17,935.44",REPAIR AND MAINTENANCE SERVICES,BUILDING R&M,2102974442,3000000166
03.07.2019,RESIDENT SERVICES,CAMBRIDGE HOUSE & TALBOT,"1,344.00",HOUSING STRATEGY (HRA),TRAINING,5902366127,11248874
03.07.2019,RESIDENT SERVICES,ARTHUR J GALLAGHER INSURANCE BROKER,364,STRATEGIC BUSINESS PLANNING,PROFESSIONAL FEES,5902366227,1000045282
03.07.2019,RESIDENT SERVICES,KENT COUNTY COUNCIL - LASER,295.08,TA HOSTELS,ELECTRICITY,5902366096,1000012926
03.07.2019,RESIDENT SERVICES,KENT COUNTY COUNCIL - LASER,303.78,TA HOSTELS,ELECTRICITY,5902366097,1000012926
03.07.2019,SOUTHWARK BUILDING SERVICES,HOWDENS JOINERY CO,314.3,BERMONDSEY DAY TO DAY - CARPENTER,MATERIALS,5902366108,1000027491
03.07.2019,SOUTHWARK BUILDING SERVICES,MH TECHNICAL SERVICES,305.44,BOR & BKSIDE DAY TO DAY - CARPENTER,MATERIALS,5902366240,1963399
03.07.2019,SOUTHWARK BUILDING SERVICES,MH TECHNICAL SERVICES,350.53,COMMUNAL GROUNDWORK TEAM,MATERIALS,5902366248,1963399
03.07.2019,SOUTHWARK BUILDING SERVICES,A T & T (GB LTD ),-923.6,STORES/LOGISTICS,CREDITORS -GR/IR CLEARING ACCOUNT,5902366187,1000078342
03.07.2019,SOUTHWARK BUILDING SERVICES,A T & T (GB LTD ),427.9,STORES/LOGISTICS,CREDITORS -GR/IR CLEARING ACCOUNT,5902366177,1000078342
03.07.2019,SOUTHWARK BUILDING SERVICES,A T & T (GB LTD ),470.4,STORES/LOGISTICS,CREDITORS -GR/IR CLEARING ACCOUNT,5902366184,1000078342
03.07.2019,SOUTHWARK BUILDING SERVICES,A T & T (GB LTD ),750,STORES/LOGISTICS,CREDITORS -GR/IR CLEARING ACCOUNT,5902366184,1000078342
03.07.2019,SOUTHWARK BUILDING SERVICES,A T & T (GB LTD ),856.18,STORES/LOGISTICS,CREDITORS -GR/IR CLEARING ACCOUNT,5902366184,1000078342
03.07.2019,SOUTHWARK BUILDING SERVICES,A T & T (GB LTD ),940.8,STORES/LOGISTICS,CREDITORS -GR/IR CLEARING ACCOUNT,5902366193,1000078342
03.07.2019,SOUTHWARK BUILDING SERVICES,A T & T (GB LTD ),"1,021.44",STORES/LOGISTICS,CREDITORS -GR/IR CLEARING ACCOUNT,5902366184,1000078342
03.07.2019,SOUTHWARK BUILDING SERVICES,A T & T (GB LTD ),"1,056.00",STORES/LOGISTICS,CREDITORS -GR/IR CLEARING ACCOUNT,5902366183,1000078342
03.07.2019,SOUTHWARK BUILDING SERVICES,A T & T (GB LTD ),"1,112.54",STORES/LOGISTICS,CREDITORS -GR/IR CLEARING ACCOUNT,5902366202,1000078342
03.07.2019,SOUTHWARK BUILDING SERVICES,A T & T (GB LTD ),"1,119.62",STORES/LOGISTICS,CREDITORS -GR/IR CLEARING ACCOUNT,5902366201,1000078342
03.07.2019,SOUTHWARK BUILDING SERVICES,A T & T (GB LTD ),"1,200.68",STORES/LOGISTICS,CREDITORS -GR/IR CLEARING ACCOUNT,5902366188,1000078342
03.07.2019,SOUTHWARK BUILDING SERVICES,A T & T (GB LTD ),"1,339.22",STORES/LOGISTICS,CREDITORS -GR/IR CLEARING ACCOUNT,5902366184,1000078342
03.07.2019,SOUTHWARK BUILDING SERVICES,A T & T (GB LTD ),"1,584.00",STORES/LOGISTICS,CREDITORS -GR/IR CLEARING ACCOUNT,5902366181,1000078342
03.07.2019,SOUTHWARK BUILDING SERVICES,A T & T (GB LTD ),"1,626.02",STORES/LOGISTICS,CREDITORS -GR/IR CLEARING ACCOUNT,5902366178,1000078342
03.07.2019,SOUTHWARK BUILDING SERVICES,A T & T (GB LTD ),"1,760.00",STORES/LOGISTICS,CREDITORS -GR/IR CLEARING ACCOUNT,5902366202,1000078342
03.07.2019,SOUTHWARK BUILDING SERVICES,A T & T (GB LTD ),"2,452.80",STORES/LOGISTICS,CREDITORS -GR/IR CLEARING ACCOUNT,5902366190,1000078342
03.07.2019,SOUTHWARK BUILDING SERVICES,A T & T (GB LTD ),"2,640.00",STORES/LOGISTICS,CREDITORS -GR/IR CLEARING ACCOUNT,5902366177,1000078342
04.07.2019,ADULT SOCIAL CARE,ACCESS MOBILITY TRANSPORT LTD,"1,964.80",LD LTS 18-64,CLIENT TRANSPORT,2102974859,1000074637
04.07.2019,ADULT SOCIAL CARE,THE NEW SHOOTS,300,LD LTS 18-64,DAYCARE,2102974852,1000073970
04.07.2019,ADULT SOCIAL CARE,THE CAMDEN SOCIETY (SOCIAL CARE),340.08,LD LTS 18-64,DAYCARE,2102974678,1000036369
04.07.2019,ADULT SOCIAL CARE,THE CAMDEN SOCIETY (SOCIAL CARE),384,LD LTS 18-64,DAYCARE,2102974653,1000036369
04.07.2019,ADULT SOCIAL CARE,THE CAMDEN SOCIETY (SOCIAL CARE),465.6,LD LTS 18-64,DAYCARE,2102974694,1000036369
04.07.2019,ADULT SOCIAL CARE,THE CAMDEN SOCIETY (SOCIAL CARE),480,LD LTS 18-64,DAYCARE,2102974670,1000036369
04.07.2019,ADULT SOCIAL CARE,THE CAMDEN SOCIETY (SOCIAL CARE),500,LD LTS 18-64,DAYCARE,2102974686,1000036369
04.07.2019,ADULT SOCIAL CARE,THE CAMDEN SOCIETY (SOCIAL CARE),594,LD LTS 18-64,DAYCARE,2102974688,1000036369
04.07.2019,ADULT SOCIAL CARE,THE CAMDEN SOCIETY (SOCIAL CARE),599.36,LD LTS 18-64,DAYCARE,2102974658,1000036369
04.07.2019,ADULT SOCIAL CARE,THE CAMDEN SOCIETY (SOCIAL CARE),609.6,LD LTS 18-64,DAYCARE,2102974693,1000036369
04.07.2019,ADULT SOCIAL CARE,THE CAMDEN SOCIETY (SOCIAL CARE),612,LD LTS 18-64,DAYCARE,2102974684,1000036369
04.07.2019,ADULT SOCIAL CARE,THE CAMDEN SOCIETY (SOCIAL CARE),674.16,LD LTS 18-64,DAYCARE,2102974673,1000036369
04.07.2019,ADULT SOCIAL CARE,THE CAMDEN SOCIETY (SOCIAL CARE),676.8,LD LTS 18-64,DAYCARE,2102974689,1000036369
04.07.2019,ADULT SOCIAL CARE,THE CAMDEN SOCIETY (SOCIAL CARE),704,LD LTS 18-64,DAYCARE,2102974669,1000036369
04.07.2019,ADULT SOCIAL CARE,THE CAMDEN SOCIETY (SOCIAL CARE),704,LD LTS 18-64,DAYCARE,2102974682,1000036369
04.07.2019,ADULT SOCIAL CARE,THE CAMDEN SOCIETY (SOCIAL CARE),704,LD LTS 18-64,DAYCARE,2102974696,1000036369
04.07.2019,ADULT SOCIAL CARE,THE CAMDEN SOCIETY (SOCIAL CARE),705.6,LD LTS 18-64,DAYCARE,2102974675,1000036369
04.07.2019,ADULT SOCIAL CARE,THE CAMDEN SOCIETY (SOCIAL CARE),753.6,LD LTS 18-64,DAYCARE,2102974691,1000036369
04.07.2019,ADULT SOCIAL CARE,THE CAMDEN SOCIETY (SOCIAL CARE),897.6,LD LTS 18-64,DAYCARE,2102974657,1000036369
04.07.2019,ADULT SOCIAL CARE,THE CAMDEN SOCIETY (SOCIAL CARE),903.6,LD LTS 18-64,DAYCARE,2102974695,1000036369
04.07.2019,ADULT SOCIAL CARE,THE CAMDEN SOCIETY (SOCIAL CARE),932,LD LTS 18-64,DAYCARE,2102974674,1000036369
04.07.2019,ADULT SOCIAL CARE,THE CAMDEN SOCIETY (SOCIAL CARE),960,LD LTS 18-64,DAYCARE,2102974687,1000036369
04.07.2019,ADULT SOCIAL CARE,THE CAMDEN SOCIETY (SOCIAL CARE),960,LD LTS 18-64,DAYCARE,2102974690,1000036369
04.07.2019,ADULT SOCIAL CARE,THE CAMDEN SOCIETY (SOCIAL CARE),968,LD LTS 18-64,DAYCARE,2102974683,1000036369
04.07.2019,ADULT SOCIAL CARE,THE CAMDEN SOCIETY (SOCIAL CARE),988,LD LTS 18-64,DAYCARE,2102974662,1000036369
04.07.2019,ADULT SOCIAL CARE,THE CAMDEN SOCIETY (SOCIAL CARE),988,LD LTS 18-64,DAYCARE,2102974663,1000036369
04.07.2019,ADULT SOCIAL CARE,THE CAMDEN SOCIETY (SOCIAL CARE),"1,056.00",LD LTS 18-64,DAYCARE,2102974668,1000036369
04.07.2019,ADULT SOCIAL CARE,THE CAMDEN SOCIETY (SOCIAL CARE),"1,056.00",LD LTS 18-64,DAYCARE,2102974679,1000036369
04.07.2019,ADULT SOCIAL CARE,THE CAMDEN SOCIETY (SOCIAL CARE),"1,056.00",LD LTS 18-64,DAYCARE,2102974692,1000036369
04.07.2019,ADULT SOCIAL CARE,THE CAMDEN SOCIETY (SOCIAL CARE),"1,128.00",LD LTS 18-64,DAYCARE,2102974677,1000036369
04.07.2019,ADULT SOCIAL CARE,THE CAMDEN SOCIETY (SOCIAL CARE),"1,408.00",LD LTS 18-64,DAYCARE,2102974651,1000036369
04.07.2019,ADULT SOCIAL CARE,THE CAMDEN SOCIETY (SOCIAL CARE),"1,473.60",LD LTS 18-64,DAYCARE,2102974697,1000036369
04.07.2019,ADULT SOCIAL CARE,THE CAMDEN SOCIETY (SOCIAL CARE),"1,500.00",LD LTS 18-64,DAYCARE,2102974672,1000036369
04.07.2019,ADULT SOCIAL CARE,THE CAMDEN SOCIETY (SOCIAL CARE),"1,536.00",LD LTS 18-64,DAYCARE,2102974655,1000036369
04.07.2019,ADULT SOCIAL CARE,THE CAMDEN SOCIETY (SOCIAL CARE),"1,634.76",LD LTS 18-64,DAYCARE,2102974681,1000036369
04.07.2019,ADULT SOCIAL CARE,THE CAMDEN SOCIETY (SOCIAL CARE),"1,760.00",LD LTS 18-64,DAYCARE,2102974659,1000036369
04.07.2019,ADULT SOCIAL CARE,THE CAMDEN SOCIETY (SOCIAL CARE),"1,760.00",LD LTS 18-64,DAYCARE,2102974665,1000036369
04.07.2019,ADULT SOCIAL CARE,THE CAMDEN SOCIETY (SOCIAL CARE),"1,760.00",LD LTS 18-64,DAYCARE,2102974676,1000036369
04.07.2019,ADULT SOCIAL CARE,THE CAMDEN SOCIETY (SOCIAL CARE),"1,824.00",LD LTS 18-64,DAYCARE,2102974652,1000036369
04.07.2019,ADULT SOCIAL CARE,THE CAMDEN SOCIETY (SOCIAL CARE),"1,848.00",LD LTS 18-64,DAYCARE,2102974664,1000036369
04.07.2019,ADULT SOCIAL CARE,THE CAMDEN SOCIETY (SOCIAL CARE),"1,848.00",LD LTS 18-64,DAYCARE,2102974685,1000036369
04.07.2019,ADULT SOCIAL CARE,THE CAMDEN SOCIETY (SOCIAL CARE),"2,000.00",LD LTS 18-64,DAYCARE,2102974661,1000036369
04.07.2019,ADULT SOCIAL CARE,THE CAMDEN SOCIETY (SOCIAL CARE),"2,020.00",LD LTS 18-64,DAYCARE,2102974667,1000036369
04.07.2019,ADULT SOCIAL CARE,THE CAMDEN SOCIETY (SOCIAL CARE),"2,160.00",LD LTS 18-64,DAYCARE,2102974660,1000036369
04.07.2019,ADULT SOCIAL CARE,THE CAMDEN SOCIETY (SOCIAL CARE),"2,374.00",LD LTS 18-64,DAYCARE,2102974671,1000036369
04.07.2019,ADULT SOCIAL CARE,THE CAMDEN SOCIETY (SOCIAL CARE),"2,448.00",LD LTS 18-64,DAYCARE,2102974680,1000036369
04.07.2019,ADULT SOCIAL CARE,PROFAD CARE AGENCY,"3,124.80",LD LTS 18-64,HOMECARE - SPOT,2102974709,1000079032
04.07.2019,ADULT SOCIAL CARE,CONTACT PROFESSIONALS,465,LD LTS 18-64,SUPPORTED LIVING,2102974860,1000057263
04.07.2019,ADULT SOCIAL CARE,CONTACT PROFESSIONALS,"1,489.00",LD LTS 18-64,SUPPORTED LIVING,2102974851,1000057263
04.07.2019,ADULT SOCIAL CARE,HEATH FARM FAMILY SOLUTION (FOSTERING),"1,817.62",LD LTS 18-64,SUPPORTED LIVING,2102974858,11271268
04.07.2019,ADULT SOCIAL CARE,INSPIRE SUPPORT WORKERS LTD,"1,836.00",LD LTS 18-64,SUPPORTED LIVING,2102974849,1000080725
04.07.2019,ADULT SOCIAL CARE,INSPIRE SUPPORT WORKERS LTD,"3,850.00",LD LTS 18-64,SUPPORTED LIVING,2102974857,1000080725
04.07.2019,ADULT SOCIAL CARE,REDACTED PERSONAL DATA,"3,682.28",LD LTS 18-64,SUPPORTED LIVING,REDACTED,REDACTED
04.07.2019,ADULT SOCIAL CARE,THE CAMDEN SOCIETY (SOCIAL CARE),897.6,LD LTS 65+,DAYCARE,2102974654,1000036369
04.07.2019,ADULT SOCIAL CARE,PROFAD CARE AGENCY,"1,120.65",MEM LTS 65+,HOMECARE - SPOT,2102974760,1000079032
04.07.2019,ADULT SOCIAL CARE,PROFAD CARE AGENCY,"1,264.80",MEM LTS 65+,HOMECARE - SPOT,2102974756,1000079032
04.07.2019,ADULT SOCIAL CARE,CLOUDS END SERVICES LTD,500,MH LTS 18-64,EXTERNAL AGENCIES AND BODIES,2102974854,1000079240
04.07.2019,ADULT SOCIAL CARE,PROFAD CARE AGENCY,"2,901.60",MH LTS 18-64,HOMECARE - SPOT,2102974710,1000079032
04.07.2019,ADULT SOCIAL CARE,SWK DISABLEMENT ASSN,362.4,MH LTS 18-64,SUPPORTED LIVING,2102974874,1000011698
04.07.2019,ADULT SOCIAL CARE,SWK DISABLEMENT ASSN,362.4,MH LTS 18-64,SUPPORTED LIVING,2102974877,1000011698
04.07.2019,ADULT SOCIAL CARE,OASIS CARE AND TRAINING AGENCY,551.6,MH LTS 18-64,SUPPORTED LIVING,2102974864,1000003687
04.07.2019,ADULT SOCIAL CARE,SWK DISABLEMENT ASSN,"1,413.36",MH LTS 18-64,SUPPORTED LIVING,2102974876,1000011698
04.07.2019,ADULT SOCIAL CARE,CLOUDS END SERVICES LTD,500,MH LTS 65+,EXTERNAL AGENCIES AND BODIES,2102974861,1000079240
04.07.2019,ADULT SOCIAL CARE,PROFAD CARE AGENCY,297.6,MH LTS 65+,HOMECARE - SPOT,2102974706,1000079032
04.07.2019,ADULT SOCIAL CARE,PROFAD CARE AGENCY,520.8,MH LTS 65+,HOMECARE - SPOT,2102974746,1000079032
04.07.2019,ADULT SOCIAL CARE,PROFAD CARE AGENCY,"3,162.00",MH LTS 65+,HOMECARE - SPOT,2102974753,1000079032
04.07.2019,ADULT SOCIAL CARE,SWK DISABLEMENT ASSN,969.42,MH STS 18-64,HOMECARE - IC,2102974872,1000011698
04.07.2019,ADULT SOCIAL CARE,SWK DISABLEMENT ASSN,"1,150.62",MH STS 18-64,HOMECARE - IC,2102974878,1000011698
04.07.2019,ADULT SOCIAL CARE,PHOENIX HEALTHCARE & RECRUITMENT,391.36,PHY LTS 18-64,DAYCARE,2102974863,1000065636
04.07.2019,ADULT SOCIAL CARE,THE CAMDEN SOCIETY (SOCIAL CARE),705,PHY LTS 18-64,DAYCARE,2102974656,1000036369
04.07.2019,ADULT SOCIAL CARE,LONDON BLITZ CLEAN LTD,580,PHY LTS 18-64,EXTERNAL AGENCIES AND BODIES,2102974862,1000082509
04.07.2019,ADULT SOCIAL CARE,PROFAD CARE AGENCY,"2,994.60",PHY LTS 18-64,HOMECARE - C&V,2102974783,1000079032
04.07.2019,ADULT SOCIAL CARE,THAMES HOMECARE SERVICE LTD,250.6,PHY LTS 18-64,HOMECARE - SPOT,2102974814,1000079295
04.07.2019,ADULT SOCIAL CARE,THAMES HOMECARE SERVICE LTD,250.6,PHY LTS 18-64,HOMECARE - SPOT,2102974816,1000079295
04.07.2019,ADULT SOCIAL CARE,THAMES HOMECARE SERVICE LTD,250.6,PHY LTS 18-64,HOMECARE - SPOT,2102974843,1000079295
04.07.2019,ADULT SOCIAL CARE,THAMES HOMECARE SERVICE LTD,286.4,PHY LTS 18-64,HOMECARE - SPOT,2102974801,1000079295
04.07.2019,ADULT SOCIAL CARE,PROFAD CARE AGENCY,316.2,PHY LTS 18-64,HOMECARE - SPOT,2102974715,1000079032
04.07.2019,ADULT SOCIAL CARE,PROFAD CARE AGENCY,325.5,PHY LTS 18-64,HOMECARE - SPOT,2102974712,1000079032
04.07.2019,ADULT SOCIAL CARE,PROFAD CARE AGENCY,348.75,PHY LTS 18-64,HOMECARE - SPOT,2102974755,1000079032
04.07.2019,ADULT SOCIAL CARE,THAMES HOMECARE SERVICE LTD,380.38,PHY LTS 18-64,HOMECARE - SPOT,2102974833,1000079295
04.07.2019,ADULT SOCIAL CARE,PROFAD CARE AGENCY,390.6,PHY LTS 18-64,HOMECARE - SPOT,2102974701,1000079032
04.07.2019,ADULT SOCIAL CARE,PROFAD CARE AGENCY,390.6,PHY LTS 18-64,HOMECARE - SPOT,2102974705,1000079032
04.07.2019,ADULT SOCIAL CARE,PROFAD CARE AGENCY,520.8,PHY LTS 18-64,HOMECARE - SPOT,2102974737,1000079032
04.07.2019,ADULT SOCIAL CARE,THAMES HOMECARE SERVICE LTD,563.85,PHY LTS 18-64,HOMECARE - SPOT,2102974819,1000079295
04.07.2019,ADULT SOCIAL CARE,PROFAD CARE AGENCY,613.8,PHY LTS 18-64,HOMECARE - SPOT,2102974780,1000079032
04.07.2019,ADULT SOCIAL CARE,PROFAD CARE AGENCY,623.1,PHY LTS 18-64,HOMECARE - SPOT,2102974752,1000079032
04.07.2019,ADULT SOCIAL CARE,THAMES HOMECARE SERVICE LTD,626.5,PHY LTS 18-64,HOMECARE - SPOT,2102974790,1000079295
04.07.2019,ADULT SOCIAL CARE,PROFAD CARE AGENCY,706.8,PHY LTS 18-64,HOMECARE - SPOT,2102974741,1000079032
04.07.2019,ADULT SOCIAL CARE,PROFAD CARE AGENCY,799.8,PHY LTS 18-64,HOMECARE - SPOT,2102974773,1000079032
04.07.2019,ADULT SOCIAL CARE,THAMES HOMECARE SERVICE LTD,930.8,PHY LTS 18-64,HOMECARE - SPOT,2102974826,1000079295
04.07.2019,ADULT SOCIAL CARE,PROFAD CARE AGENCY,"2,790.00",PHY LTS 18-64,HOMECARE - SPOT,2102974739,1000079032
04.07.2019,ADULT SOCIAL CARE,PROFAD CARE AGENCY,"1,841.40",PHY LTS 65+,HOMECARE - C&V,2102974765,1000079032
04.07.2019,ADULT SOCIAL CARE,PROFAD CARE AGENCY,"2,604.00",PHY LTS 65+,HOMECARE - C&V,2102974728,1000079032
04.07.2019,ADULT SOCIAL CARE,PROFAD CARE AGENCY,"2,864.40",PHY LTS 65+,HOMECARE - C&V,2102974761,1000079032
04.07.2019,ADULT SOCIAL CARE,THAMES HOMECARE SERVICE LTD,250.6,PHY LTS 65+,HOMECARE - SPOT,2102974813,1000079295
04.07.2019,ADULT SOCIAL CARE,THAMES HOMECARE SERVICE LTD,264.03,PHY LTS 65+,HOMECARE - SPOT,2102974832,1000079295
04.07.2019,ADULT SOCIAL CARE,THAMES HOMECARE SERVICE LTD,268.5,PHY LTS 65+,HOMECARE - SPOT,2102974821,1000079295
04.07.2019,ADULT SOCIAL CARE,THAMES HOMECARE SERVICE LTD,281.93,PHY LTS 65+,HOMECARE - SPOT,2102974830,1000079295
04.07.2019,ADULT SOCIAL CARE,PROFAD CARE AGENCY,297.6,PHY LTS 65+,HOMECARE - SPOT,2102974716,1000079032
04.07.2019,ADULT SOCIAL CARE,THAMES HOMECARE SERVICE LTD,313.25,PHY LTS 65+,HOMECARE - SPOT,2102974792,1000079295
04.07.2019,ADULT SOCIAL CARE,THAMES HOMECARE SERVICE LTD,317.73,PHY LTS 65+,HOMECARE - SPOT,2102974803,1000079295
04.07.2019,ADULT SOCIAL CARE,THAMES HOMECARE SERVICE LTD,344.58,PHY LTS 65+,HOMECARE - SPOT,2102974812,1000079295
04.07.2019,ADULT SOCIAL CARE,THAMES HOMECARE SERVICE LTD,344.58,PHY LTS 65+,HOMECARE - SPOT,2102974837,1000079295
04.07.2019,ADULT SOCIAL CARE,THAMES HOMECARE SERVICE LTD,344.58,PHY LTS 65+,HOMECARE - SPOT,2102974840,1000079295
04.07.2019,ADULT SOCIAL CARE,PROFAD CARE AGENCY,376.65,PHY LTS 65+,HOMECARE - SPOT,2102974725,1000079032
04.07.2019,ADULT SOCIAL CARE,PROFAD CARE AGENCY,378.64,PHY LTS 65+,HOMECARE - SPOT,2102974768,1000079032
04.07.2019,ADULT SOCIAL CARE,PROFAD CARE AGENCY,390.6,PHY LTS 65+,HOMECARE - SPOT,2102974698,1000079032
04.07.2019,ADULT SOCIAL CARE,PROFAD CARE AGENCY,390.6,PHY LTS 65+,HOMECARE - SPOT,2102974713,1000079032
04.07.2019,ADULT SOCIAL CARE,PROFAD CARE AGENCY,390.6,PHY LTS 65+,HOMECARE - SPOT,2102974720,1000079032
04.07.2019,ADULT SOCIAL CARE,PROFAD CARE AGENCY,390.6,PHY LTS 65+,HOMECARE - SPOT,2102974784,1000079032
04.07.2019,ADULT SOCIAL CARE,THAMES HOMECARE SERVICE LTD,407.23,PHY LTS 65+,HOMECARE - SPOT,2102974798,1000079295
04.07.2019,ADULT SOCIAL CARE,PROFAD CARE AGENCY,409.2,PHY LTS 65+,HOMECARE - SPOT,2102974734,1000079032
04.07.2019,ADULT SOCIAL CARE,THAMES HOMECARE SERVICE LTD,420.65,PHY LTS 65+,HOMECARE - SPOT,2102974789,1000079295
04.07.2019,ADULT SOCIAL CARE,PROFAD CARE AGENCY,465,PHY LTS 65+,HOMECARE - SPOT,2102974763,1000079032
04.07.2019,ADULT SOCIAL CARE,THAMES HOMECARE SERVICE LTD,483.3,PHY LTS 65+,HOMECARE - SPOT,2102974820,1000079295
04.07.2019,ADULT SOCIAL CARE,THAMES HOMECARE SERVICE LTD,501.2,PHY LTS 65+,HOMECARE - SPOT,2102974808,1000079295
04.07.2019,ADULT SOCIAL CARE,PROFAD CARE AGENCY,502.2,PHY LTS 65+,HOMECARE - SPOT,2102974723,1000079032
04.07.2019,ADULT SOCIAL CARE,PROFAD CARE AGENCY,502.2,PHY LTS 65+,HOMECARE - SPOT,2102974735,1000079032
04.07.2019,ADULT SOCIAL CARE,PROFAD CARE AGENCY,558,PHY LTS 65+,HOMECARE - SPOT,2102974754,1000079032
04.07.2019,ADULT SOCIAL CARE,PROFAD CARE AGENCY,558,PHY LTS 65+,HOMECARE - SPOT,2102974786,1000079032
04.07.2019,ADULT SOCIAL CARE,THAMES HOMECARE SERVICE LTD,563.85,PHY LTS 65+,HOMECARE - SPOT,2102974809,1000079295
04.07.2019,ADULT SOCIAL CARE,THAMES HOMECARE SERVICE LTD,563.85,PHY LTS 65+,HOMECARE - SPOT,2102974822,1000079295
04.07.2019,ADULT SOCIAL CARE,THAMES HOMECARE SERVICE LTD,563.85,PHY LTS 65+,HOMECARE - SPOT,2102974844,1000079295
04.07.2019,ADULT SOCIAL CARE,PROFAD CARE AGENCY,576.6,PHY LTS 65+,HOMECARE - SPOT,2102974770,1000079032
04.07.2019,ADULT SOCIAL CARE,PROFAD CARE AGENCY,651,PHY LTS 65+,HOMECARE - SPOT,2102974703,1000079032
04.07.2019,ADULT SOCIAL CARE,PROFAD CARE AGENCY,651,PHY LTS 65+,HOMECARE - SPOT,2102974707,1000079032
04.07.2019,ADULT SOCIAL CARE,PROFAD CARE AGENCY,651,PHY LTS 65+,HOMECARE - SPOT,2102974727,1000079032
04.07.2019,ADULT SOCIAL CARE,PROFAD CARE AGENCY,651,PHY LTS 65+,HOMECARE - SPOT,2102974772,1000079032
04.07.2019,ADULT SOCIAL CARE,PROFAD CARE AGENCY,651,PHY LTS 65+,HOMECARE - SPOT,2102974774,1000079032
04.07.2019,ADULT SOCIAL CARE,PROFAD CARE AGENCY,688.2,PHY LTS 65+,HOMECARE - SPOT,2102974745,1000079032
04.07.2019,ADULT SOCIAL CARE,THAMES HOMECARE SERVICE LTD,702.58,PHY LTS 65+,HOMECARE - SPOT,2102974796,1000079295
04.07.2019,ADULT SOCIAL CARE,THAMES HOMECARE SERVICE LTD,707.05,PHY LTS 65+,HOMECARE - SPOT,2102974841,1000079295
04.07.2019,ADULT SOCIAL CARE,PROFAD CARE AGENCY,725.4,PHY LTS 65+,HOMECARE - SPOT,2102974704,1000079032
04.07.2019,ADULT SOCIAL CARE,PROFAD CARE AGENCY,725.4,PHY LTS 65+,HOMECARE - SPOT,2102974759,1000079032
04.07.2019,ADULT SOCIAL CARE,PROFAD CARE AGENCY,725.4,PHY LTS 65+,HOMECARE - SPOT,2102974778,1000079032
04.07.2019,ADULT SOCIAL CARE,PROFAD CARE AGENCY,762.6,PHY LTS 65+,HOMECARE - SPOT,2102974757,1000079032
04.07.2019,ADULT SOCIAL CARE,PROFAD CARE AGENCY,781.2,PHY LTS 65+,HOMECARE - SPOT,2102974726,1000079032
04.07.2019,ADULT SOCIAL CARE,PROFAD CARE AGENCY,781.2,PHY LTS 65+,HOMECARE - SPOT,2102974751,1000079032
04.07.2019,ADULT SOCIAL CARE,PROFAD CARE AGENCY,781.2,PHY LTS 65+,HOMECARE - SPOT,2102974785,1000079032
04.07.2019,ADULT SOCIAL CARE,PROFAD CARE AGENCY,883.5,PHY LTS 65+,HOMECARE - SPOT,2102974708,1000079032
04.07.2019,ADULT SOCIAL CARE,PROFAD CARE AGENCY,892.8,PHY LTS 65+,HOMECARE - SPOT,2102974738,1000079032
04.07.2019,ADULT SOCIAL CARE,PROFAD CARE AGENCY,911.4,PHY LTS 65+,HOMECARE - SPOT,2102974700,1000079032
04.07.2019,ADULT SOCIAL CARE,PROFAD CARE AGENCY,911.4,PHY LTS 65+,HOMECARE - SPOT,2102974744,1000079032
04.07.2019,ADULT SOCIAL CARE,PROFAD CARE AGENCY,911.4,PHY LTS 65+,HOMECARE - SPOT,2102974748,1000079032
04.07.2019,ADULT SOCIAL CARE,PROFAD CARE AGENCY,967.2,PHY LTS 65+,HOMECARE - SPOT,2102974775,1000079032
04.07.2019,ADULT SOCIAL CARE,PROFAD CARE AGENCY,985.8,PHY LTS 65+,HOMECARE - SPOT,2102974721,1000079032
04.07.2019,ADULT SOCIAL CARE,THAMES HOMECARE SERVICE LTD,"1,029.25",PHY LTS 65+,HOMECARE - SPOT,2102974818,1000079295
04.07.2019,ADULT SOCIAL CARE,PROFAD CARE AGENCY,"1,041.60",PHY LTS 65+,HOMECARE - SPOT,2102974782,1000079032
04.07.2019,ADULT SOCIAL CARE,PROFAD CARE AGENCY,"1,171.80",PHY LTS 65+,HOMECARE - SPOT,2102974749,1000079032
04.07.2019,ADULT SOCIAL CARE,PROFAD CARE AGENCY,"1,283.40",PHY LTS 65+,HOMECARE - SPOT,2102974769,1000079032
04.07.2019,ADULT SOCIAL CARE,PROFAD CARE AGENCY,"1,302.00",PHY LTS 65+,HOMECARE - SPOT,2102974714,1000079032
04.07.2019,ADULT SOCIAL CARE,PROFAD CARE AGENCY,"1,339.20",PHY LTS 65+,HOMECARE - SPOT,2102974762,1000079032
04.07.2019,ADULT SOCIAL CARE,PROFAD CARE AGENCY,"1,822.80",PHY LTS 65+,HOMECARE - SPOT,2102974764,1000079032
04.07.2019,ADULT SOCIAL CARE,PROFAD CARE AGENCY,"2,032.05",PHY LTS 65+,HOMECARE - SPOT,2102974733,1000079032
04.07.2019,ADULT SOCIAL CARE,PROFAD CARE AGENCY,"2,046.00",PHY LTS 65+,HOMECARE - SPOT,2102974717,1000079032
04.07.2019,ADULT SOCIAL CARE,PROFAD CARE AGENCY,"2,083.20",PHY LTS 65+,HOMECARE - SPOT,2102974702,1000079032
04.07.2019,ADULT SOCIAL CARE,PROFAD CARE AGENCY,"2,314.74",PHY LTS 65+,HOMECARE - SPOT,2102974781,1000079032
04.07.2019,ADULT SOCIAL CARE,PROFAD CARE AGENCY,"2,325.00",PHY LTS 65+,HOMECARE - SPOT,2102974736,1000079032
04.07.2019,ADULT SOCIAL CARE,PROFAD CARE AGENCY,"2,649.54",PHY LTS 65+,HOMECARE - SPOT,2102974766,1000079032
04.07.2019,ADULT SOCIAL CARE,PROFAD CARE AGENCY,"2,678.40",PHY LTS 65+,HOMECARE - SPOT,2102974729,1000079032
04.07.2019,ADULT SOCIAL CARE,PROFAD CARE AGENCY,"2,697.00",PHY LTS 65+,HOMECARE - SPOT,2102974740,1000079032
04.07.2019,ADULT SOCIAL CARE,PROFAD CARE AGENCY,"3,794.40",PHY LTS 65+,HOMECARE - SPOT,2102974719,1000079032
04.07.2019,ADULT SOCIAL CARE,PROFAD CARE AGENCY,"4,166.40",PHY LTS 65+,HOMECARE - SPOT,2102974771,1000079032
04.07.2019,ADULT SOCIAL CARE,PROFAD CARE AGENCY,374.66,PHY STS 65+,HOMECARE - IC,2102974767,1000079032
04.07.2019,ADULT SOCIAL CARE,PROFAD CARE AGENCY,"1,987.00",SOCIAL ISOLATION,HOMECARE - IC,2102974742,1000079032
04.07.2019,ADULT SOCIAL CARE,THAMES HOMECARE SERVICE LTD,268.5,SOCIAL ISOLATION,HOMECARE - SPOT,2102974823,1000079295
04.07.2019,ADULT SOCIAL CARE,PROFAD CARE AGENCY,669.6,SOCIAL ISOLATION,HOMECARE - SPOT,2102974730,1000079032
04.07.2019,ADULT SOCIAL CARE,FREEDOM RECOVERY CENTRE,"1,105.00",SUB LTS 18-64,RESIDENTIAL CARE,2102974867,1000046185
04.07.2019,ADULT SOCIAL CARE,FREEDOM RECOVERY CENTRE,"4,877.57",SUB LTS 18-64,RESIDENTIAL CARE,2102974869,1000046185
04.07.2019,ADULT SOCIAL CARE,PROFAD CARE AGENCY,418.5,SUB LTS 65+,HOMECARE - SPOT,2102974732,1000079032
04.07.2019,ASSET MANAGEMENT,GAS ADVISORY SERVICES LIMITED,"1,309.25",ENG CONTRACTS (NORTH),HEATING -DISTRICT SERVICE (CONTRACT SUM),5902366489,1000064649
04.07.2019,ASSET MANAGEMENT,GAS ADVISORY SERVICES LIMITED,"1,837.88",ENG CONTRACTS (NORTH),HEATING -DISTRICT SERVICE (CONTRACT SUM),5902366488,1000064649
04.07.2019,ASSET MANAGEMENT,CALFORD SEADEN LLP,"7,497.00",HIP MAJOR WORKS,CONSULTANTS SERVICES,5902366472,1061592
04.07.2019,CENTRAL FUNCTIONS,KENT COUNTY COUNCIL - LASER,"37,464.85",HEATING ACCOUNT,GAS,5902365943,1000012926
04.07.2019,CENTRAL FUNCTIONS,KENT COUNTY COUNCIL - LASER,"181,764.33",HEATING ACCOUNT,GAS,5902365943,1000012926
04.07.2019,CENTRAL FUNCTIONS,THE KNOWLEDGE ACADEMY LTD,"3,475.00",HOME OWNERSHIP,TRAINING,5902366451,1000064533
04.07.2019,CENTRAL FUNCTIONS,PALMYRA PROPERTIES LTD,-272.82,HOME OWNERSHIP INCOME,HOUSING RESIDENTIAL RENTS,2102976118,1000082478
04.07.2019,CENTRAL FUNCTIONS,PALMYRA PROPERTIES LTD,272.82,HOME OWNERSHIP INCOME,HOUSING RESIDENTIAL RENTS,2102974966,1000082478
04.07.2019,CHIEF EXECUTIVE,JPD TECHNICAL SERVICES,350,CAPITAL PS (STRAT SERV),CONSTRUCTION FEES,5902366330,1000045143
04.07.2019,CHIEF EXECUTIVE'S OFFICE,WALWORTH GARDEN FARM,"1,412.15",YOUTH FUND EMPLOYMENT,GRANTS,2102974624,1000042204
04.07.2019,CHIEF EXECUTIVE'S OFFICE,WALWORTH GARDEN FARM,"2,375.63",YOUTH FUND EMPLOYMENT,GRANTS,2102974625,1000042204
04.07.2019,CHIEF EXECUTIVE'S OFFICE,BEDE HOUSE ASSOCIATION,"2,400.13",YOUTH FUND EMPLOYMENT,GRANTS,2102974623,11265073
04.07.2019,CHILDREN'S SERVICES,ZENITH CARS LTD,375,AIS - PRAC GRP A SET1-3,HIRED VEHICLES,5902366360,1000070570
04.07.2019,CHILDREN'S SERVICES,JAMES MARTIN MUGWANYA T/A JOHN SMITH REMOVALS,750,AIS - PRE BIRTH,OTHER PAYMENTS FOR CLIENTS,5902366352,1000078552
04.07.2019,CHILDREN'S SERVICES,THE COMPLETE WORKS INDEPENDENT SCHOOL,"3,783.80",ALTERNATIVE PROVISION,EXTERNAL AGENCIES AND BODIES,5902366463,1000033256
04.07.2019,CHILDREN'S SERVICES,THE COMPLETE WORKS INDEPENDENT SCHOOL,"3,783.80",ALTERNATIVE PROVISION,EXTERNAL AGENCIES AND BODIES,5902366465,1000033256
04.07.2019,CHILDREN'S SERVICES,THE COMPLETE WORKS INDEPENDENT SCHOOL,"3,783.80",ALTERNATIVE PROVISION,EXTERNAL AGENCIES AND BODIES,5902366468,1000033256
04.07.2019,CHILDREN'S SERVICES,THE COMPLETE WORKS INDEPENDENT SCHOOL,"3,783.80",ALTERNATIVE PROVISION,EXTERNAL AGENCIES AND BODIES,5902366474,1000033256
04.07.2019,CHILDREN'S SERVICES,THE COMPLETE WORKS INDEPENDENT SCHOOL,"3,783.80",ALTERNATIVE PROVISION,EXTERNAL AGENCIES AND BODIES,5902366475,1000033256
04.07.2019,CHILDREN'S SERVICES,THE COMPLETE WORKS INDEPENDENT SCHOOL,"3,783.80",ALTERNATIVE PROVISION,EXTERNAL AGENCIES AND BODIES,5902366477,1000033256
04.07.2019,CHILDREN'S SERVICES,THE COMPLETE WORKS INDEPENDENT SCHOOL,"3,783.80",ALTERNATIVE PROVISION,EXTERNAL AGENCIES AND BODIES,5902366479,1000033256
04.07.2019,CHILDREN'S SERVICES,PROSPERO RECRUITMENT LTD,675,CASEWORK OLA  0-8,CONTRIBUTION TO PROVISIONS (TP PAYMENTS),2102974606,1000082492
04.07.2019,CHILDREN'S SERVICES,VIBE TEACHER RECRUITMENT LTD,840,CASEWORK OLA  0-8,CONTRIBUTION TO PROVISIONS (TP PAYMENTS),2102974599,1000081423
04.07.2019,CHILDREN'S SERVICES,VIBE TEACHER RECRUITMENT LTD,840,CASEWORK OLA  0-8,CONTRIBUTION TO PROVISIONS (TP PAYMENTS),2102974610,1000081423
04.07.2019,CHILDREN'S SERVICES,PROSPERO RECRUITMENT LTD,870,CASEWORK OLA  0-8,CONTRIBUTION TO PROVISIONS (TP PAYMENTS),2102974551,1000082492
04.07.2019,CHILDREN'S SERVICES,PROSPERO RECRUITMENT LTD,900,CASEWORK OLA  0-8,CONTRIBUTION TO PROVISIONS (TP PAYMENTS),2102974616,1000082492
04.07.2019,CHILDREN'S SERVICES,ACTIVE RECRUITMENT SEN LTD,950,CASEWORK OLA  0-8,CONTRIBUTION TO PROVISIONS (TP PAYMENTS),2102974539,1000078380
04.07.2019,CHILDREN'S SERVICES,VIBE TEACHER RECRUITMENT LTD,"1,050.00",CASEWORK OLA  0-8,CONTRIBUTION TO PROVISIONS (TP PAYMENTS),2102974601,1000081423
04.07.2019,CHILDREN'S SERVICES,VIBE TEACHER RECRUITMENT LTD,"1,050.00",CASEWORK OLA  0-8,CONTRIBUTION TO PROVISIONS (TP PAYMENTS),2102974604,1000081423
04.07.2019,CHILDREN'S SERVICES,VIBE TEACHER RECRUITMENT LTD,"1,050.00",CASEWORK OLA  0-8,CONTRIBUTION TO PROVISIONS (TP PAYMENTS),2102974613,1000081423
04.07.2019,CHILDREN'S SERVICES,PROSPERO RECRUITMENT LTD,"1,125.00",CASEWORK OLA  0-8,CONTRIBUTION TO PROVISIONS (TP PAYMENTS),2102974615,1000082492
04.07.2019,CHILDREN'S SERVICES,PROSPERO RECRUITMENT LTD,"1,125.00",CASEWORK OLA  0-8,CONTRIBUTION TO PROVISIONS (TP PAYMENTS),2102974617,1000082492
04.07.2019,CHILDREN'S SERVICES,PROSPERO RECRUITMENT LTD,"1,125.00",CASEWORK OLA  0-8,CONTRIBUTION TO PROVISIONS (TP PAYMENTS),2102974618,1000082492
04.07.2019,CHILDREN'S SERVICES,PROSPERO RECRUITMENT LTD,"1,125.00",CASEWORK OLA  0-8,CONTRIBUTION TO PROVISIONS (TP PAYMENTS),2102974619,1000082492
04.07.2019,CHILDREN'S SERVICES,CARBONE CLINIC UK LTD,"1,773.00",CASEWORK OLA  0-8,CONTRIBUTION TO PROVISIONS (TP PAYMENTS),2102974579,1000080937
04.07.2019,CHILDREN'S SERVICES,CARBONE CLINIC UK LTD,"1,800.00",CASEWORK OLA  0-8,CONTRIBUTION TO PROVISIONS (TP PAYMENTS),2102974577,1000080937
04.07.2019,CHILDREN'S SERVICES,VIBE TEACHER RECRUITMENT LTD,"1,840.00",CASEWORK OLA  0-8,CONTRIBUTION TO PROVISIONS (TP PAYMENTS),2102974598,1000081423
04.07.2019,CHILDREN'S SERVICES,VIBE TEACHER RECRUITMENT LTD,"2,050.00",CASEWORK OLA  0-8,CONTRIBUTION TO PROVISIONS (TP PAYMENTS),2102974614,1000081423
04.07.2019,CHILDREN'S SERVICES,CARBONE CLINIC UK LTD,"2,250.00",CASEWORK OLA  0-8,CONTRIBUTION TO PROVISIONS (TP PAYMENTS),2102974575,1000080937
04.07.2019,CHILDREN'S SERVICES,VIBE TEACHER RECRUITMENT LTD,"2,300.00",CASEWORK OLA  0-8,CONTRIBUTION TO PROVISIONS (TP PAYMENTS),2102974602,1000081423
04.07.2019,CHILDREN'S SERVICES,VIBE TEACHER RECRUITMENT LTD,"2,800.00",CASEWORK OLA  0-8,CONTRIBUTION TO PROVISIONS (TP PAYMENTS),2102974605,1000081423
04.07.2019,CHILDREN'S SERVICES,ADVANCEMENTS ABA LTD,500,CASEWORK OLA  0-8,OTHER CONTRACTORS,2102974607,1000081719
04.07.2019,CHILDREN'S SERVICES,THE CHELSEA GROUP OF CHILDREN LTD,"11,750.00",CASEWORK OLA  0-8,RECOUPMENT,2102974587,1000074731
04.07.2019,CHILDREN'S SERVICES,THE COMPLETE WORKS INDEPENDENT SCHOOL,"7,000.00",CASEWORK OLA  0-8,"SCHOOLS CAPITATION, OTHER GRANTS",2102974554,1000033256
04.07.2019,CHILDREN'S SERVICES,THE COMPLETE WORKS INDEPENDENT SCHOOL,"7,000.00",CASEWORK OLA  0-8,"SCHOOLS CAPITATION, OTHER GRANTS",2102974555,1000033256
04.07.2019,CHILDREN'S SERVICES,TUKE SCHOOL,"5,041.00",CASEWORK SOUTHWARK 0-8,CONTRIBUTION TO PROVISIONS (TP PAYMENTS),2102974585,5001000097
04.07.2019,CHILDREN'S SERVICES,REDACTED PERSONAL DATA,"3,520.00",CASEWORK SOUTHWARK 0-8,M&M ALLOWANCE CO-OPS,REDACTED,REDACTED
04.07.2019,CHILDREN'S SERVICES,SOUTHWARK PARK PRIMARY SCHOOL,"4,229.24",CASEWORK SOUTHWARK 0-8,OP LEASE/HIRE CHARGES:PLANT/EQUIP/FURNIT,2102974573,5001000062
04.07.2019,CHILDREN'S SERVICES,1ST PLACE CHILDREN & PARENTS CENTRE,"3,009.57",CASEWORK SOUTHWARK 0-8,OTHER LOCAL AUTHORITIES,2102974502,1000049952
04.07.2019,CHILDREN'S SERVICES,1ST PLACE CHILDREN & PARENTS CENTRE,"3,009.57",CASEWORK SOUTHWARK 0-8,OTHER LOCAL AUTHORITIES,2102974572,1000049952
04.07.2019,CHILDREN'S SERVICES,1ST PLACE CHILDREN & PARENTS CENTRE,"3,979.59",CASEWORK SOUTHWARK 0-8,OTHER LOCAL AUTHORITIES,2102974621,1000049952
04.07.2019,CHILDREN'S SERVICES,1ST PLACE CHILDREN & PARENTS CENTRE,"5,145.62",CASEWORK SOUTHWARK 0-8,OTHER LOCAL AUTHORITIES,2102974620,1000049952
04.07.2019,CHILDREN'S SERVICES,NEWLANDS ACADEMY,"-7,931.82",CASEWORK SOUTHWARK 0-8,STATEMENTED FEES,2102974622,1000072567
04.07.2019,CHILDREN'S SERVICES,NEWLANDS ACADEMY,"6,714.57",CASEWORK SOUTHWARK 0-8,STATEMENTED FEES,2102974504,1000072567
04.07.2019,CHILDREN'S SERVICES,NEWLANDS ACADEMY,"6,714.57",CASEWORK SOUTHWARK 0-8,STATEMENTED FEES,2102974507,1000072567
04.07.2019,CHILDREN'S SERVICES,NEWLANDS ACADEMY,"6,714.57",CASEWORK SOUTHWARK 0-8,STATEMENTED FEES,2102974508,1000072567
04.07.2019,CHILDREN'S SERVICES,NEWLANDS ACADEMY,"6,714.57",CASEWORK SOUTHWARK 0-8,STATEMENTED FEES,2102974515,1000072567
04.07.2019,CHILDREN'S SERVICES,NEWLANDS ACADEMY,"6,714.57",CASEWORK SOUTHWARK 0-8,STATEMENTED FEES,2102974517,1000072567
04.07.2019,CHILDREN'S SERVICES,NEWLANDS ACADEMY,"6,714.57",CASEWORK SOUTHWARK 0-8,STATEMENTED FEES,2102974520,1000072567
04.07.2019,CHILDREN'S SERVICES,NEWLANDS ACADEMY,"6,714.57",CASEWORK SOUTHWARK 0-8,STATEMENTED FEES,2102974521,1000072567
04.07.2019,CHILDREN'S SERVICES,NEWLANDS ACADEMY,"6,714.57",CASEWORK SOUTHWARK 0-8,STATEMENTED FEES,2102974522,1000072567
04.07.2019,CHILDREN'S SERVICES,NEWLANDS ACADEMY,"6,714.57",CASEWORK SOUTHWARK 0-8,STATEMENTED FEES,2102974525,1000072567
04.07.2019,CHILDREN'S SERVICES,NEWLANDS ACADEMY,"6,714.57",CASEWORK SOUTHWARK 0-8,STATEMENTED FEES,2102974528,1000072567
04.07.2019,CHILDREN'S SERVICES,NEWLANDS ACADEMY,"6,714.57",CASEWORK SOUTHWARK 0-8,STATEMENTED FEES,2102974529,1000072567
04.07.2019,CHILDREN'S SERVICES,NEWLANDS ACADEMY,"6,714.57",CASEWORK SOUTHWARK 0-8,STATEMENTED FEES,2102974530,1000072567
04.07.2019,CHILDREN'S SERVICES,NEWLANDS ACADEMY,"6,714.57",CASEWORK SOUTHWARK 0-8,STATEMENTED FEES,2102974532,1000072567
04.07.2019,CHILDREN'S SERVICES,NEWLANDS ACADEMY,"6,714.57",CASEWORK SOUTHWARK 0-8,STATEMENTED FEES,2102974535,1000072567
04.07.2019,CHILDREN'S SERVICES,NEWLANDS ACADEMY,"6,714.57",CASEWORK SOUTHWARK 0-8,STATEMENTED FEES,2102974536,1000072567
04.07.2019,CHILDREN'S SERVICES,CHRIS FINES,550,CHILDREN'S MULTI-AGENCY SAFEGUARDING TRA,TRAINING,5902366456,1000029192
04.07.2019,CHILDREN'S SERVICES,ANDREW BAILEY (IRO NETWORK),"1,160.40",CLA TEAM SAFEGUARDING,PROFESSIONAL FEES,5902366321,1000059475
04.07.2019,CHILDREN'S SERVICES,CARTER BROWN LIMITED,566.66,FAMILY ASSESSMENTS,RESIDENTIAL CARE,5902366368,1000082626
04.07.2019,CHILDREN'S SERVICES,RWA (UK) CO LTD,"1,176.90",FAMILY ASSESSMENTS,RESIDENTIAL CARE,5902366369,1000046254
04.07.2019,CHILDREN'S SERVICES,PROSPECTS SERVICES,280,FREE AND EARLY LEARNING TEAM,TRAINING,5902366362,1000050074
04.07.2019,CHILDREN'S SERVICES,PILGRIM'S WAY PRIMARY SCHOOL,"3,000.00",INTERVENTION FUND,MISCELLANEOUS RECHARGES,5902366443,5001000054
04.07.2019,CHILDREN'S SERVICES,CARBONE CLINIC UK LTD,273,PFA TEAM SOUTHWARK 9 PLUS,CONTRIBUTION TO PROVISIONS (TP PAYMENTS),2102974580,1000080937
04.07.2019,CHILDREN'S SERVICES,CARBONE CLINIC UK LTD,450,PFA TEAM SOUTHWARK 9 PLUS,CONTRIBUTION TO PROVISIONS (TP PAYMENTS),2102974578,1000080937
04.07.2019,CHILDREN'S SERVICES,VIBE TEACHER RECRUITMENT LTD,500,PFA TEAM SOUTHWARK 9 PLUS,CONTRIBUTION TO PROVISIONS (TP PAYMENTS),2102974597,1000081423
04.07.2019,CHILDREN'S SERVICES,CARBONE CLINIC UK LTD,900,PFA TEAM SOUTHWARK 9 PLUS,CONTRIBUTION TO PROVISIONS (TP PAYMENTS),2102974576,1000080937
04.07.2019,CHILDREN'S SERVICES,VIBE TEACHER RECRUITMENT LTD,"1,000.00",PFA TEAM SOUTHWARK 9 PLUS,CONTRIBUTION TO PROVISIONS (TP PAYMENTS),2102974596,1000081423
04.07.2019,CHILDREN'S SERVICES,VIBE TEACHER RECRUITMENT LTD,"1,250.00",PFA TEAM SOUTHWARK 9 PLUS,CONTRIBUTION TO PROVISIONS (TP PAYMENTS),2102974600,1000081423
04.07.2019,CHILDREN'S SERVICES,VIBE TEACHER RECRUITMENT LTD,"1,250.00",PFA TEAM SOUTHWARK 9 PLUS,CONTRIBUTION TO PROVISIONS (TP PAYMENTS),2102974603,1000081423
04.07.2019,CHILDREN'S SERVICES,VIBE TEACHER RECRUITMENT LTD,"1,250.00",PFA TEAM SOUTHWARK 9 PLUS,CONTRIBUTION TO PROVISIONS (TP PAYMENTS),2102974609,1000081423
04.07.2019,CHILDREN'S SERVICES,VIBE TEACHER RECRUITMENT LTD,"1,250.00",PFA TEAM SOUTHWARK 9 PLUS,CONTRIBUTION TO PROVISIONS (TP PAYMENTS),2102974612,1000081423
04.07.2019,CHILDREN'S SERVICES,NEWLANDS ACADEMY,"5,015.94",PFA TEAM SOUTHWARK 9 PLUS,CONTRIBUTION TO PROVISIONS (TP PAYMENTS),2102974588,1000072567
04.07.2019,CHILDREN'S SERVICES,TUKE SCHOOL,"5,333.33",PFA TEAM SOUTHWARK 9 PLUS,CONTRIBUTION TO PROVISIONS (TP PAYMENTS),2102974583,5001000097
04.07.2019,CHILDREN'S SERVICES,TUKE SCHOOL,"5,333.33",PFA TEAM SOUTHWARK 9 PLUS,CONTRIBUTION TO PROVISIONS (TP PAYMENTS),2102974584,5001000097
04.07.2019,CHILDREN'S SERVICES,TUKE SCHOOL,"7,200.00",PFA TEAM SOUTHWARK 9 PLUS,CONTRIBUTION TO PROVISIONS (TP PAYMENTS),2102974586,5001000097
04.07.2019,CHILDREN'S SERVICES,INTERHIGH EDUCATION,450,PFA TEAM SOUTHWARK 9 PLUS,"SCHOOLS CAPITATION, OTHER GRANTS",2102974503,1000071250
04.07.2019,CHILDREN'S SERVICES,THE COMPLETE WORKS INDEPENDENT SCHOOL,945.95,PFA TEAM SOUTHWARK 9 PLUS,"SCHOOLS CAPITATION, OTHER GRANTS",2102974593,1000033256
04.07.2019,CHILDREN'S SERVICES,THE COMPLETE WORKS INDEPENDENT SCHOOL,"4,500.00",PFA TEAM SOUTHWARK 9 PLUS,"SCHOOLS CAPITATION, OTHER GRANTS",2102974567,1000033256
04.07.2019,CHILDREN'S SERVICES,THE COMPLETE WORKS INDEPENDENT SCHOOL,"4,500.00",PFA TEAM SOUTHWARK 9 PLUS,"SCHOOLS CAPITATION, OTHER GRANTS",2102974570,1000033256
04.07.2019,CHILDREN'S SERVICES,THE COMPLETE WORKS INDEPENDENT SCHOOL,"4,500.00",PFA TEAM SOUTHWARK 9 PLUS,"SCHOOLS CAPITATION, OTHER GRANTS",2102974592,1000033256
04.07.2019,CHILDREN'S SERVICES,THE COMPLETE WORKS INDEPENDENT SCHOOL,"6,066.67",PFA TEAM SOUTHWARK 9 PLUS,"SCHOOLS CAPITATION, OTHER GRANTS",2102974590,1000033256
04.07.2019,CHILDREN'S SERVICES,THE COMPLETE WORKS INDEPENDENT SCHOOL,"6,391.35",PFA TEAM SOUTHWARK 9 PLUS,"SCHOOLS CAPITATION, OTHER GRANTS",2102974540,1000033256
04.07.2019,CHILDREN'S SERVICES,THE COMPLETE WORKS INDEPENDENT SCHOOL,"7,000.00",PFA TEAM SOUTHWARK 9 PLUS,"SCHOOLS CAPITATION, OTHER GRANTS",2102974552,1000033256
04.07.2019,CHILDREN'S SERVICES,THE COMPLETE WORKS INDEPENDENT SCHOOL,"7,000.00",PFA TEAM SOUTHWARK 9 PLUS,"SCHOOLS CAPITATION, OTHER GRANTS",2102974553,1000033256
04.07.2019,CHILDREN'S SERVICES,THE COMPLETE WORKS INDEPENDENT SCHOOL,"7,000.00",PFA TEAM SOUTHWARK 9 PLUS,"SCHOOLS CAPITATION, OTHER GRANTS",2102974556,1000033256
04.07.2019,CHILDREN'S SERVICES,THE COMPLETE WORKS INDEPENDENT SCHOOL,"7,000.00",PFA TEAM SOUTHWARK 9 PLUS,"SCHOOLS CAPITATION, OTHER GRANTS",2102974557,1000033256
04.07.2019,CHILDREN'S SERVICES,THE COMPLETE WORKS INDEPENDENT SCHOOL,"7,000.00",PFA TEAM SOUTHWARK 9 PLUS,"SCHOOLS CAPITATION, OTHER GRANTS",2102974558,1000033256
04.07.2019,CHILDREN'S SERVICES,THE COMPLETE WORKS INDEPENDENT SCHOOL,"7,000.00",PFA TEAM SOUTHWARK 9 PLUS,"SCHOOLS CAPITATION, OTHER GRANTS",2102974559,1000033256
04.07.2019,CHILDREN'S SERVICES,THE COMPLETE WORKS INDEPENDENT SCHOOL,"7,000.00",PFA TEAM SOUTHWARK 9 PLUS,"SCHOOLS CAPITATION, OTHER GRANTS",2102974560,1000033256
04.07.2019,CHILDREN'S SERVICES,THE COMPLETE WORKS INDEPENDENT SCHOOL,"7,000.00",PFA TEAM SOUTHWARK 9 PLUS,"SCHOOLS CAPITATION, OTHER GRANTS",2102974561,1000033256
04.07.2019,CHILDREN'S SERVICES,THE COMPLETE WORKS INDEPENDENT SCHOOL,"7,000.00",PFA TEAM SOUTHWARK 9 PLUS,"SCHOOLS CAPITATION, OTHER GRANTS",2102974562,1000033256
04.07.2019,CHILDREN'S SERVICES,THE COMPLETE WORKS INDEPENDENT SCHOOL,"7,000.00",PFA TEAM SOUTHWARK 9 PLUS,"SCHOOLS CAPITATION, OTHER GRANTS",2102974563,1000033256
04.07.2019,CHILDREN'S SERVICES,THE COMPLETE WORKS INDEPENDENT SCHOOL,"7,000.00",PFA TEAM SOUTHWARK 9 PLUS,"SCHOOLS CAPITATION, OTHER GRANTS",2102974564,1000033256
04.07.2019,CHILDREN'S SERVICES,THE COMPLETE WORKS INDEPENDENT SCHOOL,"7,000.00",PFA TEAM SOUTHWARK 9 PLUS,"SCHOOLS CAPITATION, OTHER GRANTS",2102974565,1000033256
04.07.2019,CHILDREN'S SERVICES,THE COMPLETE WORKS INDEPENDENT SCHOOL,"7,000.00",PFA TEAM SOUTHWARK 9 PLUS,"SCHOOLS CAPITATION, OTHER GRANTS",2102974566,1000033256
04.07.2019,CHILDREN'S SERVICES,THE COMPLETE WORKS INDEPENDENT SCHOOL,"7,000.00",PFA TEAM SOUTHWARK 9 PLUS,"SCHOOLS CAPITATION, OTHER GRANTS",2102974568,1000033256
04.07.2019,CHILDREN'S SERVICES,THE COMPLETE WORKS INDEPENDENT SCHOOL,"7,000.00",PFA TEAM SOUTHWARK 9 PLUS,"SCHOOLS CAPITATION, OTHER GRANTS",2102974569,1000033256
04.07.2019,CHILDREN'S SERVICES,THE COMPLETE WORKS INDEPENDENT SCHOOL,"7,000.00",PFA TEAM SOUTHWARK 9 PLUS,"SCHOOLS CAPITATION, OTHER GRANTS",2102974571,1000033256
04.07.2019,CHILDREN'S SERVICES,THE COMPLETE WORKS INDEPENDENT SCHOOL,"7,000.00",PFA TEAM SOUTHWARK 9 PLUS,"SCHOOLS CAPITATION, OTHER GRANTS",2102974589,1000033256
04.07.2019,CHILDREN'S SERVICES,THE COMPLETE WORKS INDEPENDENT SCHOOL,"7,000.00",PFA TEAM SOUTHWARK 9 PLUS,"SCHOOLS CAPITATION, OTHER GRANTS",2102974591,1000033256
04.07.2019,CHILDREN'S SERVICES,THE COMPLETE WORKS INDEPENDENT SCHOOL,"7,000.00",PFA TEAM SOUTHWARK 9 PLUS,"SCHOOLS CAPITATION, OTHER GRANTS",2102974594,1000033256
04.07.2019,CHILDREN'S SERVICES,THE COMPLETE WORKS INDEPENDENT SCHOOL,"7,000.00",PFA TEAM SOUTHWARK 9 PLUS,"SCHOOLS CAPITATION, OTHER GRANTS",2102974595,1000033256
04.07.2019,CHILDREN'S SERVICES,NEWLANDS ACADEMY,"6,714.57",PFA TEAM SOUTHWARK 9 PLUS,STATEMENTED FEES,2102974501,1000072567
04.07.2019,CHILDREN'S SERVICES,NEWLANDS ACADEMY,"6,714.57",PFA TEAM SOUTHWARK 9 PLUS,STATEMENTED FEES,2102974505,1000072567
04.07.2019,CHILDREN'S SERVICES,NEWLANDS ACADEMY,"6,714.57",PFA TEAM SOUTHWARK 9 PLUS,STATEMENTED FEES,2102974506,1000072567
04.07.2019,CHILDREN'S SERVICES,NEWLANDS ACADEMY,"6,714.57",PFA TEAM SOUTHWARK 9 PLUS,STATEMENTED FEES,2102974509,1000072567
04.07.2019,CHILDREN'S SERVICES,NEWLANDS ACADEMY,"6,714.57",PFA TEAM SOUTHWARK 9 PLUS,STATEMENTED FEES,2102974510,1000072567
04.07.2019,CHILDREN'S SERVICES,NEWLANDS ACADEMY,"6,714.57",PFA TEAM SOUTHWARK 9 PLUS,STATEMENTED FEES,2102974511,1000072567
04.07.2019,CHILDREN'S SERVICES,NEWLANDS ACADEMY,"6,714.57",PFA TEAM SOUTHWARK 9 PLUS,STATEMENTED FEES,2102974512,1000072567
04.07.2019,CHILDREN'S SERVICES,NEWLANDS ACADEMY,"6,714.57",PFA TEAM SOUTHWARK 9 PLUS,STATEMENTED FEES,2102974513,1000072567
04.07.2019,CHILDREN'S SERVICES,NEWLANDS ACADEMY,"6,714.57",PFA TEAM SOUTHWARK 9 PLUS,STATEMENTED FEES,2102974514,1000072567
04.07.2019,CHILDREN'S SERVICES,NEWLANDS ACADEMY,"6,714.57",PFA TEAM SOUTHWARK 9 PLUS,STATEMENTED FEES,2102974516,1000072567
04.07.2019,CHILDREN'S SERVICES,NEWLANDS ACADEMY,"6,714.57",PFA TEAM SOUTHWARK 9 PLUS,STATEMENTED FEES,2102974518,1000072567
04.07.2019,CHILDREN'S SERVICES,NEWLANDS ACADEMY,"6,714.57",PFA TEAM SOUTHWARK 9 PLUS,STATEMENTED FEES,2102974519,1000072567
04.07.2019,CHILDREN'S SERVICES,NEWLANDS ACADEMY,"6,714.57",PFA TEAM SOUTHWARK 9 PLUS,STATEMENTED FEES,2102974523,1000072567
04.07.2019,CHILDREN'S SERVICES,NEWLANDS ACADEMY,"6,714.57",PFA TEAM SOUTHWARK 9 PLUS,STATEMENTED FEES,2102974524,1000072567
04.07.2019,CHILDREN'S SERVICES,NEWLANDS ACADEMY,"6,714.57",PFA TEAM SOUTHWARK 9 PLUS,STATEMENTED FEES,2102974526,1000072567
04.07.2019,CHILDREN'S SERVICES,NEWLANDS ACADEMY,"6,714.57",PFA TEAM SOUTHWARK 9 PLUS,STATEMENTED FEES,2102974527,1000072567
04.07.2019,CHILDREN'S SERVICES,NEWLANDS ACADEMY,"6,714.57",PFA TEAM SOUTHWARK 9 PLUS,STATEMENTED FEES,2102974531,1000072567
04.07.2019,CHILDREN'S SERVICES,NEWLANDS ACADEMY,"6,714.57",PFA TEAM SOUTHWARK 9 PLUS,STATEMENTED FEES,2102974533,1000072567
04.07.2019,CHILDREN'S SERVICES,NEWLANDS ACADEMY,"6,714.57",PFA TEAM SOUTHWARK 9 PLUS,STATEMENTED FEES,2102974534,1000072567
04.07.2019,CHILDREN'S SERVICES,NEWLANDS ACADEMY,"6,714.57",PFA TEAM SOUTHWARK 9 PLUS,STATEMENTED FEES,2102974537,1000072567
04.07.2019,CHILDREN'S SERVICES,NEWLANDS ACADEMY,"6,714.57",PFA TEAM SOUTHWARK 9 PLUS,STATEMENTED FEES,2102974538,1000072567
04.07.2019,CHILDREN'S SERVICES,NEWLANDS ACADEMY,"6,714.57",PFA TEAM SOUTHWARK 9 PLUS,STATEMENTED FEES,2102974574,1000072567
04.07.2019,CHILDREN'S SERVICES,SOUTHWARK INCLUSIVE LEARNING SERVICE,"15,194.00",PUPIL PREMIUM,"SCHOOLS CAPITATION, STANDARDS FUND",5902366439,5001000105
04.07.2019,CHILDREN'S SERVICES,BETHLEM & MAUDSLEY HOSPITAL SCHOOL,"1,870.00",PUPIL PREMIUM,"SCHOOLS CAPITATION, STANDARDS FUND",5902366382,5001000010
04.07.2019,CHILDREN'S SERVICES,EVELINA HOSPITAL SCHOOL,"3,273.00",PUPIL PREMIUM,"SCHOOLS CAPITATION, STANDARDS FUND",5902366398,5001000031
04.07.2019,CHILDREN'S SERVICES,TUKE SCHOOL,"7,948.00",PUPIL PREMIUM,"SCHOOLS CAPITATION, STANDARDS FUND",5902366437,5001000097
04.07.2019,CHILDREN'S SERVICES,DULWICH VILLAGE CE INFANTS SCHOOL,"8,560.00",PUPIL PREMIUM,"SCHOOLS CAPITATION, STANDARDS FUND",5902366394,5001000027
04.07.2019,CHILDREN'S SERVICES,BEORMUND PRIMARY SCHOOL,"9,570.00",PUPIL PREMIUM,"SCHOOLS CAPITATION, STANDARDS FUND",5902366380,5001000008
04.07.2019,CHILDREN'S SERVICES,CHERRY GARDEN SCHOOL,"9,900.00",PUPIL PREMIUM,"SCHOOLS CAPITATION, STANDARDS FUND",5902366389,5001000020
04.07.2019,CHILDREN'S SERVICES,ST JOSEPHS CATHOLIC INFANTS SCHOOL,"11,550.00",PUPIL PREMIUM,"SCHOOLS CAPITATION, STANDARDS FUND",5902366387,5001000018
04.07.2019,CHILDREN'S SERVICES,CATHEDRAL SCHOOL OF ST SAVIOUR & MARY,"11,880.00",PUPIL PREMIUM,"SCHOOLS CAPITATION, STANDARDS FUND",5902366435,5001000088
04.07.2019,CHILDREN'S SERVICES,HIGHSHORE SCHOOL,"13,090.00",PUPIL PREMIUM,"SCHOOLS CAPITATION, STANDARDS FUND",5902366408,5001000046
04.07.2019,CHILDREN'S SERVICES,ST JUDES CHURCH OF ENGLAND PRIMARY,"14,520.00",PUPIL PREMIUM,"SCHOOLS CAPITATION, STANDARDS FUND",5902366388,5001000019
04.07.2019,CHILDREN'S SERVICES,ST GEORGES RC SCHOOL,"14,765.00",PUPIL PREMIUM,"SCHOOLS CAPITATION, STANDARDS FUND",5902366423,5001000068
04.07.2019,CHILDREN'S SERVICES,ST PETERS CE SCHOOL,"16,564.00",PUPIL PREMIUM,"SCHOOLS CAPITATION, STANDARDS FUND",5902366433,5001000083
04.07.2019,CHILDREN'S SERVICES,BOUCHER C OF E PRIMARY SCHOOL,"17,820.00",PUPIL PREMIUM,"SCHOOLS CAPITATION, STANDARDS FUND",5902366383,5001000011
04.07.2019,CHILDREN'S SERVICES,ST JOSEPHS CATHOLIC PRIMARY SCHOOL,"17,980.00",PUPIL PREMIUM,"SCHOOLS CAPITATION, STANDARDS FUND",5902366432,5001000078
04.07.2019,CHILDREN'S SERVICES,HAYMERLE SCHOOL,"18,810.00",PUPIL PREMIUM,"SCHOOLS CAPITATION, STANDARDS FUND",5902366407,5001000045
04.07.2019,CHILDREN'S SERVICES,PETER HILLS CE SCHOOL,"18,810.00",PUPIL PREMIUM,"SCHOOLS CAPITATION, STANDARDS FUND",5902366412,5001000053
04.07.2019,CHILDREN'S SERVICES,ST GEORGES CE SCHOOL,"19,140.00",PUPIL PREMIUM,"SCHOOLS CAPITATION, STANDARDS FUND",5902366424,5001000069
04.07.2019,CHILDREN'S SERVICES,VICTORY SCHOOL,"19,470.00",PUPIL PREMIUM,"SCHOOLS CAPITATION, STANDARDS FUND",5902366438,5001000098
04.07.2019,CHILDREN'S SERVICES,ST ANTHONYS RC SCHOOL,"20,620.00",PUPIL PREMIUM,"SCHOOLS CAPITATION, STANDARDS FUND",5902366420,5001000064
04.07.2019,CHILDREN'S SERVICES,SNOWSFIELDS PRIMARY SCHOOL,"21,365.00",PUPIL PREMIUM,"SCHOOLS CAPITATION, STANDARDS FUND",5902366418,5001000061
04.07.2019,CHILDREN'S SERVICES,HEBER PRIMARY SCHOOL,"22,110.00",PUPIL PREMIUM,"SCHOOLS CAPITATION, STANDARDS FUND",5902366401,5001000035
04.07.2019,CHILDREN'S SERVICES,ST JOHNS & ST CLEMENTS CE SCHOOL,"22,420.00",PUPIL PREMIUM,"SCHOOLS CAPITATION, STANDARDS FUND",5902366427,5001000073
04.07.2019,CHILDREN'S SERVICES,ST JOSEPHS CATHOLIC SCHOOL,"22,770.00",PUPIL PREMIUM,"SCHOOLS CAPITATION, STANDARDS FUND",5902366430,5001000076
04.07.2019,CHILDREN'S SERVICES,ST JAMES THE GREAT RC SCHOOL,"23,760.00",PUPIL PREMIUM,"SCHOOLS CAPITATION, STANDARDS FUND",5902366426,5001000071
04.07.2019,CHILDREN'S SERVICES,HOLLYDALE PRIMARY SCHOOL,"24,250.00",PUPIL PREMIUM,"SCHOOLS CAPITATION, STANDARDS FUND",5902366402,5001000036
04.07.2019,CHILDREN'S SERVICES,ST JOHNS RC PRIMARY SCHOOL,"25,740.00",PUPIL PREMIUM,"SCHOOLS CAPITATION, STANDARDS FUND",5902366429,5001000075
04.07.2019,CHILDREN'S SERVICES,BELLENDEN PRIMARY SCHOOL,"27,220.00",PUPIL PREMIUM,"SCHOOLS CAPITATION, STANDARDS FUND",5902366379,5001000007
04.07.2019,CHILDREN'S SERVICES,COMBER GROVE PRIMARY SCHOOL,"27,720.00",PUPIL PREMIUM,"SCHOOLS CAPITATION, STANDARDS FUND",5902366391,5001000022
04.07.2019,CHILDREN'S SERVICES,BESSEMER GRANGE PRIMARY SCHOOL,"28,050.00",PUPIL PREMIUM,"SCHOOLS CAPITATION, STANDARDS FUND",5902366381,5001000009
04.07.2019,CHILDREN'S SERVICES,ST JOSEPHS RC PRIMARY SCHOOL,"28,380.00",PUPIL PREMIUM,"SCHOOLS CAPITATION, STANDARDS FUND",5902366431,5001000077
04.07.2019,CHILDREN'S SERVICES,ST JOSEPHS RC JUNIOR  SCHOOL,"28,870.00",PUPIL PREMIUM,"SCHOOLS CAPITATION, STANDARDS FUND",5902366386,5001000017
04.07.2019,CHILDREN'S SERVICES,FRIARS PRIMARY SCHOOL,"29,285.00",PUPIL PREMIUM,"SCHOOLS CAPITATION, STANDARDS FUND",5902366400,5001000033
04.07.2019,CHILDREN'S SERVICES,TOWER BRIDGE PRIMARY SCHOOL,"29,370.00",PUPIL PREMIUM,"SCHOOLS CAPITATION, STANDARDS FUND",5902366436,5001000095
04.07.2019,CHILDREN'S SERVICES,ENGLISH MARTYRS RC PRIMARY SCHOOL,"30,105.00",PUPIL PREMIUM,"SCHOOLS CAPITATION, STANDARDS FUND",5902366397,5001000030
04.07.2019,CHILDREN'S SERVICES,PILGRIM'S WAY PRIMARY SCHOOL,"33,000.00",PUPIL PREMIUM,"SCHOOLS CAPITATION, STANDARDS FUND",5902366413,5001000054
04.07.2019,CHILDREN'S SERVICES,DULWICH WOOD PRIMARY SCHOOL,"33,330.00",PUPIL PREMIUM,"SCHOOLS CAPITATION, STANDARDS FUND",5902366406,5001000042
04.07.2019,CHILDREN'S SERVICES,ST FRANCESCA CABRINI PRIMARY SCHOOL,"33,905.00",PUPIL PREMIUM,"SCHOOLS CAPITATION, STANDARDS FUND",5902366421,5001000065
04.07.2019,CHILDREN'S SERVICES,DOG KENNEL HILL PRIMARY SCHOOL,"33,990.00",PUPIL PREMIUM,"SCHOOLS CAPITATION, STANDARDS FUND",5902366393,5001000025
04.07.2019,CHILDREN'S SERVICES,ROBERT BROWNING PRIMARY SCHOOL,"35,970.00",PUPIL PREMIUM,"SCHOOLS CAPITATION, STANDARDS FUND",5902366415,5001000057
04.07.2019,CHILDREN'S SERVICES,ST FRANCIS'S RC PRIMARY SCHOOL,"36,630.00",PUPIL PREMIUM,"SCHOOLS CAPITATION, STANDARDS FUND",5902366422,5001000067
04.07.2019,CHILDREN'S SERVICES,COBOURG PRIMARY SCHOOL,"38,280.00",PUPIL PREMIUM,"SCHOOLS CAPITATION, STANDARDS FUND",5902366390,5001000021
04.07.2019,CHILDREN'S SERVICES,SOUTHWARK PARK PRIMARY SCHOOL,"39,760.00",PUPIL PREMIUM,"SCHOOLS CAPITATION, STANDARDS FUND",5902366419,5001000062
04.07.2019,CHILDREN'S SERVICES,GOODRICH PRIMARY SCHOOL,"43,040.00",PUPIL PREMIUM,"SCHOOLS CAPITATION, STANDARDS FUND",5902366395,5001000028
04.07.2019,CHILDREN'S SERVICES,RIVERSIDE PRIMARY SCHOOL,"44,220.00",PUPIL PREMIUM,"SCHOOLS CAPITATION, STANDARDS FUND",5902366414,5001000056
04.07.2019,CHILDREN'S SERVICES,RYE OAK PRIMARY SCHOOL,"44,880.00",PUPIL PREMIUM,"SCHOOLS CAPITATION, STANDARDS FUND",5902366417,5001000059
04.07.2019,CHILDREN'S SERVICES,KEYWORTH PRIMARY SCHOOL,"46,860.00",PUPIL PREMIUM,"SCHOOLS CAPITATION, STANDARDS FUND",5902366405,5001000041
04.07.2019,CHILDREN'S SERVICES,ALFRED SALTER PRIMARY SCHOOL,"49,565.00",PUPIL PREMIUM,"SCHOOLS CAPITATION, STANDARDS FUND",5902366378,5001000005
04.07.2019,CHILDREN'S SERVICES,ALBION PRIMARY SCHOOL,"49,660.00",PUPIL PREMIUM,"SCHOOLS CAPITATION, STANDARDS FUND",5902366377,5001000000
04.07.2019,CHILDREN'S SERVICES,CHARLES DICKENS PRIMARY SCHOOL,"52,705.00",PUPIL PREMIUM,"SCHOOLS CAPITATION, STANDARDS FUND",5902366385,5001000015
04.07.2019,CHILDREN'S SERVICES,MICHAEL FARADAY PRIMARY SCHOOL,"53,205.00",PUPIL PREMIUM,"SCHOOLS CAPITATION, STANDARDS FUND",5902366409,5001000048
04.07.2019,CHILDREN'S SERVICES,OLIVER GOLDSMITH PRIMARY SCHOOL,"55,440.00",PUPIL PREMIUM,"SCHOOLS CAPITATION, STANDARDS FUND",5902366411,5001000051
04.07.2019,CHILDREN'S SERVICES,ILDERTON PRIMARY SCHOOL,"55,600.00",PUPIL PREMIUM,"SCHOOLS CAPITATION, STANDARDS FUND",5902366403,5001000037
04.07.2019,CHILDREN'S SERVICES,ROTHERHITHE PRIMARY SCHOOL,"58,080.00",PUPIL PREMIUM,"SCHOOLS CAPITATION, STANDARDS FUND",5902366416,5001000058
04.07.2019,CHILDREN'S SERVICES,GRANGE PRIMARY SCHOOL,"59,730.00",PUPIL PREMIUM,"SCHOOLS CAPITATION, STANDARDS FUND",5902366396,5001000029
04.07.2019,CHILDREN'S SERVICES,JOHN RUSKIN PRIMARY SCHOOL,"60,795.00",PUPIL PREMIUM,"SCHOOLS CAPITATION, STANDARDS FUND",5902366404,5001000040
04.07.2019,CHILDREN'S SERVICES,ST SAVIOURS & ST OLAVES SCHOOL,"61,827.00",PUPIL PREMIUM,"SCHOOLS CAPITATION, STANDARDS FUND",5902366434,5001000084
04.07.2019,CHILDREN'S SERVICES,PHOENIX PRIMARY SCHOOL,"65,085.00",PUPIL PREMIUM,"SCHOOLS CAPITATION, STANDARDS FUND",5902366399,5001000032
04.07.2019,CHILDREN'S SERVICES,BRUNSWICK PARK PRIMARY SCHOOL,"65,500.00",PUPIL PREMIUM,"SCHOOLS CAPITATION, STANDARDS FUND",5902366384,5001000013
04.07.2019,CHILDREN'S SERVICES,CRAWFORD PRIMARY SCHOOL,"65,575.00",PUPIL PREMIUM,"SCHOOLS CAPITATION, STANDARDS FUND",5902366392,5001000024
04.07.2019,CHILDREN'S SERVICES,NOTRE DAME RC GIRLS SCHOOL,"71,116.00",PUPIL PREMIUM,"SCHOOLS CAPITATION, STANDARDS FUND",5902366410,5001000050
04.07.2019,CHILDREN'S SERVICES,THE ST THOMAS THE APOSTLE COLLEGE,"74,333.00",PUPIL PREMIUM,"SCHOOLS CAPITATION, STANDARDS FUND",5902366428,5001000074
04.07.2019,CHILDREN'S SERVICES,ST JAMES CE SCHOOL,"81,510.00",PUPIL PREMIUM,"SCHOOLS CAPITATION, STANDARDS FUND",5902366425,5001000070
04.07.2019,CHILDREN'S SERVICES,FUTURE FOUNDATIONS LTD,"1,667.14",S24 CLA,EXTERNAL AGENCIES AND BODIES,2102974886,1000063272
04.07.2019,CHILDREN'S SERVICES,FUTURE FOUNDATIONS LTD,"2,520.00",S24 CLA,EXTERNAL AGENCIES AND BODIES,2102974891,1000063272
04.07.2019,CHILDREN'S SERVICES,FUTURE FOUNDATIONS LTD,"2,815.71",S24 CLA,EXTERNAL AGENCIES AND BODIES,2102974887,1000063272
04.07.2019,CHILDREN'S SERVICES,FUTURE FOUNDATIONS LTD,"4,277.14",S24 CLA,EXTERNAL AGENCIES AND BODIES,2102974892,1000063272
04.07.2019,CHILDREN'S SERVICES,FUTURE FOUNDATIONS LTD,"4,277.14",S24 CLA,EXTERNAL AGENCIES AND BODIES,2102974893,1000063272
04.07.2019,CHILDREN'S SERVICES,PULSE HEALTHCARE LTD,308,SCH TRANS - CONTRACT COST,AGENCY STAFF,5902366329,1000035063
04.07.2019,CHILDREN'S SERVICES,FUTURE FOUNDATIONS LTD,"2,322.85",SEMI INDEPENDENT,EXTERNAL AGENCIES AND BODIES,2102974881,1000063272
04.07.2019,CHILDREN'S SERVICES,FUTURE FOUNDATIONS LTD,"2,611.14",SEMI INDEPENDENT,EXTERNAL AGENCIES AND BODIES,2102974899,1000063272
04.07.2019,CHILDREN'S SERVICES,FUTURE FOUNDATIONS LTD,"2,815.71",SEMI INDEPENDENT,EXTERNAL AGENCIES AND BODIES,2102974895,1000063272
04.07.2019,CHILDREN'S SERVICES,FUTURE FOUNDATIONS LTD,"3,113.28",SEMI INDEPENDENT,EXTERNAL AGENCIES AND BODIES,2102974894,1000063272
04.07.2019,CHILDREN'S SERVICES,FUTURE FOUNDATIONS LTD,"4,277.14",SEMI INDEPENDENT,EXTERNAL AGENCIES AND BODIES,2102974897,1000063272
04.07.2019,CHILDREN'S SERVICES,FUTURE FOUNDATIONS LTD,257.14,SEMI INDEPENDENT,OTHER PAYMENTS FOR CLIENTS,2102974900,1000063272
04.07.2019,CHILDREN'S SERVICES,ARC COMMUNITY TRUSTEES,650,SPECIAL GUARDIANSHIP,EXTERNAL AGENCIES AND BODIES,5902366501,1000046206
04.07.2019,CHILDREN'S SERVICES,ARC COMMUNITY TRUSTEES,650,SPECIAL GUARDIANSHIP,EXTERNAL AGENCIES AND BODIES,5902366502,1000046206
04.07.2019,CHILDREN'S SERVICES,FUTURE FOUNDATIONS LTD,"1,667.14",UASC SECTION 24,EXTERNAL AGENCIES AND BODIES,2102974880,1000063272
04.07.2019,CHILDREN'S SERVICES,FUTURE FOUNDATIONS LTD,"1,667.14",UASC SECTION 24,EXTERNAL AGENCIES AND BODIES,2102974882,1000063272
04.07.2019,CHILDREN'S SERVICES,FUTURE FOUNDATIONS LTD,"1,667.14",UASC SECTION 24,EXTERNAL AGENCIES AND BODIES,2102974883,1000063272
04.07.2019,CHILDREN'S SERVICES,FUTURE FOUNDATIONS LTD,"1,667.14",UASC SECTION 24,EXTERNAL AGENCIES AND BODIES,2102974884,1000063272
04.07.2019,CHILDREN'S SERVICES,FUTURE FOUNDATIONS LTD,"1,667.14",UASC SECTION 24,EXTERNAL AGENCIES AND BODIES,2102974889,1000063272
04.07.2019,CHILDREN'S SERVICES,FUTURE FOUNDATIONS LTD,"1,667.14",UASC SECTION 24,EXTERNAL AGENCIES AND BODIES,2102974890,1000063272
04.07.2019,CHILDREN'S SERVICES,FUTURE FOUNDATIONS LTD,"2,421.00",UASC SECTION 24,EXTERNAL AGENCIES AND BODIES,2102974885,1000063272
04.07.2019,CHILDREN'S SERVICES,FUTURE FOUNDATIONS LTD,"2,520.00",UASC SECTION 24,EXTERNAL AGENCIES AND BODIES,2102974879,1000063272
04.07.2019,CHILDREN'S SERVICES,FUTURE FOUNDATIONS LTD,"2,322.85",UNACCOMPANIED ASYLUM CHILDREN 16-17,EXTERNAL AGENCIES AND BODIES,2102974898,1000063272
04.07.2019,CHILDREN'S SERVICES,FUTURE FOUNDATIONS LTD,257.14,UNACCOMPANIED ASYLUM CHILDREN 16-17,OTHER PAYMENTS FOR CLIENTS,2102974896,1000063272
04.07.2019,CHILDREN'S SERVICES,FUTURE FOUNDATIONS LTD,257.14,UNACCOMPANIED ASYLUM CHILDREN 16-17,OTHER PAYMENTS FOR CLIENTS,2102974901,1000063272
04.07.2019,CHILDREN'S SERVICES,ISABELLE GRAVENSTEIN T/A REVIVAL,348,YOS SUPPORT,MEDICAL / HEALTH & SAFETY SERVICES,5902366358,1000027424
04.07.2019,COMMUNITIES,DELAWYK RESIDENTS MGT ORG LTD,532.3,DELAWYK RMO RENT INCOME,M&M ALLOWANCE CO-OPS,5902366458,1000052920
04.07.2019,COMMUNITIES,THAMES HOMECARE SERVICE LTD,281.93,NO RECOURSE TO PUBLIC FUNDS,HOMECARE - C&V,2102974800,1000079295
04.07.2019,COMMUNITIES,PROFAD CARE AGENCY,316.2,NO RECOURSE TO PUBLIC FUNDS,HOMECARE - C&V,2102974758,1000079032
04.07.2019,COMMUNITIES,PROFAD CARE AGENCY,"5,468.40",NO RECOURSE TO PUBLIC FUNDS,HOMECARE - C&V,2102974750,1000079032
04.07.2019,COMMUNITIES,SOUTHWARK GROUP OF TENANTS ORGANISATION,"57,115.94",TENANTS FUND,EXTERNAL AGENCIES AND BODIES,5902366373,1479419
04.07.2019,CUSTOMER EXPERIENCE HGF,ACCESS INDEPENDENT LTD,"2,487.25",BLUE BADGES,PROFESSIONAL FEES,5902365804,1000059141
04.07.2019,CUSTOMER EXPERIENCE HGF,FRESHVIEW ESTATES LTD,"1,299.06",HOMELESS PROJECTS,GRANTS,5902366370,1000081189
04.07.2019,ENVIRONMENT AND LEISURE,MILTON KEYNES SURVEYS LTD,"2,000.00",CAPITAL PS (LEISURE),CONSTRUCTION,5902365940,1000077138
04.07.2019,ENVIRONMENT AND LEISURE,COGNETIX LTD,"7,800.00",CAPITAL PS (LEISURE),CONSTRUCTION FEES  - EXTERNAL,5902366346,1000050607
04.07.2019,ENVIRONMENT DIRECTORATE,CONWAY AECOM LTD,"1,730.69",PARKING OVERHEADS,OTHER CONTRACTORS,2102974917,3000001595
04.07.2019,ENVIRONMENT DIRECTORATE,CONWAY AECOM LTD,"2,101.05",PARKING OVERHEADS,OTHER CONTRACTORS,2102974916,3000001595
04.07.2019,ENVIRONMENT DIRECTORATE,CONWAY AECOM LTD,"7,705.35",PARKING OVERHEADS,OTHER CONTRACTORS,2102974915,3000001595
04.07.2019,ENVIRONMENT DIRECTORATE,GOVNET COMMUNICATIONS,395,PARKING OVERHEADS,TRAINING,5902366494,1000050132
04.07.2019,ENVIRONMENT DIRECTORATE,ASD LIGHTING PLC,"1,741.50",PUBLIC LIGHTING,MATERIALS,5902366487,1000079671
04.07.2019,ENVIRONMENT DIRECTORATE,COMMUNITY CYCLEWORKS,510,"ROAD SAFETY EDUCATION,TRAINING&PUBLICITY",PROFESSIONAL FEES,5902366504,1000073000
04.07.2019,ENVIRONMENT DIRECTORATE,GEOPLACE LLP,450,STREET WORKS OVERHEADS,MARKETING & PUBLICITY SERVICES,5902366496,1000074589
04.07.2019,ENVIRONMENT DIRECTORATE,NPOWER LTD,317.37,STRUCTURES MAJOR ROADS,OTHER CONTRACTORS,5902366060,1000078994
04.07.2019,EXTERNAL AFFAIRS,WHATEVER DESIGN LTD,"3,370.00",SOUTHWARK LIFE,MARKETING & PUBLICITY SERVICES,5902366452,1000036500
04.07.2019,FINANCIAL AND INFORMATION GOVERNANCE,HEYWOOD LIMITED,"1,600.00",PENSIONS,CONSULTANTS SERVICES,5902366328,1000038304
04.07.2019,FINANCIAL AND INFORMATION GOVERNANCE,HEYWOOD LIMITED,"40,000.00",PENSIONS,CONSULTANTS SERVICES,5902366328,1000038304
04.07.2019,HOUSING GENERAL FUND,LIBRA CONSTRUCTION SERVICES LTD,"2,616.00",CAPITAL PS (REGEN),CONSTRUCTION MAIN CONTRACT -CERTIFICATED,2102974920,3000000875
04.07.2019,HOUSING GENERAL FUND,LIBRA CONSTRUCTION SERVICES LTD,"10,616.30",CAPITAL PS (REGEN),CONSTRUCTION MAIN CONTRACT -CERTIFICATED,2102974919,3000000875
04.07.2019,HOUSING HRA,ROBINSON LOW FRANCIS LLP,777.21,CAPITAL PS (HRA),CONSTRUCTION FEES  - EXTERNAL,5902366453,1000025405
04.07.2019,HOUSING HRA,BUILDING RESEARCH ESTABLISHMENT LTD,"2,600.00",CAPITAL PS (HRA),CONSTRUCTION FEES  - EXTERNAL,5902366481,11136069
04.07.2019,HOUSING HRA,CALFORD SEADEN LLP,"3,103.38",CAPITAL PS (HRA),CONSTRUCTION FEES  - EXTERNAL,5902366444,1061592
04.07.2019,HOUSING HRA,TURKINGTON DESIGN STUDIO LTD,"3,200.00",CAPITAL PS (HRA),CONSTRUCTION FEES  - EXTERNAL,5902366441,1000082900
04.07.2019,HOUSING HRA,ROBINSON LOW FRANCIS LLP,"4,080.00",CAPITAL PS (HRA),CONSTRUCTION FEES  - EXTERNAL,5902366461,1000025405
04.07.2019,HOUSING HRA,ROBINSON LOW FRANCIS LLP,"5,343.33",CAPITAL PS (HRA),CONSTRUCTION FEES  - EXTERNAL,5902366455,1000025405
04.07.2019,HOUSING HRA,ROBINSON LOW FRANCIS LLP,"6,840.00",CAPITAL PS (HRA),CONSTRUCTION FEES  - EXTERNAL,5902366457,1000025405
04.07.2019,HOUSING HRA,POTTER RAPER LTD,"8,670.56",CAPITAL PS (HRA),CONSTRUCTION FEES  - EXTERNAL,5902366498,1009369
04.07.2019,HOUSING HRA,BRAC CONTRACTS,"114,665.00",CAPITAL PS (HRA),CONSTRUCTION FEES  - EXTERNAL,2102974918,3000002025
04.07.2019,HOUSING HRA,SALTASH ENTERPRISES LTD,"71,239.39",CAPITAL PS (HRA),CONSTRUCTION MAIN CONTRACT -CERTIFICATED,2102974921,4013605
04.07.2019,HOUSING HRA,GAS ADVISORY SERVICES LIMITED,"5,346.60",PHOENIX,I-WORLD CONTRACTORS HOLDING ACCOUNT,5902366490,1000064649
04.07.2019,HOUSING HRA,GAS ADVISORY SERVICES LIMITED,"9,614.04",PHOENIX,I-WORLD CONTRACTORS HOLDING ACCOUNT,5902366492,1000064649
04.07.2019,LEISURE DIRECTORATE,CANADA WATER CULTURE SPACE,421.88,ARTS PROJECT,CONSULTANTS SERVICES,5902366450,1000075539
04.07.2019,LEISURE DIRECTORATE,NPOWER,356.49,BRANDON LIBRARY,ELECTRICITY,5902366454,1000055441
04.07.2019,LEISURE DIRECTORATE,SOUTH BANK UNIVERSITY ENTERPRISES LTD,666.67,COMMUNITY SPORTS DEVELOPMENT,EQUIPMENT PURCHASE & REPAIR,5902366365,1000014039
04.07.2019,LEISURE DIRECTORATE,SOUTH BANK UNIVERSITY ENTERPRISES LTD,833.33,COMMUNITY SPORTS DEVELOPMENT,EQUIPMENT PURCHASE & REPAIR,5902366445,1000014039
04.07.2019,LEISURE DIRECTORATE,THE RACE ORGANISER LTD,"1,190.00",COMMUNITY SPORTS DEVELOPMENT,EQUIPMENT PURCHASE & REPAIR,5902366372,1000082493
04.07.2019,LEISURE DIRECTORATE,NPOWER LTD,694.89,GROVE VALE LIBRARY,ELECTRICITY,5902366447,1000078994
04.07.2019,LEISURE DIRECTORATE,SPORTS AND LEISURE MANAGEMENT LTD,"32,832.00",LEISURE INVESTMENT,PROFESSIONAL FEES,5902366342,1000077862
04.07.2019,LEISURE DIRECTORATE,VIP LABELS,597.64,LIBARIES DEVELOPMENT,MARKETING & PUBLICITY SERVICES,5902366499,1000027464
04.07.2019,LEISURE DIRECTORATE,CASTLE WATER LTD,430.19,PECKHAM LIBRARY,WATER,5902366484,1000078867
04.07.2019,LEISURE DIRECTORATE,CAMBERWELL FAIR LTD,"8,000.00",SOUTHWARK FESTIVAL FUND,OP LEASE/HIRE CHARGES:PLANT/EQUIP/FURNIT,5902365797,1000075834
04.07.2019,MODERNISATION HGF,ROYAL MAIL GROUP LTD,"3,813.00",160 TOOLEY ST.,POSTAGES,5902366493,1000008168
04.07.2019,MODERNISATION HGF,ROYAL MAIL GROUP LTD,"4,280.44",160 TOOLEY ST.,POSTAGES,5902366326,1000008168
04.07.2019,MODERNISATION HGF,TFL TELESALES / OYSTER FULFILMENT,570,160 TOOLEY ST.,PUBLIC TRANSPORT,5902366337,1000059727
04.07.2019,MODERNISATION HGF,TMP (UK) LIMITED,"1,640.00",ADVERTISING,RECRUITMENT ADVERTISING,5902366320,1000041810
04.07.2019,MODERNISATION HGF,CAPITA SECURE INFORMATION,"118,260.00",APPLICATIONS,COMMS & COMPUTING CONTRACT CHARGES,5902366322,1000070739
04.07.2019,MODERNISATION HGF,SHERRIDAN HUGHES,"3,625.00",OCCUPATIONAL ASSESSMENT,CONSULTANTS SERVICES,5902366449,1000074250
04.07.2019,MODERNISATION HGF,ROSEMARY POTTS,"4,425.00",OCCUPATIONAL ASSESSMENT,CONSULTANTS SERVICES,5902366459,1738708
04.07.2019,MODERNISATION HGF,JOHN STATTERS ASSOCIATES,"2,375.00",OCCUPATIONAL ASSESSMENT,CONSULTANTS SERVICES,5902366480,1000065600
04.07.2019,MODERNISATION HGF,JOHN STATTERS ASSOCIATES,"4,512.50",OCCUPATIONAL ASSESSMENT,CONSULTANTS SERVICES,5902366485,1000065600
04.07.2019,MODERNISATION HGF,JOHN STATTERS ASSOCIATES,"5,700.00",OCCUPATIONAL ASSESSMENT,CONSULTANTS SERVICES,5902366483,1000065600
04.07.2019,MODERNISATION HGF,COMENSURA LTD,"-3,772.08",WEEKLY PAYMENTS,AGENCY STAFF,5902365516,1000051261
04.07.2019,MODERNISATION HGF,COMENSURA LTD,"491,338.12",WEEKLY PAYMENTS,AGENCY STAFF,5902366471,1000051261
04.07.2019,PUBLIC HEALTH,IMPERIAL COLLEGE LONDON,"18,281.00",HEALTH INTELLIGENCE,PROFESSIONAL FEES,5902366327,1000041205
04.07.2019,RESIDENT SERVICES,POSTURITE (UK) LTD,956.24,OPERATIONS/OFFICES ACCOMMODATION,EQUIPMENT PURCHASE & REPAIR,5902366349,11015468
04.07.2019,RESIDENT SERVICES,CANADA WATER CULTURE SPACE,-336.5,OPERATIONS/OFFICES ACCOMMODATION,REFRESHMENTS FOR MEETINGS,5902366654,1000075539
04.07.2019,RESIDENT SERVICES,CANADA WATER CULTURE SPACE,336.5,OPERATIONS/OFFICES ACCOMMODATION,REFRESHMENTS FOR MEETINGS,5902357546,1000075539
04.07.2019,RESIDENT SERVICES HGF,CASTLE WATER LTD,868.33,BRIDEALE,WATER,5902366318,1000078867
05.07.2019,ADULT SOCIAL CARE,SYED & QUINN LTD,500,ADULTS MULTI-AGENCY SAFEGUARDING TRNG,TRAINING,5902365757,1000029554
05.07.2019,ADULT SOCIAL CARE,AURORA OPTIONS,408,LD LTS 18-64,DAYCARE,2102976067,1000066695
05.07.2019,ADULT SOCIAL CARE,PEOPLEPLUS ILS,"-1,181.28",LD LTS 18-64,DISCRETIONARY FLEXIBLE FEES & INCOME,2102975906,1000061886
05.07.2019,ADULT SOCIAL CARE,PEOPLEPLUS ILS,-327,LD LTS 18-64,DISCRETIONARY FLEXIBLE FEES & INCOME,2102975810,1000061886
05.07.2019,ADULT SOCIAL CARE,TRUECARE HAVEN SUPPORT LTD,"1,520.00",LD LTS 18-64,HOMECARE - SPOT,2102975064,1000078974
05.07.2019,ADULT SOCIAL CARE,PEOPLEPLUS ILS,"-10,250.69",LD LTS 18-64,PAYMENTS TO CLIENTS (DIRECT PAYMENTS),2102976026,1000061886
05.07.2019,ADULT SOCIAL CARE,PEOPLEPLUS ILS,"-7,977.71",LD LTS 18-64,PAYMENTS TO CLIENTS (DIRECT PAYMENTS),2102975558,1000061886
05.07.2019,ADULT SOCIAL CARE,PEOPLEPLUS ILS,"-4,528.20",LD LTS 18-64,PAYMENTS TO CLIENTS (DIRECT PAYMENTS),2102975506,1000061886
05.07.2019,ADULT SOCIAL CARE,PEOPLEPLUS ILS,"-1,374.14",LD LTS 18-64,PAYMENTS TO CLIENTS (DIRECT PAYMENTS),2102975347,1000061886
05.07.2019,ADULT SOCIAL CARE,PEOPLEPLUS ILS,254.68,LD LTS 18-64,PAYMENTS TO CLIENTS (DIRECT PAYMENTS),2102976044,1000061886
05.07.2019,ADULT SOCIAL CARE,PEOPLEPLUS ILS,260,LD LTS 18-64,PAYMENTS TO CLIENTS (DIRECT PAYMENTS),2102975437,1000061886
05.07.2019,ADULT SOCIAL CARE,PEOPLEPLUS ILS,266,LD LTS 18-64,PAYMENTS TO CLIENTS (DIRECT PAYMENTS),2102975331,1000061886
05.07.2019,ADULT SOCIAL CARE,PEOPLEPLUS ILS,273.68,LD LTS 18-64,PAYMENTS TO CLIENTS (DIRECT PAYMENTS),2102975470,1000061886
05.07.2019,ADULT SOCIAL CARE,PEOPLEPLUS ILS,288.4,LD LTS 18-64,PAYMENTS TO CLIENTS (DIRECT PAYMENTS),2102976037,1000061886
05.07.2019,ADULT SOCIAL CARE,PEOPLEPLUS ILS,299.6,LD LTS 18-64,PAYMENTS TO CLIENTS (DIRECT PAYMENTS),2102975729,1000061886
05.07.2019,ADULT SOCIAL CARE,PEOPLEPLUS ILS,300,LD LTS 18-64,PAYMENTS TO CLIENTS (DIRECT PAYMENTS),2102975929,1000061886
05.07.2019,ADULT SOCIAL CARE,PEOPLEPLUS ILS,307.84,LD LTS 18-64,PAYMENTS TO CLIENTS (DIRECT PAYMENTS),2102975863,1000061886
05.07.2019,ADULT SOCIAL CARE,PEOPLEPLUS ILS,318,LD LTS 18-64,PAYMENTS TO CLIENTS (DIRECT PAYMENTS),2102976036,1000061886
05.07.2019,ADULT SOCIAL CARE,PEOPLEPLUS ILS,329.8,LD LTS 18-64,PAYMENTS TO CLIENTS (DIRECT PAYMENTS),2102975503,1000061886
05.07.2019,ADULT SOCIAL CARE,PEOPLEPLUS ILS,334,LD LTS 18-64,PAYMENTS TO CLIENTS (DIRECT PAYMENTS),2102975598,1000061886
05.07.2019,ADULT SOCIAL CARE,PEOPLEPLUS ILS,347.44,LD LTS 18-64,PAYMENTS TO CLIENTS (DIRECT PAYMENTS),2102975481,1000061886
05.07.2019,ADULT SOCIAL CARE,PEOPLEPLUS ILS,352,LD LTS 18-64,PAYMENTS TO CLIENTS (DIRECT PAYMENTS),2102975683,1000061886
05.07.2019,ADULT SOCIAL CARE,PEOPLEPLUS ILS,356.92,LD LTS 18-64,PAYMENTS TO CLIENTS (DIRECT PAYMENTS),2102975988,1000061886
05.07.2019,ADULT SOCIAL CARE,PEOPLEPLUS ILS,385.6,LD LTS 18-64,PAYMENTS TO CLIENTS (DIRECT PAYMENTS),2102976016,1000061886
05.07.2019,ADULT SOCIAL CARE,PEOPLEPLUS ILS,408.4,LD LTS 18-64,PAYMENTS TO CLIENTS (DIRECT PAYMENTS),2102975561,1000061886
05.07.2019,ADULT SOCIAL CARE,PEOPLEPLUS ILS,424,LD LTS 18-64,PAYMENTS TO CLIENTS (DIRECT PAYMENTS),2102975342,1000061886
05.07.2019,ADULT SOCIAL CARE,PEOPLEPLUS ILS,440,LD LTS 18-64,PAYMENTS TO CLIENTS (DIRECT PAYMENTS),2102976048,1000061886
05.07.2019,ADULT SOCIAL CARE,PEOPLEPLUS ILS,450,LD LTS 18-64,PAYMENTS TO CLIENTS (DIRECT PAYMENTS),2102975955,1000061886
05.07.2019,ADULT SOCIAL CARE,PEOPLEPLUS ILS,464.8,LD LTS 18-64,PAYMENTS TO CLIENTS (DIRECT PAYMENTS),2102975323,1000061886
05.07.2019,ADULT SOCIAL CARE,PEOPLEPLUS ILS,493.36,LD LTS 18-64,PAYMENTS TO CLIENTS (DIRECT PAYMENTS),2102975945,1000061886
05.07.2019,ADULT SOCIAL CARE,PEOPLEPLUS ILS,502.12,LD LTS 18-64,PAYMENTS TO CLIENTS (DIRECT PAYMENTS),2102975927,1000061886
05.07.2019,ADULT SOCIAL CARE,PEOPLEPLUS ILS,520.88,LD LTS 18-64,PAYMENTS TO CLIENTS (DIRECT PAYMENTS),2102975788,1000061886
05.07.2019,ADULT SOCIAL CARE,PEOPLEPLUS ILS,554.8,LD LTS 18-64,PAYMENTS TO CLIENTS (DIRECT PAYMENTS),2102975568,1000061886
05.07.2019,ADULT SOCIAL CARE,PEOPLEPLUS ILS,555.2,LD LTS 18-64,PAYMENTS TO CLIENTS (DIRECT PAYMENTS),2102975689,1000061886
05.07.2019,ADULT SOCIAL CARE,PEOPLEPLUS ILS,578,LD LTS 18-64,PAYMENTS TO CLIENTS (DIRECT PAYMENTS),2102975616,1000061886
05.07.2019,ADULT SOCIAL CARE,PEOPLEPLUS ILS,612.36,LD LTS 18-64,PAYMENTS TO CLIENTS (DIRECT PAYMENTS),2102975507,1000061886
05.07.2019,ADULT SOCIAL CARE,PEOPLEPLUS ILS,633.2,LD LTS 18-64,PAYMENTS TO CLIENTS (DIRECT PAYMENTS),2102975967,1000061886
05.07.2019,ADULT SOCIAL CARE,PEOPLEPLUS ILS,670,LD LTS 18-64,PAYMENTS TO CLIENTS (DIRECT PAYMENTS),2102975964,1000061886
05.07.2019,ADULT SOCIAL CARE,PEOPLEPLUS ILS,678.12,LD LTS 18-64,PAYMENTS TO CLIENTS (DIRECT PAYMENTS),2102976032,1000061886
05.07.2019,ADULT SOCIAL CARE,PEOPLEPLUS ILS,679.2,LD LTS 18-64,PAYMENTS TO CLIENTS (DIRECT PAYMENTS),2102975548,1000061886
05.07.2019,ADULT SOCIAL CARE,PEOPLEPLUS ILS,680,LD LTS 18-64,PAYMENTS TO CLIENTS (DIRECT PAYMENTS),2102975998,1000061886
05.07.2019,ADULT SOCIAL CARE,PEOPLEPLUS ILS,712.4,LD LTS 18-64,PAYMENTS TO CLIENTS (DIRECT PAYMENTS),2102975508,1000061886
05.07.2019,ADULT SOCIAL CARE,PEOPLEPLUS ILS,718,LD LTS 18-64,PAYMENTS TO CLIENTS (DIRECT PAYMENTS),2102975827,1000061886
05.07.2019,ADULT SOCIAL CARE,PEOPLEPLUS ILS,722.4,LD LTS 18-64,PAYMENTS TO CLIENTS (DIRECT PAYMENTS),2102975975,1000061886
05.07.2019,ADULT SOCIAL CARE,PEOPLEPLUS ILS,724.24,LD LTS 18-64,PAYMENTS TO CLIENTS (DIRECT PAYMENTS),2102975378,1000061886
05.07.2019,ADULT SOCIAL CARE,PEOPLEPLUS ILS,743.04,LD LTS 18-64,PAYMENTS TO CLIENTS (DIRECT PAYMENTS),2102975653,1000061886
05.07.2019,ADULT SOCIAL CARE,PEOPLEPLUS ILS,753.04,LD LTS 18-64,PAYMENTS TO CLIENTS (DIRECT PAYMENTS),2102975525,1000061886
05.07.2019,ADULT SOCIAL CARE,PEOPLEPLUS ILS,753.04,LD LTS 18-64,PAYMENTS TO CLIENTS (DIRECT PAYMENTS),2102975823,1000061886
05.07.2019,ADULT SOCIAL CARE,PEOPLEPLUS ILS,754,LD LTS 18-64,PAYMENTS TO CLIENTS (DIRECT PAYMENTS),2102975901,1000061886
05.07.2019,ADULT SOCIAL CARE,PEOPLEPLUS ILS,758.72,LD LTS 18-64,PAYMENTS TO CLIENTS (DIRECT PAYMENTS),2102975619,1000061886
05.07.2019,ADULT SOCIAL CARE,PEOPLEPLUS ILS,780,LD LTS 18-64,PAYMENTS TO CLIENTS (DIRECT PAYMENTS),2102975545,1000061886
05.07.2019,ADULT SOCIAL CARE,PEOPLEPLUS ILS,784.08,LD LTS 18-64,PAYMENTS TO CLIENTS (DIRECT PAYMENTS),2102975997,1000061886
05.07.2019,ADULT SOCIAL CARE,PEOPLEPLUS ILS,789.6,LD LTS 18-64,PAYMENTS TO CLIENTS (DIRECT PAYMENTS),2102975773,1000061886
05.07.2019,ADULT SOCIAL CARE,PEOPLEPLUS ILS,794,LD LTS 18-64,PAYMENTS TO CLIENTS (DIRECT PAYMENTS),2102975527,1000061886
05.07.2019,ADULT SOCIAL CARE,PEOPLEPLUS ILS,805,LD LTS 18-64,PAYMENTS TO CLIENTS (DIRECT PAYMENTS),2102975300,1000061886
05.07.2019,ADULT SOCIAL CARE,PEOPLEPLUS ILS,813.36,LD LTS 18-64,PAYMENTS TO CLIENTS (DIRECT PAYMENTS),2102975546,1000061886
05.07.2019,ADULT SOCIAL CARE,PEOPLEPLUS ILS,819.84,LD LTS 18-64,PAYMENTS TO CLIENTS (DIRECT PAYMENTS),2102975509,1000061886
05.07.2019,ADULT SOCIAL CARE,PEOPLEPLUS ILS,860,LD LTS 18-64,PAYMENTS TO CLIENTS (DIRECT PAYMENTS),2102975804,1000061886
05.07.2019,ADULT SOCIAL CARE,PEOPLEPLUS ILS,862.64,LD LTS 18-64,PAYMENTS TO CLIENTS (DIRECT PAYMENTS),2102975452,1000061886
05.07.2019,ADULT SOCIAL CARE,PEOPLEPLUS ILS,870,LD LTS 18-64,PAYMENTS TO CLIENTS (DIRECT PAYMENTS),2102975472,1000061886
05.07.2019,ADULT SOCIAL CARE,FRESH IDEAS & SOLUTIONS SERVICES CIC,875.6,LD LTS 18-64,PAYMENTS TO CLIENTS (DIRECT PAYMENTS),2102975311,1000070832
05.07.2019,ADULT SOCIAL CARE,PEOPLEPLUS ILS,875.6,LD LTS 18-64,PAYMENTS TO CLIENTS (DIRECT PAYMENTS),2102975397,1000061886
05.07.2019,ADULT SOCIAL CARE,FRESH IDEAS & SOLUTIONS SERVICES CIC,895.6,LD LTS 18-64,PAYMENTS TO CLIENTS (DIRECT PAYMENTS),2102975943,1000070832
05.07.2019,ADULT SOCIAL CARE,PEOPLEPLUS ILS,896.8,LD LTS 18-64,PAYMENTS TO CLIENTS (DIRECT PAYMENTS),2102975441,1000061886
05.07.2019,ADULT SOCIAL CARE,PEOPLEPLUS ILS,918,LD LTS 18-64,PAYMENTS TO CLIENTS (DIRECT PAYMENTS),2102975754,1000061886
05.07.2019,ADULT SOCIAL CARE,PEOPLEPLUS ILS,934,LD LTS 18-64,PAYMENTS TO CLIENTS (DIRECT PAYMENTS),2102975784,1000061886
05.07.2019,ADULT SOCIAL CARE,PEOPLEPLUS ILS,957.2,LD LTS 18-64,PAYMENTS TO CLIENTS (DIRECT PAYMENTS),2102975974,1000061886
05.07.2019,ADULT SOCIAL CARE,PEOPLEPLUS ILS,968,LD LTS 18-64,PAYMENTS TO CLIENTS (DIRECT PAYMENTS),2102975367,1000061886
05.07.2019,ADULT SOCIAL CARE,PEOPLEPLUS ILS,970.2,LD LTS 18-64,PAYMENTS TO CLIENTS (DIRECT PAYMENTS),2102975476,1000061886
05.07.2019,ADULT SOCIAL CARE,PEOPLEPLUS ILS,988,LD LTS 18-64,PAYMENTS TO CLIENTS (DIRECT PAYMENTS),2102975327,1000061886
05.07.2019,ADULT SOCIAL CARE,PEOPLEPLUS ILS,"1,013.48",LD LTS 18-64,PAYMENTS TO CLIENTS (DIRECT PAYMENTS),2102975903,1000061886
05.07.2019,ADULT SOCIAL CARE,FRESH IDEAS & SOLUTIONS SERVICES CIC,"1,047.52",LD LTS 18-64,PAYMENTS TO CLIENTS (DIRECT PAYMENTS),2102975866,1000070832
05.07.2019,ADULT SOCIAL CARE,PEOPLEPLUS ILS,"1,052.00",LD LTS 18-64,PAYMENTS TO CLIENTS (DIRECT PAYMENTS),2102975996,1000061886
05.07.2019,ADULT SOCIAL CARE,PEOPLEPLUS ILS,"1,054.00",LD LTS 18-64,PAYMENTS TO CLIENTS (DIRECT PAYMENTS),2102975518,1000061886
05.07.2019,ADULT SOCIAL CARE,PEOPLEPLUS ILS,"1,056.00",LD LTS 18-64,PAYMENTS TO CLIENTS (DIRECT PAYMENTS),2102975735,1000061886
05.07.2019,ADULT SOCIAL CARE,FRESH IDEAS & SOLUTIONS SERVICES CIC,"1,067.12",LD LTS 18-64,PAYMENTS TO CLIENTS (DIRECT PAYMENTS),2102975671,1000070832
05.07.2019,ADULT SOCIAL CARE,PEOPLEPLUS ILS,"1,072.72",LD LTS 18-64,PAYMENTS TO CLIENTS (DIRECT PAYMENTS),2102975605,1000061886
05.07.2019,ADULT SOCIAL CARE,PEOPLEPLUS ILS,"1,171.28",LD LTS 18-64,PAYMENTS TO CLIENTS (DIRECT PAYMENTS),2102975931,1000061886
05.07.2019,ADULT SOCIAL CARE,PEOPLEPLUS ILS,"1,172.48",LD LTS 18-64,PAYMENTS TO CLIENTS (DIRECT PAYMENTS),2102975401,1000061886
05.07.2019,ADULT SOCIAL CARE,PEOPLEPLUS ILS,"1,192.64",LD LTS 18-64,PAYMENTS TO CLIENTS (DIRECT PAYMENTS),2102976051,1000061886
05.07.2019,ADULT SOCIAL CARE,PEOPLEPLUS ILS,"1,239.04",LD LTS 18-64,PAYMENTS TO CLIENTS (DIRECT PAYMENTS),2102975332,1000061886
05.07.2019,ADULT SOCIAL CARE,PEOPLEPLUS ILS,"1,242.40",LD LTS 18-64,PAYMENTS TO CLIENTS (DIRECT PAYMENTS),2102975337,1000061886
05.07.2019,ADULT SOCIAL CARE,PEOPLEPLUS ILS,"1,319.24",LD LTS 18-64,PAYMENTS TO CLIENTS (DIRECT PAYMENTS),2102975890,1000061886
05.07.2019,ADULT SOCIAL CARE,PEOPLEPLUS ILS,"1,324.40",LD LTS 18-64,PAYMENTS TO CLIENTS (DIRECT PAYMENTS),2102975691,1000061886
05.07.2019,ADULT SOCIAL CARE,PEOPLEPLUS ILS,"1,375.56",LD LTS 18-64,PAYMENTS TO CLIENTS (DIRECT PAYMENTS),2102975625,1000061886
05.07.2019,ADULT SOCIAL CARE,PEOPLEPLUS ILS,"1,430.96",LD LTS 18-64,PAYMENTS TO CLIENTS (DIRECT PAYMENTS),2102975644,1000061886
05.07.2019,ADULT SOCIAL CARE,PEOPLEPLUS ILS,"1,438.80",LD LTS 18-64,PAYMENTS TO CLIENTS (DIRECT PAYMENTS),2102975535,1000061886
05.07.2019,ADULT SOCIAL CARE,FRESH IDEAS & SOLUTIONS SERVICES CIC,"1,464.32",LD LTS 18-64,PAYMENTS TO CLIENTS (DIRECT PAYMENTS),2102975402,1000070832
05.07.2019,ADULT SOCIAL CARE,PEOPLEPLUS ILS,"1,471.60",LD LTS 18-64,PAYMENTS TO CLIENTS (DIRECT PAYMENTS),2102975516,1000061886
05.07.2019,ADULT SOCIAL CARE,PEOPLEPLUS ILS,"1,474.96",LD LTS 18-64,PAYMENTS TO CLIENTS (DIRECT PAYMENTS),2102975675,1000061886
05.07.2019,ADULT SOCIAL CARE,PEOPLEPLUS ILS,"1,475.84",LD LTS 18-64,PAYMENTS TO CLIENTS (DIRECT PAYMENTS),2102975361,1000061886
05.07.2019,ADULT SOCIAL CARE,PEOPLEPLUS ILS,"1,480.20",LD LTS 18-64,PAYMENTS TO CLIENTS (DIRECT PAYMENTS),2102975602,1000061886
05.07.2019,ADULT SOCIAL CARE,PEOPLEPLUS ILS,"1,529.52",LD LTS 18-64,PAYMENTS TO CLIENTS (DIRECT PAYMENTS),2102975623,1000061886
05.07.2019,ADULT SOCIAL CARE,PEOPLEPLUS ILS,"1,605.76",LD LTS 18-64,PAYMENTS TO CLIENTS (DIRECT PAYMENTS),2102976023,1000061886
05.07.2019,ADULT SOCIAL CARE,PEOPLEPLUS ILS,"1,617.28",LD LTS 18-64,PAYMENTS TO CLIENTS (DIRECT PAYMENTS),2102975547,1000061886
05.07.2019,ADULT SOCIAL CARE,PEOPLEPLUS ILS,"1,659.04",LD LTS 18-64,PAYMENTS TO CLIENTS (DIRECT PAYMENTS),2102975977,1000061886
05.07.2019,ADULT SOCIAL CARE,PEOPLEPLUS ILS,"1,690.24",LD LTS 18-64,PAYMENTS TO CLIENTS (DIRECT PAYMENTS),2102975363,1000061886
05.07.2019,ADULT SOCIAL CARE,PEOPLEPLUS ILS,"1,696.32",LD LTS 18-64,PAYMENTS TO CLIENTS (DIRECT PAYMENTS),2102975727,1000061886
05.07.2019,ADULT SOCIAL CARE,PEOPLEPLUS ILS,"1,714.00",LD LTS 18-64,PAYMENTS TO CLIENTS (DIRECT PAYMENTS),2102976041,1000061886
05.07.2019,ADULT SOCIAL CARE,PEOPLEPLUS ILS,"1,756.76",LD LTS 18-64,PAYMENTS TO CLIENTS (DIRECT PAYMENTS),2102975854,1000061886
05.07.2019,ADULT SOCIAL CARE,PEOPLEPLUS ILS,"1,799.48",LD LTS 18-64,PAYMENTS TO CLIENTS (DIRECT PAYMENTS),2102975391,1000061886
05.07.2019,ADULT SOCIAL CARE,PEOPLEPLUS ILS,"1,823.48",LD LTS 18-64,PAYMENTS TO CLIENTS (DIRECT PAYMENTS),2102975723,1000061886
05.07.2019,ADULT SOCIAL CARE,PEOPLEPLUS ILS,"1,829.00",LD LTS 18-64,PAYMENTS TO CLIENTS (DIRECT PAYMENTS),2102975621,1000061886
05.07.2019,ADULT SOCIAL CARE,PEOPLEPLUS ILS,"1,829.60",LD LTS 18-64,PAYMENTS TO CLIENTS (DIRECT PAYMENTS),2102975809,1000061886
05.07.2019,ADULT SOCIAL CARE,PEOPLEPLUS ILS,"1,837.60",LD LTS 18-64,PAYMENTS TO CLIENTS (DIRECT PAYMENTS),2102975433,1000061886
05.07.2019,ADULT SOCIAL CARE,FRESH IDEAS & SOLUTIONS SERVICES CIC,"1,848.00",LD LTS 18-64,PAYMENTS TO CLIENTS (DIRECT PAYMENTS),2102975390,1000070832
05.07.2019,ADULT SOCIAL CARE,PEOPLEPLUS ILS,"1,862.00",LD LTS 18-64,PAYMENTS TO CLIENTS (DIRECT PAYMENTS),2102975583,1000061886
05.07.2019,ADULT SOCIAL CARE,PEOPLEPLUS ILS,"1,888.28",LD LTS 18-64,PAYMENTS TO CLIENTS (DIRECT PAYMENTS),2102975775,1000061886
05.07.2019,ADULT SOCIAL CARE,PEOPLEPLUS ILS,"1,912.40",LD LTS 18-64,PAYMENTS TO CLIENTS (DIRECT PAYMENTS),2102975645,1000061886
05.07.2019,ADULT SOCIAL CARE,PEOPLEPLUS ILS,"1,950.96",LD LTS 18-64,PAYMENTS TO CLIENTS (DIRECT PAYMENTS),2102975355,1000061886
05.07.2019,ADULT SOCIAL CARE,PEOPLEPLUS ILS,"2,090.00",LD LTS 18-64,PAYMENTS TO CLIENTS (DIRECT PAYMENTS),2102975639,1000061886
05.07.2019,ADULT SOCIAL CARE,PEOPLEPLUS ILS,"2,097.56",LD LTS 18-64,PAYMENTS TO CLIENTS (DIRECT PAYMENTS),2102975908,1000061886
05.07.2019,ADULT SOCIAL CARE,PEOPLEPLUS ILS,"2,131.20",LD LTS 18-64,PAYMENTS TO CLIENTS (DIRECT PAYMENTS),2102975782,1000061886
05.07.2019,ADULT SOCIAL CARE,PEOPLEPLUS ILS,"2,268.84",LD LTS 18-64,PAYMENTS TO CLIENTS (DIRECT PAYMENTS),2102975533,1000061886
05.07.2019,ADULT SOCIAL CARE,PEOPLEPLUS ILS,"2,312.40",LD LTS 18-64,PAYMENTS TO CLIENTS (DIRECT PAYMENTS),2102975941,1000061886
05.07.2019,ADULT SOCIAL CARE,PEOPLEPLUS ILS,"2,447.76",LD LTS 18-64,PAYMENTS TO CLIENTS (DIRECT PAYMENTS),2102975889,1000061886
05.07.2019,ADULT SOCIAL CARE,PEOPLEPLUS ILS,"2,490.00",LD LTS 18-64,PAYMENTS TO CLIENTS (DIRECT PAYMENTS),2102975637,1000061886
05.07.2019,ADULT SOCIAL CARE,PEOPLEPLUS ILS,"2,494.00",LD LTS 18-64,PAYMENTS TO CLIENTS (DIRECT PAYMENTS),2102975826,1000061886
05.07.2019,ADULT SOCIAL CARE,PEOPLEPLUS ILS,"2,733.64",LD LTS 18-64,PAYMENTS TO CLIENTS (DIRECT PAYMENTS),2102975783,1000061886
05.07.2019,ADULT SOCIAL CARE,PEOPLEPLUS ILS,"2,906.00",LD LTS 18-64,PAYMENTS TO CLIENTS (DIRECT PAYMENTS),2102975400,1000061886
05.07.2019,ADULT SOCIAL CARE,PEOPLEPLUS ILS,"2,918.00",LD LTS 18-64,PAYMENTS TO CLIENTS (DIRECT PAYMENTS),2102975374,1000061886
05.07.2019,ADULT SOCIAL CARE,PEOPLEPLUS ILS,"2,946.20",LD LTS 18-64,PAYMENTS TO CLIENTS (DIRECT PAYMENTS),2102975578,1000061886
05.07.2019,ADULT SOCIAL CARE,PEOPLEPLUS ILS,"3,360.88",LD LTS 18-64,PAYMENTS TO CLIENTS (DIRECT PAYMENTS),2102975776,1000061886
05.07.2019,ADULT SOCIAL CARE,PEOPLEPLUS ILS,"3,610.00",LD LTS 18-64,PAYMENTS TO CLIENTS (DIRECT PAYMENTS),2102975785,1000061886
05.07.2019,ADULT SOCIAL CARE,PEOPLEPLUS ILS,"3,809.20",LD LTS 18-64,PAYMENTS TO CLIENTS (DIRECT PAYMENTS),2102975992,1000061886
05.07.2019,ADULT SOCIAL CARE,PEOPLEPLUS ILS,"4,160.00",LD LTS 18-64,PAYMENTS TO CLIENTS (DIRECT PAYMENTS),2102975745,1000061886
05.07.2019,ADULT SOCIAL CARE,PEOPLEPLUS ILS,"4,228.00",LD LTS 18-64,PAYMENTS TO CLIENTS (DIRECT PAYMENTS),2102975880,1000061886
05.07.2019,ADULT SOCIAL CARE,PEOPLEPLUS ILS,"4,310.40",LD LTS 18-64,PAYMENTS TO CLIENTS (DIRECT PAYMENTS),2102975905,1000061886
05.07.2019,ADULT SOCIAL CARE,PEOPLEPLUS ILS,"5,013.75",LD LTS 18-64,PAYMENTS TO CLIENTS (DIRECT PAYMENTS),2102975759,1000061886
05.07.2019,ADULT SOCIAL CARE,PEOPLEPLUS ILS,"7,521.32",LD LTS 18-64,PAYMENTS TO CLIENTS (DIRECT PAYMENTS),2102975373,1000061886
05.07.2019,ADULT SOCIAL CARE,PEOPLEPLUS ILS,"7,908.96",LD LTS 18-64,PAYMENTS TO CLIENTS (DIRECT PAYMENTS),2102975790,1000061886
05.07.2019,ADULT SOCIAL CARE,PEOPLEPLUS ILS,"9,126.80",LD LTS 18-64,PAYMENTS TO CLIENTS (DIRECT PAYMENTS),2102975961,1000061886
05.07.2019,ADULT SOCIAL CARE,PEOPLEPLUS ILS,"11,809.20",LD LTS 18-64,PAYMENTS TO CLIENTS (DIRECT PAYMENTS),2102975466,1000061886
05.07.2019,ADULT SOCIAL CARE,PEOPLEPLUS ILS,"12,619.20",LD LTS 18-64,PAYMENTS TO CLIENTS (DIRECT PAYMENTS),2102975828,1000061886
05.07.2019,ADULT SOCIAL CARE,PEOPLEPLUS ILS,"12,619.20",LD LTS 18-64,PAYMENTS TO CLIENTS (DIRECT PAYMENTS),2102975940,1000061886
05.07.2019,ADULT SOCIAL CARE,REDACTED PERSONAL DATA,269.6,LD LTS 18-64,PAYMENTS TO CLIENTS (DIRECT PAYMENTS),REDACTED,REDACTED
05.07.2019,ADULT SOCIAL CARE,REDACTED PERSONAL DATA,288.8,LD LTS 18-64,PAYMENTS TO CLIENTS (DIRECT PAYMENTS),REDACTED,REDACTED
05.07.2019,ADULT SOCIAL CARE,REDACTED PERSONAL DATA,300,LD LTS 18-64,PAYMENTS TO CLIENTS (DIRECT PAYMENTS),REDACTED,REDACTED
05.07.2019,ADULT SOCIAL CARE,REDACTED PERSONAL DATA,300,LD LTS 18-64,PAYMENTS TO CLIENTS (DIRECT PAYMENTS),REDACTED,REDACTED
05.07.2019,ADULT SOCIAL CARE,REDACTED PERSONAL DATA,319.52,LD LTS 18-64,PAYMENTS TO CLIENTS (DIRECT PAYMENTS),REDACTED,REDACTED
05.07.2019,ADULT SOCIAL CARE,REDACTED PERSONAL DATA,320,LD LTS 18-64,PAYMENTS TO CLIENTS (DIRECT PAYMENTS),REDACTED,REDACTED
05.07.2019,ADULT SOCIAL CARE,REDACTED PERSONAL DATA,327.2,LD LTS 18-64,PAYMENTS TO CLIENTS (DIRECT PAYMENTS),REDACTED,REDACTED
05.07.2019,ADULT SOCIAL CARE,REDACTED PERSONAL DATA,430.8,LD LTS 18-64,PAYMENTS TO CLIENTS (DIRECT PAYMENTS),REDACTED,REDACTED
05.07.2019,ADULT SOCIAL CARE,REDACTED PERSONAL DATA,460.04,LD LTS 18-64,PAYMENTS TO CLIENTS (DIRECT PAYMENTS),REDACTED,REDACTED
05.07.2019,ADULT SOCIAL CARE,REDACTED PERSONAL DATA,484.32,LD LTS 18-64,PAYMENTS TO CLIENTS (DIRECT PAYMENTS),REDACTED,REDACTED
05.07.2019,ADULT SOCIAL CARE,REDACTED PERSONAL DATA,522.6,LD LTS 18-64,PAYMENTS TO CLIENTS (DIRECT PAYMENTS),REDACTED,REDACTED
05.07.2019,ADULT SOCIAL CARE,REDACTED PERSONAL DATA,569.12,LD LTS 18-64,PAYMENTS TO CLIENTS (DIRECT PAYMENTS),REDACTED,REDACTED
05.07.2019,ADULT SOCIAL CARE,REDACTED PERSONAL DATA,594.4,LD LTS 18-64,PAYMENTS TO CLIENTS (DIRECT PAYMENTS),REDACTED,REDACTED
05.07.2019,ADULT SOCIAL CARE,REDACTED PERSONAL DATA,676,LD LTS 18-64,PAYMENTS TO CLIENTS (DIRECT PAYMENTS),REDACTED,REDACTED
05.07.2019,ADULT SOCIAL CARE,REDACTED PERSONAL DATA,718,LD LTS 18-64,PAYMENTS TO CLIENTS (DIRECT PAYMENTS),REDACTED,REDACTED
05.07.2019,ADULT SOCIAL CARE,REDACTED PERSONAL DATA,738,LD LTS 18-64,PAYMENTS TO CLIENTS (DIRECT PAYMENTS),REDACTED,REDACTED
05.07.2019,ADULT SOCIAL CARE,REDACTED PERSONAL DATA,774.2,LD LTS 18-64,PAYMENTS TO CLIENTS (DIRECT PAYMENTS),REDACTED,REDACTED
05.07.2019,ADULT SOCIAL CARE,REDACTED PERSONAL DATA,809.8,LD LTS 18-64,PAYMENTS TO CLIENTS (DIRECT PAYMENTS),REDACTED,REDACTED
05.07.2019,ADULT SOCIAL CARE,REDACTED PERSONAL DATA,956.16,LD LTS 18-64,PAYMENTS TO CLIENTS (DIRECT PAYMENTS),REDACTED,REDACTED
05.07.2019,ADULT SOCIAL CARE,REDACTED PERSONAL DATA,"1,019.44",LD LTS 18-64,PAYMENTS TO CLIENTS (DIRECT PAYMENTS),REDACTED,REDACTED
05.07.2019,ADULT SOCIAL CARE,REDACTED PERSONAL DATA,"1,025.20",LD LTS 18-64,PAYMENTS TO CLIENTS (DIRECT PAYMENTS),REDACTED,REDACTED
05.07.2019,ADULT SOCIAL CARE,REDACTED PERSONAL DATA,"1,036.24",LD LTS 18-64,PAYMENTS TO CLIENTS (DIRECT PAYMENTS),REDACTED,REDACTED
05.07.2019,ADULT SOCIAL CARE,REDACTED PERSONAL DATA,"1,190.40",LD LTS 18-64,PAYMENTS TO CLIENTS (DIRECT PAYMENTS),REDACTED,REDACTED
05.07.2019,ADULT SOCIAL CARE,REDACTED PERSONAL DATA,"1,197.96",LD LTS 18-64,PAYMENTS TO CLIENTS (DIRECT PAYMENTS),REDACTED,REDACTED
05.07.2019,ADULT SOCIAL CARE,REDACTED PERSONAL DATA,"1,200.00",LD LTS 18-64,PAYMENTS TO CLIENTS (DIRECT PAYMENTS),REDACTED,REDACTED
05.07.2019,ADULT SOCIAL CARE,REDACTED PERSONAL DATA,"1,290.16",LD LTS 18-64,PAYMENTS TO CLIENTS (DIRECT PAYMENTS),REDACTED,REDACTED
05.07.2019,ADULT SOCIAL CARE,REDACTED PERSONAL DATA,"1,293.44",LD LTS 18-64,PAYMENTS TO CLIENTS (DIRECT PAYMENTS),REDACTED,REDACTED
05.07.2019,ADULT SOCIAL CARE,REDACTED PERSONAL DATA,"1,328.00",LD LTS 18-64,PAYMENTS TO CLIENTS (DIRECT PAYMENTS),REDACTED,REDACTED
05.07.2019,ADULT SOCIAL CARE,REDACTED PERSONAL DATA,"1,368.32",LD LTS 18-64,PAYMENTS TO CLIENTS (DIRECT PAYMENTS),REDACTED,REDACTED
05.07.2019,ADULT SOCIAL CARE,REDACTED PERSONAL DATA,"1,400.00",LD LTS 18-64,PAYMENTS TO CLIENTS (DIRECT PAYMENTS),REDACTED,REDACTED
05.07.2019,ADULT SOCIAL CARE,REDACTED PERSONAL DATA,"1,420.12",LD LTS 18-64,PAYMENTS TO CLIENTS (DIRECT PAYMENTS),REDACTED,REDACTED
05.07.2019,ADULT SOCIAL CARE,REDACTED PERSONAL DATA,"1,443.00",LD LTS 18-64,PAYMENTS TO CLIENTS (DIRECT PAYMENTS),REDACTED,REDACTED
05.07.2019,ADULT SOCIAL CARE,REDACTED PERSONAL DATA,"1,532.68",LD LTS 18-64,PAYMENTS TO CLIENTS (DIRECT PAYMENTS),REDACTED,REDACTED
05.07.2019,ADULT SOCIAL CARE,REDACTED PERSONAL DATA,"1,532.92",LD LTS 18-64,PAYMENTS TO CLIENTS (DIRECT PAYMENTS),REDACTED,REDACTED
05.07.2019,ADULT SOCIAL CARE,REDACTED PERSONAL DATA,"1,534.00",LD LTS 18-64,PAYMENTS TO CLIENTS (DIRECT PAYMENTS),REDACTED,REDACTED
05.07.2019,ADULT SOCIAL CARE,REDACTED PERSONAL DATA,"1,545.48",LD LTS 18-64,PAYMENTS TO CLIENTS (DIRECT PAYMENTS),REDACTED,REDACTED
05.07.2019,ADULT SOCIAL CARE,REDACTED PERSONAL DATA,"1,672.00",LD LTS 18-64,PAYMENTS TO CLIENTS (DIRECT PAYMENTS),REDACTED,REDACTED
05.07.2019,ADULT SOCIAL CARE,REDACTED PERSONAL DATA,"1,790.40",LD LTS 18-64,PAYMENTS TO CLIENTS (DIRECT PAYMENTS),REDACTED,REDACTED
05.07.2019,ADULT SOCIAL CARE,REDACTED PERSONAL DATA,"1,811.76",LD LTS 18-64,PAYMENTS TO CLIENTS (DIRECT PAYMENTS),REDACTED,REDACTED
05.07.2019,ADULT SOCIAL CARE,REDACTED PERSONAL DATA,"1,845.16",LD LTS 18-64,PAYMENTS TO CLIENTS (DIRECT PAYMENTS),REDACTED,REDACTED
05.07.2019,ADULT SOCIAL CARE,REDACTED PERSONAL DATA,"2,000.00",LD LTS 18-64,PAYMENTS TO CLIENTS (DIRECT PAYMENTS),REDACTED,REDACTED
05.07.2019,ADULT SOCIAL CARE,REDACTED PERSONAL DATA,"2,116.00",LD LTS 18-64,PAYMENTS TO CLIENTS (DIRECT PAYMENTS),REDACTED,REDACTED
05.07.2019,ADULT SOCIAL CARE,REDACTED PERSONAL DATA,"2,118.00",LD LTS 18-64,PAYMENTS TO CLIENTS (DIRECT PAYMENTS),REDACTED,REDACTED
05.07.2019,ADULT SOCIAL CARE,REDACTED PERSONAL DATA,"2,158.60",LD LTS 18-64,PAYMENTS TO CLIENTS (DIRECT PAYMENTS),REDACTED,REDACTED
05.07.2019,ADULT SOCIAL CARE,REDACTED PERSONAL DATA,"2,317.60",LD LTS 18-64,PAYMENTS TO CLIENTS (DIRECT PAYMENTS),REDACTED,REDACTED
05.07.2019,ADULT SOCIAL CARE,REDACTED PERSONAL DATA,"2,660.20",LD LTS 18-64,PAYMENTS TO CLIENTS (DIRECT PAYMENTS),REDACTED,REDACTED
05.07.2019,ADULT SOCIAL CARE,REDACTED PERSONAL DATA,"2,736.00",LD LTS 18-64,PAYMENTS TO CLIENTS (DIRECT PAYMENTS),REDACTED,REDACTED
05.07.2019,ADULT SOCIAL CARE,REDACTED PERSONAL DATA,"3,864.64",LD LTS 18-64,PAYMENTS TO CLIENTS (DIRECT PAYMENTS),REDACTED,REDACTED
05.07.2019,ADULT SOCIAL CARE,REDACTED PERSONAL DATA,"3,923.12",LD LTS 18-64,PAYMENTS TO CLIENTS (DIRECT PAYMENTS),REDACTED,REDACTED
05.07.2019,ADULT SOCIAL CARE,REDACTED PERSONAL DATA,"4,020.80",LD LTS 18-64,PAYMENTS TO CLIENTS (DIRECT PAYMENTS),REDACTED,REDACTED
05.07.2019,ADULT SOCIAL CARE,REDACTED PERSONAL DATA,"5,280.88",LD LTS 18-64,PAYMENTS TO CLIENTS (DIRECT PAYMENTS),REDACTED,REDACTED
05.07.2019,ADULT SOCIAL CARE,REDACTED PERSONAL DATA,"5,362.72",LD LTS 18-64,PAYMENTS TO CLIENTS (DIRECT PAYMENTS),REDACTED,REDACTED
05.07.2019,ADULT SOCIAL CARE,REDACTED PERSONAL DATA,"6,644.40",LD LTS 18-64,PAYMENTS TO CLIENTS (DIRECT PAYMENTS),REDACTED,REDACTED
05.07.2019,ADULT SOCIAL CARE,REDACTED PERSONAL DATA,"8,484.60",LD LTS 18-64,PAYMENTS TO CLIENTS (DIRECT PAYMENTS),REDACTED,REDACTED
05.07.2019,ADULT SOCIAL CARE,REDACTED PERSONAL DATA,"12,580.00",LD LTS 18-64,PAYMENTS TO CLIENTS (DIRECT PAYMENTS),REDACTED,REDACTED
05.07.2019,ADULT SOCIAL CARE,CHOICE SUPPORT,"-1,022.87",LD LTS 18-64,SUPPORTED LIVING,2102975427,1104183
05.07.2019,ADULT SOCIAL CARE,CARE DIRECT UK LTD,347.51,LD LTS 18-64,SUPPORTED LIVING,2102975051,1000066322
05.07.2019,ADULT SOCIAL CARE,TRUECARE HAVEN SUPPORT LTD,650,LD LTS 18-64,SUPPORTED LIVING,2102975060,1000078974
05.07.2019,ADULT SOCIAL CARE,TRUECARE HAVEN SUPPORT LTD,958.04,LD LTS 18-64,SUPPORTED LIVING,2102975044,1000078974
05.07.2019,ADULT SOCIAL CARE,GRANGE FARM COMPLEX,"1,778.36",LD LTS 18-64,SUPPORTED LIVING,2102975496,11086081
05.07.2019,ADULT SOCIAL CARE,AURORA OPTIONS,"2,855.16",LD LTS 18-64,SUPPORTED LIVING,2102975665,1000066695
05.07.2019,ADULT SOCIAL CARE,AURORA OPTIONS,"2,855.16",LD LTS 18-64,SUPPORTED LIVING,2102975761,1000066695
05.07.2019,ADULT SOCIAL CARE,AURORA OPTIONS,"2,855.16",LD LTS 18-64,SUPPORTED LIVING,2102975848,1000066695
05.07.2019,ADULT SOCIAL CARE,PLUS SERVICES,"3,200.00",LD LTS 18-64,SUPPORTED LIVING,2102976028,1000021241
05.07.2019,ADULT SOCIAL CARE,HEALTH PERSONNEL LTD,"3,270.00",LD LTS 18-64,SUPPORTED LIVING,2102975686,1000076377
05.07.2019,ADULT SOCIAL CARE,AURORA OPTIONS,"3,441.16",LD LTS 18-64,SUPPORTED LIVING,2102975502,1000066695
05.07.2019,ADULT SOCIAL CARE,HEATH FARM FAMILY SOLUTION (FOSTERING),"3,894.90",LD LTS 18-64,SUPPORTED LIVING,2102975043,11271268
05.07.2019,ADULT SOCIAL CARE,HEATH FARM FAMILY SOLUTION (FOSTERING),"3,894.90",LD LTS 18-64,SUPPORTED LIVING,2102975055,11271268
05.07.2019,ADULT SOCIAL CARE,L'ARCHE LONDON COMMUNITY,"4,206.00",LD LTS 18-64,SUPPORTED LIVING,2102975818,1000074124
05.07.2019,ADULT SOCIAL CARE,PLUS SERVICES,"5,173.60",LD LTS 18-64,SUPPORTED LIVING,2102975303,1000021241
05.07.2019,ADULT SOCIAL CARE,PLUS SERVICES,"5,495.20",LD LTS 18-64,SUPPORTED LIVING,2102976071,1000021241
05.07.2019,ADULT SOCIAL CARE,RIGHT SUPPORT MANAGEMENT LTD,"8,361.00",LD LTS 18-64,SUPPORTED LIVING,2102975643,1000070289
05.07.2019,ADULT SOCIAL CARE,REDACTED PERSONAL DATA,"1,032.16",LD LTS 18-64,SUPPORTED LIVING,REDACTED,REDACTED
05.07.2019,ADULT SOCIAL CARE,UNITED RESPONSE,"1,599.00",LD LTS 65+,SUPPORTED LIVING,2102975739,1022934
05.07.2019,ADULT SOCIAL CARE,OUTLOOK CARE LTD,"2,212.00",LD LTS 65+,SUPPORTED LIVING,2102975622,1000074760
05.07.2019,ADULT SOCIAL CARE,CHOICE SUPPORT,"4,496.00",LD LTS 65+,SUPPORTED LIVING,2102975618,1104183
05.07.2019,ADULT SOCIAL CARE,PLUS SERVICES,"4,857.20",LD LTS 65+,SUPPORTED LIVING,2102975575,1000021241
05.07.2019,ADULT SOCIAL CARE,PLUS SERVICES,"6,147.92",LD LTS 65+,SUPPORTED LIVING,2102975893,1000021241
05.07.2019,ADULT SOCIAL CARE,PEOPLEPLUS ILS,389.32,MEM LTS 18-64,PAYMENTS TO CLIENTS (DIRECT PAYMENTS),2102975760,1000061886
05.07.2019,ADULT SOCIAL CARE,PEOPLEPLUS ILS,619.2,MEM LTS 18-64,PAYMENTS TO CLIENTS (DIRECT PAYMENTS),2102975580,1000061886
05.07.2019,ADULT SOCIAL CARE,PEOPLEPLUS ILS,734.16,MEM LTS 18-64,PAYMENTS TO CLIENTS (DIRECT PAYMENTS),2102975954,1000061886
05.07.2019,ADULT SOCIAL CARE,PEOPLEPLUS ILS,933.28,MEM LTS 18-64,PAYMENTS TO CLIENTS (DIRECT PAYMENTS),2102976054,1000061886
05.07.2019,ADULT SOCIAL CARE,REDACTED PERSONAL DATA,256,MEM LTS 18-64,SUPPORTED LIVING,REDACTED,REDACTED
05.07.2019,ADULT SOCIAL CARE,AGE UK  LEWISHAM & SOUTHWARK,360,MEM LTS 65+,DAYCARE,2102975676,1000066751
05.07.2019,ADULT SOCIAL CARE,AGE UK  LEWISHAM & SOUTHWARK,540,MEM LTS 65+,DAYCARE,2102975658,1000066751
05.07.2019,ADULT SOCIAL CARE,AGE UK  LEWISHAM & SOUTHWARK,900,MEM LTS 65+,DAYCARE,2102975366,1000066751
05.07.2019,ADULT SOCIAL CARE,AGE UK  LEWISHAM & SOUTHWARK,900,MEM LTS 65+,DAYCARE,2102975542,1000066751
05.07.2019,ADULT SOCIAL CARE,REDACTED PERSONAL DATA,-264.12,MEM LTS 65+,DISCRETIONARY FLEXIBLE FEES & INCOME,REDACTED,REDACTED
05.07.2019,ADULT SOCIAL CARE,SNOWBALL CARE UK LTD,256,MEM LTS 65+,HOMECARE - SPOT,2102975057,1000081483
05.07.2019,ADULT SOCIAL CARE,SNOWBALL CARE UK LTD,"2,208.00",MEM LTS 65+,HOMECARE - SPOT,2102975054,1000081483
05.07.2019,ADULT SOCIAL CARE,PEOPLEPLUS ILS,332.57,MEM LTS 65+,PAYMENTS TO CLIENTS (DIRECT PAYMENTS),2102976046,1000061886
05.07.2019,ADULT SOCIAL CARE,PEOPLEPLUS ILS,378.84,MEM LTS 65+,PAYMENTS TO CLIENTS (DIRECT PAYMENTS),2102975489,1000061886
05.07.2019,ADULT SOCIAL CARE,PEOPLEPLUS ILS,"1,421.24",MEM LTS 65+,PAYMENTS TO CLIENTS (DIRECT PAYMENTS),2102975294,1000061886
05.07.2019,ADULT SOCIAL CARE,REDACTED PERSONAL DATA,"1,118.52",MEM LTS 65+,PAYMENTS TO CLIENTS (DIRECT PAYMENTS),REDACTED,REDACTED
05.07.2019,ADULT SOCIAL CARE,BLACKFRIARS SETTLEMENT,320,MH LTS 18-64,DAYCARE,2102975796,1000071456
05.07.2019,ADULT SOCIAL CARE,SERVESOUL LTD,262.87,MH LTS 18-64,HOMECARE - SPOT,2102975008,1000081503
05.07.2019,ADULT SOCIAL CARE,REDACTED PERSONAL DATA,269.8,MH LTS 18-64,HOMECARE - SPOT,REDACTED,REDACTED
05.07.2019,ADULT SOCIAL CARE,REDACTED PERSONAL DATA,276,MH LTS 18-64,HOMECARE - SPOT,REDACTED,REDACTED
05.07.2019,ADULT SOCIAL CARE,REDACTED PERSONAL DATA,546,MH LTS 18-64,HOMECARE - SPOT,REDACTED,REDACTED
05.07.2019,ADULT SOCIAL CARE,REDACTED PERSONAL DATA,655.2,MH LTS 18-64,HOMECARE - SPOT,REDACTED,REDACTED
05.07.2019,ADULT SOCIAL CARE,REDACTED PERSONAL DATA,928,MH LTS 18-64,HOMECARE - SPOT,REDACTED,REDACTED
05.07.2019,ADULT SOCIAL CARE,REDACTED PERSONAL DATA,"1,241.08",MH LTS 18-64,HOMECARE - SPOT,REDACTED,REDACTED
05.07.2019,ADULT SOCIAL CARE,PEOPLEPLUS ILS,-374.52,MH LTS 18-64,PAYMENTS TO CLIENTS (DIRECT PAYMENTS),2102975576,1000061886
05.07.2019,ADULT SOCIAL CARE,PEOPLEPLUS ILS,269,MH LTS 18-64,PAYMENTS TO CLIENTS (DIRECT PAYMENTS),2102975756,1000061886
05.07.2019,ADULT SOCIAL CARE,PEOPLEPLUS ILS,272,MH LTS 18-64,PAYMENTS TO CLIENTS (DIRECT PAYMENTS),2102975469,1000061886
05.07.2019,ADULT SOCIAL CARE,PEOPLEPLUS ILS,274,MH LTS 18-64,PAYMENTS TO CLIENTS (DIRECT PAYMENTS),2102975349,1000061886
05.07.2019,ADULT SOCIAL CARE,PEOPLEPLUS ILS,274,MH LTS 18-64,PAYMENTS TO CLIENTS (DIRECT PAYMENTS),2102975614,1000061886
05.07.2019,ADULT SOCIAL CARE,PEOPLEPLUS ILS,287.2,MH LTS 18-64,PAYMENTS TO CLIENTS (DIRECT PAYMENTS),2102975915,1000061886
05.07.2019,ADULT SOCIAL CARE,PEOPLEPLUS ILS,290,MH LTS 18-64,PAYMENTS TO CLIENTS (DIRECT PAYMENTS),2102975388,1000061886
05.07.2019,ADULT SOCIAL CARE,PEOPLEPLUS ILS,304,MH LTS 18-64,PAYMENTS TO CLIENTS (DIRECT PAYMENTS),2102975989,1000061886
05.07.2019,ADULT SOCIAL CARE,PEOPLEPLUS ILS,310.48,MH LTS 18-64,PAYMENTS TO CLIENTS (DIRECT PAYMENTS),2102975953,1000061886
05.07.2019,ADULT SOCIAL CARE,PEOPLEPLUS ILS,318,MH LTS 18-64,PAYMENTS TO CLIENTS (DIRECT PAYMENTS),2102975976,1000061886
05.07.2019,ADULT SOCIAL CARE,PEOPLEPLUS ILS,328.48,MH LTS 18-64,PAYMENTS TO CLIENTS (DIRECT PAYMENTS),2102975910,1000061886
05.07.2019,ADULT SOCIAL CARE,PEOPLEPLUS ILS,368.4,MH LTS 18-64,PAYMENTS TO CLIENTS (DIRECT PAYMENTS),2102975398,1000061886
05.07.2019,ADULT SOCIAL CARE,PEOPLEPLUS ILS,385.76,MH LTS 18-64,PAYMENTS TO CLIENTS (DIRECT PAYMENTS),2102975734,1000061886
05.07.2019,ADULT SOCIAL CARE,PEOPLEPLUS ILS,394,MH LTS 18-64,PAYMENTS TO CLIENTS (DIRECT PAYMENTS),2102975606,1000061886
05.07.2019,ADULT SOCIAL CARE,PEOPLEPLUS ILS,405.44,MH LTS 18-64,PAYMENTS TO CLIENTS (DIRECT PAYMENTS),2102975564,1000061886
05.07.2019,ADULT SOCIAL CARE,PEOPLEPLUS ILS,413.96,MH LTS 18-64,PAYMENTS TO CLIENTS (DIRECT PAYMENTS),2102976011,1000061886
05.07.2019,ADULT SOCIAL CARE,PEOPLEPLUS ILS,415,MH LTS 18-64,PAYMENTS TO CLIENTS (DIRECT PAYMENTS),2102975521,1000061886
05.07.2019,ADULT SOCIAL CARE,PEOPLEPLUS ILS,427.92,MH LTS 18-64,PAYMENTS TO CLIENTS (DIRECT PAYMENTS),2102975629,1000061886
05.07.2019,ADULT SOCIAL CARE,PEOPLEPLUS ILS,469,MH LTS 18-64,PAYMENTS TO CLIENTS (DIRECT PAYMENTS),2102975371,1000061886
05.07.2019,ADULT SOCIAL CARE,PEOPLEPLUS ILS,504.4,MH LTS 18-64,PAYMENTS TO CLIENTS (DIRECT PAYMENTS),2102975458,1000061886
05.07.2019,ADULT SOCIAL CARE,PEOPLEPLUS ILS,523,MH LTS 18-64,PAYMENTS TO CLIENTS (DIRECT PAYMENTS),2102975952,1000061886
05.07.2019,ADULT SOCIAL CARE,PEOPLEPLUS ILS,529.6,MH LTS 18-64,PAYMENTS TO CLIENTS (DIRECT PAYMENTS),2102975699,1000061886
05.07.2019,ADULT SOCIAL CARE,PEOPLEPLUS ILS,642,MH LTS 18-64,PAYMENTS TO CLIENTS (DIRECT PAYMENTS),2102975328,1000061886
05.07.2019,ADULT SOCIAL CARE,PEOPLEPLUS ILS,994,MH LTS 18-64,PAYMENTS TO CLIENTS (DIRECT PAYMENTS),2102975428,1000061886
05.07.2019,ADULT SOCIAL CARE,PEOPLEPLUS ILS,"1,041.40",MH LTS 18-64,PAYMENTS TO CLIENTS (DIRECT PAYMENTS),2102975275,1000061886
05.07.2019,ADULT SOCIAL CARE,PEOPLEPLUS ILS,"1,239.65",MH LTS 18-64,PAYMENTS TO CLIENTS (DIRECT PAYMENTS),2102975360,1000061886
05.07.2019,ADULT SOCIAL CARE,PEOPLEPLUS ILS,"1,252.86",MH LTS 18-64,PAYMENTS TO CLIENTS (DIRECT PAYMENTS),2102975726,1000061886
05.07.2019,ADULT SOCIAL CARE,PEOPLEPLUS ILS,"2,311.60",MH LTS 18-64,PAYMENTS TO CLIENTS (DIRECT PAYMENTS),2102975283,1000061886
05.07.2019,ADULT SOCIAL CARE,REDACTED PERSONAL DATA,328,MH LTS 18-64,PAYMENTS TO CLIENTS (DIRECT PAYMENTS),REDACTED,REDACTED
05.07.2019,ADULT SOCIAL CARE,REDACTED PERSONAL DATA,888,MH LTS 18-64,PAYMENTS TO CLIENTS (DIRECT PAYMENTS),REDACTED,REDACTED
05.07.2019,ADULT SOCIAL CARE,REDACTED PERSONAL DATA,"1,158.36",MH LTS 18-64,PAYMENTS TO CLIENTS (DIRECT PAYMENTS),REDACTED,REDACTED
05.07.2019,ADULT SOCIAL CARE,REDACTED PERSONAL DATA,"1,476.20",MH LTS 18-64,PAYMENTS TO CLIENTS (DIRECT PAYMENTS),REDACTED,REDACTED
05.07.2019,ADULT SOCIAL CARE,PEOPLEPLUS ILS,"-6,108.50",MH LTS 65+,PAYMENTS TO CLIENTS (DIRECT PAYMENTS),2102975844,1000061886
05.07.2019,ADULT SOCIAL CARE,PEOPLEPLUS ILS,253,MH LTS 65+,PAYMENTS TO CLIENTS (DIRECT PAYMENTS),2102975847,1000061886
05.07.2019,ADULT SOCIAL CARE,PEOPLEPLUS ILS,274,MH LTS 65+,PAYMENTS TO CLIENTS (DIRECT PAYMENTS),2102975824,1000061886
05.07.2019,ADULT SOCIAL CARE,PEOPLEPLUS ILS,283.6,MH LTS 65+,PAYMENTS TO CLIENTS (DIRECT PAYMENTS),2102975957,1000061886
05.07.2019,ADULT SOCIAL CARE,PEOPLEPLUS ILS,394,MH LTS 65+,PAYMENTS TO CLIENTS (DIRECT PAYMENTS),2102975698,1000061886
05.07.2019,ADULT SOCIAL CARE,PEOPLEPLUS ILS,"1,212.20",MH LTS 65+,PAYMENTS TO CLIENTS (DIRECT PAYMENTS),2102976072,1000061886
05.07.2019,ADULT SOCIAL CARE,REDACTED PERSONAL DATA,897.8,MH LTS 65+,PAYMENTS TO CLIENTS (DIRECT PAYMENTS),REDACTED,REDACTED
05.07.2019,ADULT SOCIAL CARE,REDACTED PERSONAL DATA,960,MH LTS 65+,PAYMENTS TO CLIENTS (DIRECT PAYMENTS),REDACTED,REDACTED
05.07.2019,ADULT SOCIAL CARE,PEOPLEPLUS ILS,"-6,961.04",PHB- SOUTHWARK CCG,RECOVERABLE COSTS INCL. HEALTH,2102976038,1000061886
05.07.2019,ADULT SOCIAL CARE,PEOPLEPLUS ILS,"1,470.00",PHB- SOUTHWARK CCG,RECOVERABLE COSTS INCL. HEALTH,2102975990,1000061886
05.07.2019,ADULT SOCIAL CARE,PEOPLEPLUS ILS,"3,613.68",PHB- SOUTHWARK CCG,RECOVERABLE COSTS INCL. HEALTH,2102975464,1000061886
05.07.2019,ADULT SOCIAL CARE,PEOPLEPLUS ILS,"4,127.92",PHB- SOUTHWARK CCG,RECOVERABLE COSTS INCL. HEALTH,2102975615,1000061886
05.07.2019,ADULT SOCIAL CARE,PEOPLEPLUS ILS,"4,347.48",PHB- SOUTHWARK CCG,RECOVERABLE COSTS INCL. HEALTH,2102975413,1000061886
05.07.2019,ADULT SOCIAL CARE,PEOPLEPLUS ILS,"5,226.32",PHB- SOUTHWARK CCG,RECOVERABLE COSTS INCL. HEALTH,2102976018,1000061886
05.07.2019,ADULT SOCIAL CARE,PEOPLEPLUS ILS,"5,477.60",PHB- SOUTHWARK CCG,RECOVERABLE COSTS INCL. HEALTH,2102975498,1000061886
05.07.2019,ADULT SOCIAL CARE,REDACTED PERSONAL DATA,940,PHB- SOUTHWARK CCG,RECOVERABLE COSTS INCL. HEALTH,REDACTED,REDACTED
05.07.2019,ADULT SOCIAL CARE,REDACTED PERSONAL DATA,"2,699.76",PHB- SOUTHWARK CCG,RECOVERABLE COSTS INCL. HEALTH,REDACTED,REDACTED
05.07.2019,ADULT SOCIAL CARE,REDACTED PERSONAL DATA,"7,482.40",PHB- SOUTHWARK CCG,RECOVERABLE COSTS INCL. HEALTH,REDACTED,REDACTED
05.07.2019,ADULT SOCIAL CARE,AGE UK  LEWISHAM & SOUTHWARK,360,PHY LTS 18-64,DAYCARE,2102975766,1000066751
05.07.2019,ADULT SOCIAL CARE,AGE UK  LEWISHAM & SOUTHWARK,360,PHY LTS 18-64,DAYCARE,2102975993,1000066751
05.07.2019,ADULT SOCIAL CARE,AGE UK  LEWISHAM & SOUTHWARK,540,PHY LTS 18-64,DAYCARE,2102976042,1000066751
05.07.2019,ADULT SOCIAL CARE,SERVESOUL LTD,408.91,PHY LTS 18-64,HOMECARE - SPOT,2102975004,1000081503
05.07.2019,ADULT SOCIAL CARE,SNOWBALL CARE UK LTD,560,PHY LTS 18-64,HOMECARE - SPOT,2102975046,1000081483
05.07.2019,ADULT SOCIAL CARE,SNOWBALL CARE UK LTD,"3,488.00",PHY LTS 18-64,HOMECARE - SPOT,2102975050,1000081483
05.07.2019,ADULT SOCIAL CARE,PEOPLEPLUS ILS,265.64,PHY LTS 18-64,PAYMENTS TO CLIENTS (DIRECT PAYMENTS),2102975492,1000061886
05.07.2019,ADULT SOCIAL CARE,PEOPLEPLUS ILS,265.64,PHY LTS 18-64,PAYMENTS TO CLIENTS (DIRECT PAYMENTS),2102975626,1000061886
05.07.2019,ADULT SOCIAL CARE,PEOPLEPLUS ILS,295.04,PHY LTS 18-64,PAYMENTS TO CLIENTS (DIRECT PAYMENTS),2102975805,1000061886
05.07.2019,ADULT SOCIAL CARE,PEOPLEPLUS ILS,326.6,PHY LTS 18-64,PAYMENTS TO CLIENTS (DIRECT PAYMENTS),2102975792,1000061886
05.07.2019,ADULT SOCIAL CARE,PEOPLEPLUS ILS,326.6,PHY LTS 18-64,PAYMENTS TO CLIENTS (DIRECT PAYMENTS),2102975942,1000061886
05.07.2019,ADULT SOCIAL CARE,PEOPLEPLUS ILS,337.04,PHY LTS 18-64,PAYMENTS TO CLIENTS (DIRECT PAYMENTS),2102975447,1000061886
05.07.2019,ADULT SOCIAL CARE,PEOPLEPLUS ILS,357.96,PHY LTS 18-64,PAYMENTS TO CLIENTS (DIRECT PAYMENTS),2102975589,1000061886
05.07.2019,ADULT SOCIAL CARE,PEOPLEPLUS ILS,365,PHY LTS 18-64,PAYMENTS TO CLIENTS (DIRECT PAYMENTS),2102975624,1000061886
05.07.2019,ADULT SOCIAL CARE,PEOPLEPLUS ILS,370,PHY LTS 18-64,PAYMENTS TO CLIENTS (DIRECT PAYMENTS),2102976000,1000061886
05.07.2019,ADULT SOCIAL CARE,PEOPLEPLUS ILS,388.4,PHY LTS 18-64,PAYMENTS TO CLIENTS (DIRECT PAYMENTS),2102976052,1000061886
05.07.2019,ADULT SOCIAL CARE,PEOPLEPLUS ILS,389.32,PHY LTS 18-64,PAYMENTS TO CLIENTS (DIRECT PAYMENTS),2102975393,1000061886
05.07.2019,ADULT SOCIAL CARE,PEOPLEPLUS ILS,399.76,PHY LTS 18-64,PAYMENTS TO CLIENTS (DIRECT PAYMENTS),2102975560,1000061886
05.07.2019,ADULT SOCIAL CARE,PEOPLEPLUS ILS,423.52,PHY LTS 18-64,PAYMENTS TO CLIENTS (DIRECT PAYMENTS),2102975650,1000061886
05.07.2019,ADULT SOCIAL CARE,PEOPLEPLUS ILS,439.6,PHY LTS 18-64,PAYMENTS TO CLIENTS (DIRECT PAYMENTS),2102975837,1000061886
05.07.2019,ADULT SOCIAL CARE,PEOPLEPLUS ILS,447.4,PHY LTS 18-64,PAYMENTS TO CLIENTS (DIRECT PAYMENTS),2102975758,1000061886
05.07.2019,ADULT SOCIAL CARE,PEOPLEPLUS ILS,449.36,PHY LTS 18-64,PAYMENTS TO CLIENTS (DIRECT PAYMENTS),2102975368,1000061886
05.07.2019,ADULT SOCIAL CARE,PEOPLEPLUS ILS,452,PHY LTS 18-64,PAYMENTS TO CLIENTS (DIRECT PAYMENTS),2102976083,1000061886
05.07.2019,ADULT SOCIAL CARE,PEOPLEPLUS ILS,462.44,PHY LTS 18-64,PAYMENTS TO CLIENTS (DIRECT PAYMENTS),2102975285,1000061886
05.07.2019,ADULT SOCIAL CARE,PEOPLEPLUS ILS,462.44,PHY LTS 18-64,PAYMENTS TO CLIENTS (DIRECT PAYMENTS),2102975356,1000061886
05.07.2019,ADULT SOCIAL CARE,PEOPLEPLUS ILS,462.44,PHY LTS 18-64,PAYMENTS TO CLIENTS (DIRECT PAYMENTS),2102975892,1000061886
05.07.2019,ADULT SOCIAL CARE,PEOPLEPLUS ILS,470.24,PHY LTS 18-64,PAYMENTS TO CLIENTS (DIRECT PAYMENTS),2102975370,1000061886
05.07.2019,ADULT SOCIAL CARE,PEOPLEPLUS ILS,483.36,PHY LTS 18-64,PAYMENTS TO CLIENTS (DIRECT PAYMENTS),2102975330,1000061886
05.07.2019,ADULT SOCIAL CARE,PEOPLEPLUS ILS,501.6,PHY LTS 18-64,PAYMENTS TO CLIENTS (DIRECT PAYMENTS),2102976074,1000061886
05.07.2019,ADULT SOCIAL CARE,PEOPLEPLUS ILS,504.24,PHY LTS 18-64,PAYMENTS TO CLIENTS (DIRECT PAYMENTS),2102975315,1000061886
05.07.2019,ADULT SOCIAL CARE,PEOPLEPLUS ILS,504.24,PHY LTS 18-64,PAYMENTS TO CLIENTS (DIRECT PAYMENTS),2102975354,1000061886
05.07.2019,ADULT SOCIAL CARE,PEOPLEPLUS ILS,504.24,PHY LTS 18-64,PAYMENTS TO CLIENTS (DIRECT PAYMENTS),2102975493,1000061886
05.07.2019,ADULT SOCIAL CARE,PEOPLEPLUS ILS,505.4,PHY LTS 18-64,PAYMENTS TO CLIENTS (DIRECT PAYMENTS),2102975862,1000061886
05.07.2019,ADULT SOCIAL CARE,PEOPLEPLUS ILS,512.08,PHY LTS 18-64,PAYMENTS TO CLIENTS (DIRECT PAYMENTS),2102975936,1000061886
05.07.2019,ADULT SOCIAL CARE,PEOPLEPLUS ILS,514.72,PHY LTS 18-64,PAYMENTS TO CLIENTS (DIRECT PAYMENTS),2102975851,1000061886
05.07.2019,ADULT SOCIAL CARE,PEOPLEPLUS ILS,517.12,PHY LTS 18-64,PAYMENTS TO CLIENTS (DIRECT PAYMENTS),2102976063,1000061886
05.07.2019,ADULT SOCIAL CARE,PEOPLEPLUS ILS,535.6,PHY LTS 18-64,PAYMENTS TO CLIENTS (DIRECT PAYMENTS),2102975324,1000061886
05.07.2019,ADULT SOCIAL CARE,PEOPLEPLUS ILS,535.6,PHY LTS 18-64,PAYMENTS TO CLIENTS (DIRECT PAYMENTS),2102975404,1000061886
05.07.2019,ADULT SOCIAL CARE,FRESH IDEAS & SOLUTIONS SERVICES CIC,535.6,PHY LTS 18-64,PAYMENTS TO CLIENTS (DIRECT PAYMENTS),2102975831,1000070832
05.07.2019,ADULT SOCIAL CARE,PEOPLEPLUS ILS,539,PHY LTS 18-64,PAYMENTS TO CLIENTS (DIRECT PAYMENTS),2102976019,1000061886
05.07.2019,ADULT SOCIAL CARE,PEOPLEPLUS ILS,551,PHY LTS 18-64,PAYMENTS TO CLIENTS (DIRECT PAYMENTS),2102975749,1000061886
05.07.2019,ADULT SOCIAL CARE,PEOPLEPLUS ILS,556.52,PHY LTS 18-64,PAYMENTS TO CLIENTS (DIRECT PAYMENTS),2102975319,1000061886
05.07.2019,ADULT SOCIAL CARE,PEOPLEPLUS ILS,574.76,PHY LTS 18-64,PAYMENTS TO CLIENTS (DIRECT PAYMENTS),2102976039,1000061886
05.07.2019,ADULT SOCIAL CARE,PEOPLEPLUS ILS,585.2,PHY LTS 18-64,PAYMENTS TO CLIENTS (DIRECT PAYMENTS),2102976061,1000061886
05.07.2019,ADULT SOCIAL CARE,PEOPLEPLUS ILS,619,PHY LTS 18-64,PAYMENTS TO CLIENTS (DIRECT PAYMENTS),2102975383,1000061886
05.07.2019,ADULT SOCIAL CARE,FRESH IDEAS & SOLUTIONS SERVICES CIC,619.2,PHY LTS 18-64,PAYMENTS TO CLIENTS (DIRECT PAYMENTS),2102975922,1000070832
05.07.2019,ADULT SOCIAL CARE,PEOPLEPLUS ILS,629.64,PHY LTS 18-64,PAYMENTS TO CLIENTS (DIRECT PAYMENTS),2102976069,1000061886
05.07.2019,ADULT SOCIAL CARE,PEOPLEPLUS ILS,699.6,PHY LTS 18-64,PAYMENTS TO CLIENTS (DIRECT PAYMENTS),2102975405,1000061886
05.07.2019,ADULT SOCIAL CARE,PEOPLEPLUS ILS,702.8,PHY LTS 18-64,PAYMENTS TO CLIENTS (DIRECT PAYMENTS),2102975590,1000061886
05.07.2019,ADULT SOCIAL CARE,PEOPLEPLUS ILS,702.8,PHY LTS 18-64,PAYMENTS TO CLIENTS (DIRECT PAYMENTS),2102975867,1000061886
05.07.2019,ADULT SOCIAL CARE,PEOPLEPLUS ILS,724.24,PHY LTS 18-64,PAYMENTS TO CLIENTS (DIRECT PAYMENTS),2102975767,1000061886
05.07.2019,ADULT SOCIAL CARE,PEOPLEPLUS ILS,750.52,PHY LTS 18-64,PAYMENTS TO CLIENTS (DIRECT PAYMENTS),2102975842,1000061886
05.07.2019,ADULT SOCIAL CARE,PEOPLEPLUS ILS,764.64,PHY LTS 18-64,PAYMENTS TO CLIENTS (DIRECT PAYMENTS),2102975403,1000061886
05.07.2019,ADULT SOCIAL CARE,PEOPLEPLUS ILS,765.52,PHY LTS 18-64,PAYMENTS TO CLIENTS (DIRECT PAYMENTS),2102975609,1000061886
05.07.2019,ADULT SOCIAL CARE,PEOPLEPLUS ILS,765.52,PHY LTS 18-64,PAYMENTS TO CLIENTS (DIRECT PAYMENTS),2102975682,1000061886
05.07.2019,ADULT SOCIAL CARE,PEOPLEPLUS ILS,765.52,PHY LTS 18-64,PAYMENTS TO CLIENTS (DIRECT PAYMENTS),2102975801,1000061886
05.07.2019,ADULT SOCIAL CARE,PEOPLEPLUS ILS,779.88,PHY LTS 18-64,PAYMENTS TO CLIENTS (DIRECT PAYMENTS),2102975714,1000061886
05.07.2019,ADULT SOCIAL CARE,PEOPLEPLUS ILS,784.4,PHY LTS 18-64,PAYMENTS TO CLIENTS (DIRECT PAYMENTS),2102975740,1000061886
05.07.2019,ADULT SOCIAL CARE,PEOPLEPLUS ILS,786.2,PHY LTS 18-64,PAYMENTS TO CLIENTS (DIRECT PAYMENTS),2102975690,1000061886
05.07.2019,ADULT SOCIAL CARE,PEOPLEPLUS ILS,796.88,PHY LTS 18-64,PAYMENTS TO CLIENTS (DIRECT PAYMENTS),2102975923,1000061886
05.07.2019,ADULT SOCIAL CARE,PEOPLEPLUS ILS,801.8,PHY LTS 18-64,PAYMENTS TO CLIENTS (DIRECT PAYMENTS),2102975478,1000061886
05.07.2019,ADULT SOCIAL CARE,FRESH IDEAS & SOLUTIONS SERVICES CIC,828.2,PHY LTS 18-64,PAYMENTS TO CLIENTS (DIRECT PAYMENTS),2102975291,1000070832
05.07.2019,ADULT SOCIAL CARE,PEOPLEPLUS ILS,838.64,PHY LTS 18-64,PAYMENTS TO CLIENTS (DIRECT PAYMENTS),2102975392,1000061886
05.07.2019,ADULT SOCIAL CARE,FRESH IDEAS & SOLUTIONS SERVICES CIC,870,PHY LTS 18-64,PAYMENTS TO CLIENTS (DIRECT PAYMENTS),2102975336,1000070832
05.07.2019,ADULT SOCIAL CARE,FRESH IDEAS & SOLUTIONS SERVICES CIC,870,PHY LTS 18-64,PAYMENTS TO CLIENTS (DIRECT PAYMENTS),2102975913,1000070832
05.07.2019,ADULT SOCIAL CARE,PEOPLEPLUS ILS,877.8,PHY LTS 18-64,PAYMENTS TO CLIENTS (DIRECT PAYMENTS),2102975830,1000061886
05.07.2019,ADULT SOCIAL CARE,PEOPLEPLUS ILS,885.96,PHY LTS 18-64,PAYMENTS TO CLIENTS (DIRECT PAYMENTS),2102975704,1000061886
05.07.2019,ADULT SOCIAL CARE,PEOPLEPLUS ILS,890.92,PHY LTS 18-64,PAYMENTS TO CLIENTS (DIRECT PAYMENTS),2102975534,1000061886
05.07.2019,ADULT SOCIAL CARE,PEOPLEPLUS ILS,891.52,PHY LTS 18-64,PAYMENTS TO CLIENTS (DIRECT PAYMENTS),2102975377,1000061886
05.07.2019,ADULT SOCIAL CARE,PEOPLEPLUS ILS,894.76,PHY LTS 18-64,PAYMENTS TO CLIENTS (DIRECT PAYMENTS),2102975762,1000061886
05.07.2019,ADULT SOCIAL CARE,PEOPLEPLUS ILS,911.8,PHY LTS 18-64,PAYMENTS TO CLIENTS (DIRECT PAYMENTS),2102975302,1000061886
05.07.2019,ADULT SOCIAL CARE,PEOPLEPLUS ILS,932.8,PHY LTS 18-64,PAYMENTS TO CLIENTS (DIRECT PAYMENTS),2102975486,1000061886
05.07.2019,ADULT SOCIAL CARE,PEOPLEPLUS ILS,"1,003.20",PHY LTS 18-64,PAYMENTS TO CLIENTS (DIRECT PAYMENTS),2102975679,1000061886
05.07.2019,ADULT SOCIAL CARE,PEOPLEPLUS ILS,"1,015.20",PHY LTS 18-64,PAYMENTS TO CLIENTS (DIRECT PAYMENTS),2102975812,1000061886
05.07.2019,ADULT SOCIAL CARE,PEOPLEPLUS ILS,"1,052.64",PHY LTS 18-64,PAYMENTS TO CLIENTS (DIRECT PAYMENTS),2102975635,1000061886
05.07.2019,ADULT SOCIAL CARE,PEOPLEPLUS ILS,"1,120.80",PHY LTS 18-64,PAYMENTS TO CLIENTS (DIRECT PAYMENTS),2102975916,1000061886
05.07.2019,ADULT SOCIAL CARE,PEOPLEPLUS ILS,"1,146.40",PHY LTS 18-64,PAYMENTS TO CLIENTS (DIRECT PAYMENTS),2102975808,1000061886
05.07.2019,ADULT SOCIAL CARE,PEOPLEPLUS ILS,"1,150.52",PHY LTS 18-64,PAYMENTS TO CLIENTS (DIRECT PAYMENTS),2102975420,1000061886
05.07.2019,ADULT SOCIAL CARE,PEOPLEPLUS ILS,"1,266.04",PHY LTS 18-64,PAYMENTS TO CLIENTS (DIRECT PAYMENTS),2102975720,1000061886
05.07.2019,ADULT SOCIAL CARE,PEOPLEPLUS ILS,"1,426.00",PHY LTS 18-64,PAYMENTS TO CLIENTS (DIRECT PAYMENTS),2102975926,1000061886
05.07.2019,ADULT SOCIAL CARE,PEOPLEPLUS ILS,"1,497.00",PHY LTS 18-64,PAYMENTS TO CLIENTS (DIRECT PAYMENTS),2102975935,1000061886
05.07.2019,ADULT SOCIAL CARE,PEOPLEPLUS ILS,"1,616.52",PHY LTS 18-64,PAYMENTS TO CLIENTS (DIRECT PAYMENTS),2102975741,1000061886
05.07.2019,ADULT SOCIAL CARE,PEOPLEPLUS ILS,"1,722.68",PHY LTS 18-64,PAYMENTS TO CLIENTS (DIRECT PAYMENTS),2102975948,1000061886
05.07.2019,ADULT SOCIAL CARE,PEOPLEPLUS ILS,"1,733.56",PHY LTS 18-64,PAYMENTS TO CLIENTS (DIRECT PAYMENTS),2102975468,1000061886
05.07.2019,ADULT SOCIAL CARE,PEOPLEPLUS ILS,"1,909.40",PHY LTS 18-64,PAYMENTS TO CLIENTS (DIRECT PAYMENTS),2102975454,1000061886
05.07.2019,ADULT SOCIAL CARE,PEOPLEPLUS ILS,"1,998.60",PHY LTS 18-64,PAYMENTS TO CLIENTS (DIRECT PAYMENTS),2102975972,1000061886
05.07.2019,ADULT SOCIAL CARE,PEOPLEPLUS ILS,"2,076.20",PHY LTS 18-64,PAYMENTS TO CLIENTS (DIRECT PAYMENTS),2102975660,1000061886
05.07.2019,ADULT SOCIAL CARE,PEOPLEPLUS ILS,"2,252.96",PHY LTS 18-64,PAYMENTS TO CLIENTS (DIRECT PAYMENTS),2102975344,1000061886
05.07.2019,ADULT SOCIAL CARE,PEOPLEPLUS ILS,"2,326.60",PHY LTS 18-64,PAYMENTS TO CLIENTS (DIRECT PAYMENTS),2102975298,1000061886
05.07.2019,ADULT SOCIAL CARE,PEOPLEPLUS ILS,"2,989.44",PHY LTS 18-64,PAYMENTS TO CLIENTS (DIRECT PAYMENTS),2102975289,1000061886
05.07.2019,ADULT SOCIAL CARE,PEOPLEPLUS ILS,"3,254.00",PHY LTS 18-64,PAYMENTS TO CLIENTS (DIRECT PAYMENTS),2102975873,1000061886
05.07.2019,ADULT SOCIAL CARE,PEOPLEPLUS ILS,"3,307.52",PHY LTS 18-64,PAYMENTS TO CLIENTS (DIRECT PAYMENTS),2102975672,1000061886
05.07.2019,ADULT SOCIAL CARE,PEOPLEPLUS ILS,"3,479.04",PHY LTS 18-64,PAYMENTS TO CLIENTS (DIRECT PAYMENTS),2102975795,1000061886
